Workbook

Sheet Instructions
A1: moneyble.com | B1: Read instructions before you begin
B3: Enable Macros This file uses Excel Macros. You won't be able to use this template if Macros are not enabled
B5: You may see red error message like below… This is because this Excel file was downloaded from the internet
B6: Read the article from Microsoft for instructions on how to fix it:
B7: https://support.microsoft.com/en-us/topic/a-potentially-dangerous-macro-has-been-blocked-0952faa0-37e7-4316-b61d-5b5ed6024216
B23: Make a copy of this file. Use one copy as your master document. Another copy is a back up to look up formulas in case the master file is messed up. It is also a good idea to make back up copies of your master file periodically. Excel is great because it is flexible, but flexibility makes it a fragile tool too
B25: The main idea is to capture and classify all spending. Without turning yourself into a personal finance freak. This Excel file offers 4 ways to enter transactions: 1) Cell phone transaction entry (iPhone / Android / Any other device with internet browser) 2) Bank statement import (virtually all banks are supported. Any country. As long as your bank allows downloading transactions as a text file) 3) Subscriptions that generate transactions based on schedule 4) Manual entry with automatic formulas (see buttons under Moneyble ribbon) You don't need to be entering transactions in Excel every day or keeping receipts. You can sync up transactions from your bank every couple of weeks. Or you can be entering transactions on the go on a cell phone and pull them into Excel periodically. More details below...
A27: Table of contents | B27: Transactions Sheet
B28: Budgeting
B29: Excel File Management
B30: Import Bank Statements
B31: Mobile Phone Expense Entry
A33: Transactions Sheet | B33: Transactions sheet has 3 sections:
A34: Back to TOC | B34: - Normal regular transactions
B35: - Forecast - Transactions that will happen in the near future (you can adjust horizon in days). It let's you see your account balance on any given day within the horizon. Forecast is created from Subscriptions. You can also add an unplanned forecast transaction yourself
B36: - Subscriptions - Transaction Schedule that generates Forecast Transactions. Example: Bills, Salary, other regular transactions
B37: You can use all 3 sections or you can just use Normal transactions. Do not delete sections to avoid errors in formulas and macros. Just keep the section blank if you don't use it yet.
B38: Add all your recurring transactions as subscriptions. This step will take time initially. But it will be a timesaver in the future
B40: Imortant: When adding or deleting transactions - only use Add and Delete buttons on the Moneyble ribbon. Do not insert rows or delete rows with Excel's insert row / delete row. Ribbon buttons ensure the formulas are copied properly. If you add or delete records using normal Excel functions - you have to copy row formulas yourself starting from column R and everything to the right Moneyble ribbon comes with this file. It is not installed. It is just part of this file. It is meant to speed up common actions like filtering and editing transactions
B55: Hover over each button to see the description of what it does
B57: This template comes with 12 columns designed to hold 6 accounts. You can hide account columns that you don't use. You can add more accounts by copying one of the existing account column pair. If you create more than 6 accounts - also copy the last column on Transactions sheet (Column "AE"). Columns "Z" through "AE" are used for filtering
B58: You can hide columns or add more columns between "B" and "E". Keep it simple. This will save you time in the long run. Focus on the Budget, Savings, Net Worth rather than the transaction details
B59: You can hide columns or add more columns in the rolling total section. Columns "R" "S" "T" and "U" Adjust formulas in columns "R" and "S" to reflect your account types
B60: Do not remove or hide columns "V" through "AE". They are used by various buttons. Position of these columns might change if you add or remove columns before them. But they should start right after the last Balance column
B61: You can make a copy of the Transactions sheet. You can keep one sheet for your every day accounts and another sheet for investments / savings. Or you may want to have a separate sheet for a special project. The same column / row structure but for different accounts. Moneyble Ribbon buttons will work on copies of Transactions sheet as long as you maintain the same sheet structure One thing to remember: Import sheet is used to copy bank statements to the Transactions sheet. Import sheet will only import transactions to the original Transactions sheet
B62: If you are using weekly subtotals in the Transactions sheet - you want these subtotal records to be excluded from formulas - put "S" in the column A (Date).
B63: If Transactions sheet becomes slow due to a lot of data - perform the following steps: 1) Select large section of cells with formulas starting with column R: R3 to ACXXXX where XXXX is the row about 3 months in the past. Example if this is January select cells from the beginning of the Transactions sheet till about October of the prior year 2) Copy (Ctrl +C) 3) Don't change active cell. Stay where you are. Select Paste Special -> Values 4) Close the file. Close Excel completely 5) Reopen the file. It should perform faster now Slowliness is due to a lot of forumulas that need to be recalculated. If you replace these formulas with static values - Excel will become much more responsive. Excel can handle a lot of data. It just does not like recalculating a lot of formulas. And it is very unlikely that you will insert new transactions 3 months in the past. So these formulas in the past don't need to be recalculated
A65: Budgeting | B65: Start with simple (less than 10 categories) budget. You can always make it more complex later. You can also leverage subcategories or vendor/business name for ad-hoc filtering and search. Most people's brain cannot remember more than 5-10 numbers. And it is best if you know your monthly spend by category
A66: Back to TOC | B66: Start with every day accounts first (checking and credit cards). You can add investment accounts, mortgage or other loans later. Best to create separate sheets for such
B67: You can feed balances into the Net Worth sheet from various custom sheets: mortgage schedule, investment portfolio, etc.
B68: Create new Budget sheets for every new year by copying last year's Budget sheet and changing the year in column A1
B70: Budget Categories on Transactions Sheet and Budget Sheets are linked with formulas. As you start using new Budget Categories on the Transactions sheet - add them to the Budget sheets
B71: As you add or remove budget categories on the Budget sheet - add them in one of the months. Then copy/paste the whole month section to the other months.
B72: Important: Make sure only the Budget Categories listed on the Budget sheets are used in the Transactions sheet. The only exceptions are: 1) Transfers and 2) Reimbursable expenses, Reimbursement payments. Transactions of these two types should net out to zero. This will ensure no transactions are missed when looking at the budget
B73: One of the goals is to make sure your monthly income is always greater than your monthly expenses. Always.
A75: Excel File Management | B75: If you place this Excel file in OneDrive or similar cloud - you can open it from a cell phone too.
A76: Back to TOC | B76: Columns can be renamed on most sheets
B77: Excel sheets can be placed in any order
B78: New sheets can be added
B79: You can add (or remove) accounts on Net Worth sheet (as rows) and Transactions sheet (as columns)
B80: You can copy columns F and G on Transactions sheet and rename them to create new accounts
B81: Use first row on Net Worth sheet to define what periods (year and quarter) you want to see
B82: Net Worth Sheet can be completely changed or replaced with your existing Net Worth sheet
A85: Import Bank Statements | B85: This Excel template does not use nor store your online banking passwords
A86: Back to TOC | B86: Import and Mapping sheets are used to import transactions from your bank statement into Transactions sheet
B87: Download your bank statement (as CSV/text/Excel) from your online banking. Open it as text or Excel file. Copy-paste transactions to the Import sheet. Starting point is column A the cell right below the grey row
B88: Account Order on Import Sheet (Column "B") determins the target columns on the Transactions Sheet (Columns F and G for Account Order = 1, Columns H and I for Account Order = 2, etc.)
B89: Use the grey row to define the type of data in the columns. Check out values in the dropdown list of the cells in the grey row. Use Description 1, 2 and then 3 for columns that describe the vendor or provide any other useful information about the transaction. Text in such columns will be used to assign transactions to your descriptions based on the Mapping sheet
B90: If the column data is not useful keep the column title blank
B104: Press Validate button. Review proposed transaction description on the right. Change any proposed values to what they should be.
B105: If you don't want certain transactions to be imported (they could have been entered already using subscriptions or manually) - Remove the amount in the table on the right-hand side
B106: Use columns J, K, L, M on Import sheet to describe the transaction. You only need to do it once per each new vendor. Once the statement is imported the Mapping sheet will be updated automatically. Next time you import a transaction from the same vendor - it will pull columns J, K, L, M from the Mapping sheet. If you don't want to update Mapping for a specific transaction during import - blank out Update Mapping column
B107: Once you reviewed and adjusted transactions - press Copy to Transactions button
B108: Review copied transactions and the new account balance on the Transactions sheet
B109: Review Mapping sheet periodically. Remove city names, store numbers and other irrelevant information from Description columns (yellow) on the mapping sheet. Keep only the key words. Example: Your bank statement has a line like this as transaction description: "WHOLEFDS GLA 10336 GLASTONBURY CT AMT 239.59 " This whole description is written to the Mapping sheet. Mapped to Groceries - Whole Foods After you copy transactions - go to the Mapping sheet - remove all words after WHOLEFDS. Keep the mapping. Now all your future transactions in any WHOLEFDS will be mapped to Groceries - Whole Foods. It will take time initially. But it will become faster once your frequently used vendors are in the Mapping sheet
B110: You can use Amount column on the Mapping sheet. This is optional. You can create 2 mapping records that look the same with different amounts and drive them to different Budgets/Place/Tag/Comment combinations This can be useful If you periodically send the same amount to different people. If all transfers look the same on your statement
B111: I suggest importing bank statements for the last 6-12 months starting with the oldest. This will create transaction history and will allow you to analyze your spending / will help identify all subscriptions and frequent vendors in one shot. Use this data to set proper budgets suitable for you
B112: Rename hyperlinks on the Import sheet and change account names in the blue row as requied. Use multiple Import Statement sections (1-5) if you are importing bank statements from different banks in different formats
A114: Mobile Phone Expense Entry | B114: Expense entry on a cell phone is done using Google Forms. There is a little bit of work that has to happen. But below is a step-by-step instruction
A115: Back to TOC
B116: High-level steps:
B117: (1) Google Forms: Create Expense Entry Form
B118: (2) Google Forms: Link Form Responses to Google Sheet
B119: (3) Google Sheets: Publish Google Sheet
B120: (4) Excel: Link Google Sheet to Excel
B121: (5) Excel: Import Transaction from Google to Transactions sheet
B122: (6) Excel and Google: Delete Processed Transactions (optional)
A124: (1) Google Forms: Create Expense Entry Form
A125: Back to TOC
B126: (1.1) Use the link below to make your own copy of the Moneyble Google Form. If the link does not work go to step (1.4.1) below
B127: https://docs.google.com/forms/d/1FINGPQZEvU2gZyoJf6akOmLZfLk3J6VGjQbSFwirSqg/copy
B129: The form has the following fields:
B130: Date
B131: Account *
B132: Budget *
B133: Place
B134: Sub-Budget
B135: Comment
B136: Amount *
B137: * - required fields
B138: This Excel file is designed to work with these fields in this order. Optional fields can be left blank during form submission. If the date is blank - today's date is used.
B140: (1.2) Rename Account values to match your accounts. Add or remove values as necessary. Important: Choices entered on Google Form should exactly match the account names in the first row on the Transactions sheet in this Excel file. If you have accounts that you don't plan to use on mobile entry form - skip them. I.e. you can have 5 accounts in the Transactions sheet. But only 3 as choices in the Google Form. You will thank yourself later if you make Google Form simpler
B141: (1.3) Rename Budget field choices to match your Budget. Add or remove values as necessary. Again: Choices should match Expense Budget Categories in Excel on the Budget sheet. Likely you don't need Income Budget Categories on Google Form. But everyone's situation is different. You can enter both if you like. You can add more Budget Categories later too. Keep the Budget Category called "Other". Do not use Google's built-in "Other" option. Built-in "Other" option will give you free-form text field. We do not want free-form. We only want specific Budget names as defined in this Excel
B142: (1.4) Repeat above step for Place, Sub-Budget and Comment fields. You can also change field type from radiobutton multiple choice to just a short answer field type. If you keep the radiobuttons - make sure Google's built-in "Other..." option is included in all three fields to allow free-form text in addition to mulitple choice. Unlike Account and Budget fields which only has radiobuttons - these three fields should allow both: radiobuttons (to speed up entry for most commonly used values) and free-text
B143: (1.5) Keep Date and Amount fields as is
B145: Below steps are for creating Google Form from scratch. If you have completed steps (1.1-1.5) successfully - skip to step (1.6)
B147: (1.4.1) Open google.com
B148: (1.4.2) Click the app button in the top right corner. Scroll down. Click on Forms
B173: (1.4.3) Create new Blank form. Form Title can be anything. Expense Entry sounds simple
B184: (1.4.4) Important: Create the following 7 form entry fields. Use exact names as outlined below. Use exact same order and types
B186: 1. Name: Date
B187: Type: Date
B189: 2. Name: Account
B190: Type: Multiple Choice
B191: Important: Choices entered should exactly match the account names in the first row on the Transactions sheet in this Excel file. If you have accounts that you don't plan to use on mobile entry form - skip them. I.e. you can have 5 accounts in the Transactions sheet. But only 3 as choices in the Google Form. You will thank yourself if you make Google Form simpler
B193: 3. Name: Budget
B194: Type: Multiple Choice
B195: Again: Choices should match Expense Budget Categories in Excel on Budget sheet. Likely you don't need Income Budget Categories on Google Form. But everyone's situation is different. You can enter both expenses and income if you like. You can add more budget categories later too.
B197: 4. Name: Place
B198: Type: Short Answer or Multiple choice with Other… option
B200: 5. Name: Sub-Budget
B201: Type: Short Answer or Multiple choice with Other… option
B203: 6. Name: Comment
B204: Type: Short Answer or Multiple choice with Other… option
B206: 7. Name: Amount
B207: Type: Short Answer
B208: Response Validation: Is Number
B210: That's it for now. You can change this form in the future as you add new accounts or start tracking different budgets
B239: (1.6) Test your Form by clicking Preview button (top right corner)
B247: (1.7) Fill in the form at least once. Click Submit. We need at least one form response for testing. Note: For the first entry provide values in all fields - this will prevent issues with cell type formats in Excel. In the future - you can leave optional fields blank
B249: (1.8) Close Form Preview mode in browser. Go back to the Design mode
B250: https://docs.google.com/forms/u/0/
B252: (1.9) Add this form to your cell phone's home screen. Click Send button in Form Design view to get hyperlink to the form. The easiest way is to email the link to yourself. Then open the hyperlink on your cell phone in Chrome or Safari. Follow the screenshots below to add Google Form to you home screen as an app icon
B255: Android Chrome browser | C255: iPhone Safari
A283: (2) Google Forms: Link Form Responses to Google Sheet
A284: Back to TOC
A310: (3) Google Sheets: Publish Google Sheet to the Web
A311: Back to TOC
B312: (3.1) Google Sheet window will open up automatically. Click Share button
B322: (3.2) Change access to "Anyone with the link". Then click Copy link
A343: (4) Excel: Link Google Sheet to Excel
A344: Back to TOC
B345: (4.1) In this Excel file open Import Sheet. Click Mobile Phone hyperlink (Cell A1). Select cell B2504. Paste Google link in this cell. Note: The link contains unique Google Sheet ID of your newly created Google Sheet: long gibberish part after https://docs.google.com/spreadsheets/d/
B366: (4.2) Click Create Google Table button
B368: A new table appears in Excel Import sheet. It should contain at least one record for the Form Response you've made previously
A389: (5) Excel: Import Transaction from Google to Transactions sheet
A390: Back to TOC
B391: Note: Refresh button will fetch new records from Google. You don't have to click this button at this step since the record(s) were already fetched. But you will use this button in the future
B393: (5.1) Review transaction(s). Make sure Account name (column C) matches exactly the name(s) specified on Transactions sheet in row 1. Update Transactions sheet if necessary
B395: (5.2) Click Copy to Transactions button
A428: (6) Excel and Google: Delete Processed Transactions (optional)
A429: Back to TOC
B430: Steps below are completely optional. Expense transactions will remain in Google Form and Google Sheets. But these transactions will be ignored. You can leave them be or your can periodically delete them
B432: To delete transactions from Google Sheets click Open Google Sheets and Delete Processed Transactions button
B453: Accept message to Skip Verification
B463: -> Select All Rows with data -> Right-Click -> Delete
B466: This button will clear the table in Excel. But Google Sheets table has to be cleared manually. A new browser window will pop up with Google Sheets. Select all rows with data in Google Sheets. Right Click. Delete Rows X-X
B497: It is counterintuitive. But Google stores data in the Google Form and Google Sheets separately To delete transactions from Google Form open Google Form -> Responses -> three-dot button -> Delete all responses
A530: Keep in mind: Excel mobile app does not support VBA. So Import and other buttons in Excel will only work in Excel for Windows or Mac OS
A532: This is it. You can enter expenses on your cell phone and sync them up to Excel. Enjoy!
A534: Back to TOC

Sheet Import
A1: Mobile Phone | B1: Statement 1 | C1: Statement 2 | D1: Statement 3 | E1: Statement 4 | F1: Statement 5 | BA1: 235 | BB1: 235 | BC1: 235
A3: Bank Statement Import
A4: Go to Top
A6: Account Order: | B6: 3 | E6: Import From Date | F6: 2024-01-01
A7: Amount Rounding | B7: Round to 5 | E7: Reverse Amount Column | F7: No
A9: Date Column | B9: Amount Column | D9: Description 2 | E9: Description 1 | I9: Date | J9: Budget | K9: Place | L9: Tag | M9: Comment | N9: + | O9: - | P9: Update Mapping
A10: 2024-01-07 | B10: -17.46 | C10: - | D10: POS Purchase | E10: FPOS GRAND BAY HH BLDG CTGRAND | CV10: 7
A11: 2024-01-10 | B11: -59.17 | C11: - | D11: POS Purchase | E11: TIM HORTONS #2633 ST. ANDREWS NB | CV11: 35
A501: Bank Statement Import
A502: Go to Top
A504: Account Order: | B504: 2 | E504: Import From Date | F504: 2024-01-01
A505: Amount Rounding | B505: Round to 5 | E505: Reverse Amount Column | F505: No
A507: Date Column | B507: Description 1 | C507: Amount Column | I507: Date | J507: Budget | K507: Place | L507: Tag | M507: Comment | N507: + | O507: - | P507: Update Mapping
A1002: Bank Statement Import
A1003: Go to Top
A1005: Account Order: | B1005: 3 | E1005: Import From Date | F1005: 2024-01-01
A1006: Amount Rounding | B1006: Round to 5 | E1006: Reverse Amount Column | F1006: No
A1008: Date Column | B1008: Amount Column | D1008: Description 2 | E1008: Description 1 | I1008: Date | J1008: Budget | K1008: Place | L1008: Tag | M1008: Comment | N1008: + | O1008: - | P1008: Update Mapping
CV1015: 17
CV1017: 8
CV1018: 10
CV1019: 11
CV1020: 13
CV1021: 8
A1502: Bank Statement Import
A1503: Go to Top
A1505: Account Order: | B1505: 4 | E1505: Import From Date | F1505: 2024-01-01
A1506: Amount Rounding | B1506: Round to 5 | E1506: Reverse Amount Column | F1506: No
A1508: Date Column | B1508: Amount Column | D1508: Description 2 | E1508: Description 1 | I1508: Date | J1508: Budget | K1508: Place | L1508: Tag | M1508: Comment | N1508: + | O1508: - | P1508: Update Mapping
CV1510: 11
CV1511: 12
CV1512: 13
CV1513: 14
CV1515: 15
CV1517: 16
CV1518: 17
CV1519: 18
CV1520: 19
CV1521: 16
A2002: Bank Statement Import
A2003: Go to Top
A2005: Account Order: | B2005: 5 | E2005: Import From Date | F2005: 2024-01-01
A2006: Amount Rounding | B2006: Round to 5 | E2006: Reverse Amount Column | F2006: No
A2008: Date Column | B2008: Amount Column | D2008: Description 2 | E2008: Description 1 | I2008: Date | J2008: Budget | K2008: Place | L2008: Tag | M2008: Comment | N2008: + | O2008: - | P2008: Update Mapping
CV2010: 15
CV2011: 18
CV2012: 3
CV2013: 20
CV2015: 17
CV2017: 8
CV2018: 10
CV2019: 11
CV2020: 13
CV2021: 8
A2501: Transaction Import from Mobile Phone
A2502: Go to Top
A2503: Google Sheet ID:
A2504: Google Sheet Link:

Sheet Mapping
A1: Description 1 | B1: Description 2 | C1: Description 3 | D1: Amount | F1: Budget | G1: Place | H1: Tag | I1: Comment | J1: Columns B, C, D are optional. Fill them only if needed
A2: Mcdonald's | F2: Entertainment | G2: McDonalds | H2: Eating Out
A3: ADT Security | F3: Bills | G3: ADT | H3: House | I3: Security
A4: Bell Aliant | F4: Bills | G4: Bell Aliant | H4: Utilities | I4: Internet
A5: CANADA GAMES | F5: Bills | G5: Aquatic | H5: Fitness | I5: Swimming
A6: FOODLAND | F6: Groceries | G6: Sobeys | H6: Groceries
A7: FPOS GRAND BAY HH BLDG CTGRAND | F7: Shopping | G7: Home Hardware
A8: GLOBAL PET | F8: Groceries | G8: Global PetFood | H8: Cat
A9: KINGSBRAE | F9: Entertainment | G9: St Andrews | H9: Park | I9: Pass
A10: MEDAVIE BLUE CROSS | F10: Reimbursement | G10: Rose | H10: Nata | I10: Acupuncture
A11: MEDICINE SHOPPE | F11: Groceries | G11: Medicine Shoppe | H11: Drugs
A12: MORTGAGEPROTECT | F12: Bills | G12: Mortgage Protect | H12: Insurance | I12: Life
A13: PAYMENT-THANK YOU SCOTIABANK TRANSIT | F13: Transfer | G13: Scotia
A14: TD ON-LINE | F14: Car | G14: TD | H14: Loan | I14: Pacifica
A15: VIRGIN MOBILE | F15: Bills | G15: Virgin | H15: Utilities | I15: Phone
A16: WWW COSTCO | F16: Groceries | G16: Costco | H16: Groceries
A17: Ikea | F17: Other | G17: Ikea | H17: House | I17: Closet
A18: CDN TIRE STORE | F18: Shopping | G18: Canadian Tire | H18: Me | I18: Tools
A19: FREE INTERAC E-TRANSFER | B19: WITHDRAWAL | D19: 105 | F19: Reimbursement | G19: Rose | H19: Nata | I19: Acupuncture
A20: FREE INTERAC E-TRANSFER | B20: WITHDRAWAL | D20: 315 | F20: Reimbursement | G20: Cheryl | H20: Nata | I20: Acupuncture
A21: EnergieNB Power | B21: Miscellaneous Payment | F21: Bills | G21: NB Power | H21: Utility | I21: Electricity
A22: CAN TIRE STORE | F22: Shopping | G22: Canadian Tire | H22: Me | I22: Tools
A23: HM Hennes Mauritz Inc. Toronto ON | F23: Shopping | G23: H&M | I23: Clothes
A24: Amazon.ca Prime Member amazon.ca/priBC | F24: Bills | G24: Amazon | H24: Subscription | I24: Prime
A25: PETSMART INC. 2263 MONCTON NB | F25: Groceries | G25: Petsmart Inc. | H25: Cat | I25: Food
A26: RESURGO MONCTON NB | F26: Groceries | G26: Resurgo | H26: Unknown
A27: HM Hennes Mauritz Inc. Toronto ON | F27: Shopping | G27: H&M | I27: Clothes
A28: SAINT JOHN SUPERSTORE SAINT JOHN NB | F28: Groceries | G28: Superstore | H28: Groceries
A29: NETFLIX.COM 866-716-0414 ON | F29: Bills | G29: Netflix | H29: Utilities | I29: TV
A30: WHOLEFDS | F30: Groceries | G30: Whole Foods | H30: Groceries
A31: AIR CAN* 0149173247042AIRCANADA.COMMB | F31: Reimbursement | G31: Air Canada | I31: Air
A32: aliexpress Vancouver BC | F32: Shopping | G32: Aliexpress
A33: STAPLES STORE | F33: Shopping | G33: Staples Store | H33: Kids | I33: Back to School
A34: PUBLIC MOBILE 855-4782542 BC | F34: Bills | G34: Public Mobile | H34: Kids | I34: Cell Phone
A35: TIM HORTONS | F35: Entertainment | G35: Tim Hortons | H35: Eating Out
A36: PUMPKIN PATCH SAINT JOHN NB | F36: Groceries | G36: Pumpkin Patch | H36: Groceries
A37: SQ *MCGUIRE CHOCOLATE COMSaint AndrewsNB | F37: Entertainment | G37: St Andrews | H37: Ice-cream
A38: AMZN Mktp CA*TX12T4QE2 WWW.AMAZON.CAON | F38: Shopping | G38: Amazon
A39: AMZN Mktp | F39: Shopping | G39: Amazon
A40: GRAND BAY PHARMACY GRAND BAY-WESNB | F40: Groceries | G40: Guardians | H40: Groceries
A41: CIRCLE K / IRVING | F41: Car | G41: Irving | H41: Prius | I41: Gas
A42: SERVICE NB - ONLINE / EN FREDERICTON NB | F42: Car | G42: Government | H42: Prius | I42: Registration
A43: AMZN Mktp | F43: Shopping | G43: Amazon
A44: HARBOUR STATION 506-632-6103 NB | F44: Entertainment | G44: Harbour Station | H44: Tickets | I44: Circe
A45: Amazon.ca | F45: Shopping | G45: Amazon
A46: TEMU.COM | F46: Shopping | G46: Temu
A47: STUDIOTAX SOFTWARE GLOUCESTER ON | F47: Other | G47: Studiotax | H47: Tax | I47: Software
A48: SHOPPERS DRUG MART | F48: Entertainment | G48: Shoppers Drug | H48: Travel | I48: Passport Pictures
A49: AMAZON* 702-6393622-15 DOWNTOWN TOROON | F49: Shopping | G49: Amazon
A50: SEQUOIA ON TRINITY MONCTON NB | F50: Groceries | G50: Sequoia | H50: Groceries
A51: OASIS TRAMPOLINE PARK SAINT JOHN NB | F51: Entertainment | G51: Oasis | H51: Kids | I51: Trampoline Park
A52: SOBEYS | F52: Groceries | G52: Sobeys | H52: Groceries
A53: SERVICE CANADA SAINT JOH SAINT JOHN NB | F53: Entertainment | G53: Government | H53: Travel | I53: Passports

Sheet Transactions
A1: Date ↓ | B1: Budget | C1: Place | D1: Sub-Budget | E1: Comment | F1: Cash | G1: Cr1 | H1: Checking | I1: Cr2 | J1: Visa | K1: Cr3 | L1: MC | M1: Cr4 | N1: Visa2 | O1: Cr5 | P1: Chk 2 | Q1: Cr6 | R1: Debit | S1: Credit Cards | T1: Balance | U1: Reimbursements | V1: Month | W1: Year | X1: Amount | Y1: Forecast | Z1: Account 1 | AA1: Account 2 | AB1: Account 3 | AC1: Account 4 | AD1: Account 5 | AE1: Account 6 | AY1: Do not delete these values: | AZ1: 3020 | BA1: 17 | BB1: 23 | BC1: 26
A2: 2021-12-31 | B2: Initial Balance | F2: 100 | H2: 5000 | K2: 3000 | R2: =F2+H2+P2-G2-I2-Q2 -> 5100 | S2: =J2+L2+N2-K2-M2-O2 -> -3000 | T2: =F2+H2+J2+L2+N2+P2-G2-I2-K2-M2-O2-Q2 -> 2100 | V2: =MONTH(A2) -> 12 | W2: =YEAR(A2) -> 2021 | X2: =F2+H2+J2+L2+N2+P2-G2-I2-K2-M2-O2-Q2 -> 2100 | Z2: =F2-G2 -> 100 | AA2: =H2-I2 -> 5000 | AB2: =J2-K2 -> -3000 | AC2: =L2-M2 -> 0 | AD2: =N2-O2 -> 0 | AE2: =P2-Q2 -> 0
A3: 2024-03-05 | B3: Groceries | C3: Superstore | K3: 390 | R3: 0 | S3: -390 | T3: -390 | U3: =IF(B3="Reimbursement",U2+X3,IF(B3="Settled",U2+X3,U2)) -> 0 | V3: 3 | W3: 2024 | X3: =F3+H3+J3+L3+N3+P3-G3-I3-K3-M3-O3-Q3 -> -390 | Z3: =F3-G3 -> 0 | AA3: =H3-I3 -> 0 | AB3: =J3-K3 -> -390 | AC3: =L3-M3 -> 0 | AD3: =N3-O3 -> 0 | AE3: =P3-Q3 -> 0 | COV3: Dollar Store | COW3: Dollar Store | COX3: Dollar Store | COY3: Dollar Store | COZ3: Dollar Store | CPA3: Dollar Store | CPB3: Dollar Store | CPC3: Dollar Store | CPD3: Dollar Store | CPE3: Dollar Store
A4: 2024-03-05 | B4: Entertainment | C4: Cineplex | D4: Tickets | E4: Movie | K4: 40 | R4: 0 | S4: -40 | T4: -40 | U4: 0 | V4: 3 | W4: 2024 | X4: =F4+H4+J4+L4+N4+P4-G4-I4-K4-M4-O4-Q4 -> -40 | Z4: =F4-G4 -> 0 | AA4: =H4-I4 -> 0 | AB4: =J4-K4 -> -40 | AC4: =L4-M4 -> 0 | AD4: =N4-O4 -> 0 | AE4: =P4-Q4 -> 0
A5: 2024-03-05 | B5: Savings | C5: SCOTIA | D5: RESP | E5: Deposit | I5: 615 | R5: -615 | S5: 0 | T5: -615 | U5: 0 | V5: 3 | W5: 2024 | X5: -615 | Z5: 0 | AA5: -615 | AB5: 0 | AC5: 0 | AD5: 0 | AE5: 0
A6: 2024-03-07 | B6: Car | C6: Shell | D6: Gas | E6: Pacifica | K6: 115 | R6: 0 | S6: -115 | T6: -115 | U6: =IF(B6="Reimbursement",U5+X6,IF(B6="Settled",U5+X6,U5)) -> 0 | V6: 3 | W6: 2024 | X6: =F6+H6+J6+L6+N6+P6-G6-I6-K6-M6-O6-Q6 -> -115 | Z6: =F6-G6 -> 0 | AA6: =H6-I6 -> 0 | AB6: =J6-K6 -> -115 | AC6: =L6-M6 -> 0 | AD6: =N6-O6 -> 0 | AE6: =P6-Q6 -> 0
A7: 2024-03-07 | B7: Bills | C7: Virgin | D7: Utilities | E7: Cell Phone | K7: 40 | R7: 0 | S7: -40 | T7: -40 | U7: 0 | V7: 3 | W7: 2024 | X7: -40 | Z7: 0 | AA7: 0 | AB7: -40 | AC7: 0 | AD7: 0 | AE7: 0
A8: 2024-03-07 | B8: Charity | C8: Romero House | I8: 100 | R8: -100 | S8: 0 | T8: -100 | U8: 0 | V8: 3 | W8: 2024 | X8: =F8+H8+J8+L8+N8+P8-G8-I8-K8-M8-O8-Q8 -> -100 | Z8: =F8-G8 -> 0 | AA8: =H8-I8 -> -100 | AB8: =J8-K8 -> 0 | AC8: =L8-M8 -> 0 | AD8: =N8-O8 -> 0 | AE8: =P8-Q8 -> 0
A9: 2024-03-10 | B9: Shopping | C9: Amazon | D9: Electronics | E9: Media Player | K9: 95 | R9: =R8+F9+H9+P9-G9-I9-Q9 -> -100 | S9: =S8+J9+L9+N9-K9-M9-O9 -> -95 | T9: =T8+F9+H9+J9+L9+N9+P9-G9-I9-K9-M9-O9-Q9 -> -195 | U9: =IF(B9="Reimbursement",U8+X9,IF(B9="Settled",U8+X9,U8)) -> 0 | V9: 3 | W9: 2024 | X9: -95 | Z9: 0 | AA9: 0 | AB9: -95 | AC9: 0 | AD9: 0 | AE9: 0 | COV9: Dollar Store | COW9: Dollar Store | COX9: Dollar Store | COY9: Dollar Store | COZ9: Dollar Store | CPA9: Dollar Store | CPB9: Dollar Store | CPC9: Dollar Store | CPD9: Dollar Store | CPE9: Dollar Store
A10: 2024-03-10 | B10: Bills | C10: Virgin | D10: Utilities | E10: Cell Phone | K10: 40 | R10: -100 | S10: -135 | T10: -235 | U10: 0 | V10: 3 | W10: 2024 | X10: -40 | Z10: 0 | AA10: 0 | AB10: -40 | AC10: 0 | AD10: 0 | AE10: 0 | COV10: Dollar Store | COW10: Dollar Store | COX10: Dollar Store | COY10: Dollar Store | COZ10: Dollar Store | CPA10: Dollar Store | CPB10: Dollar Store | CPC10: Dollar Store | CPD10: Dollar Store | CPE10: Dollar Store
A11: 2024-03-11 | B11: Salary | C11: Employer 1 | H11: 3000 | R11: 2900 | S11: -135 | T11: 2765 | U11: 0 | V11: 3 | W11: 2024 | X11: 3000 | Z11: 0 | AA11: 3000 | AB11: 0 | AC11: 0 | AD11: 0 | AE11: 0 | COV11: Dollar Store | COW11: Dollar Store | COX11: Dollar Store | COY11: Dollar Store | COZ11: Dollar Store | CPA11: Dollar Store | CPB11: Dollar Store | CPC11: Dollar Store | CPD11: Dollar Store | CPE11: Dollar Store
A12: 2024-03-12 | B12: Reimbursement | C12: Rose | D12: Me | E12: Acupuncture | I12: 100 | R12: 2800 | S12: -135 | T12: 2665 | U12: -100 | V12: 3 | W12: 2024 | X12: -100 | Z12: 0 | AA12: -100 | AB12: 0 | AC12: 0 | AD12: 0 | AE12: 0 | COV12: Dollar Store | COW12: Dollar Store | COX12: Dollar Store | COY12: Dollar Store | COZ12: Dollar Store | CPA12: Dollar Store | CPB12: Dollar Store | CPC12: Dollar Store | CPD12: Dollar Store | CPE12: Dollar Store
A13: 2024-03-12 | B13: Health | C13: Rose | D13: Me | E13: Acupuncture | I13: 20 | R13: 2780 | S13: -135 | T13: 2645 | U13: -100 | V13: 3 | W13: 2024 | X13: -20 | Z13: 0 | AA13: -20 | AB13: 0 | AC13: 0 | AD13: 0 | AE13: 0
A14: 2024-03-13 | B14: Reimbursement | C14: Rose | D14: Me | E14: Acupuncture | H14: 100 | R14: 2880 | S14: -135 | T14: 2745 | U14: 0 | V14: 3 | W14: 2024 | X14: 100 | Z14: 0 | AA14: 100 | AB14: 0 | AC14: 0 | AD14: 0 | AE14: 0
A15: 2024-03-15 | B15: Transfer | C15: SCOTIA | D15: Credit Card | I15: 2000 | J15: 2000 | R15: =R14+F15+H15+P15-G15-I15-Q15 -> 880 | S15: =S14+J15+L15+N15-K15-M15-O15 -> 1865 | T15: =T14+F15+H15+J15+L15+N15+P15-G15-I15-K15-M15-O15-Q15 -> 2745 | U15: 0 | V15: 3 | W15: 2024 | X15: =F15+H15+J15+L15+N15+P15-G15-I15-K15-M15-O15-Q15 -> 0 | Z15: =F15-G15 -> 0 | AA15: =H15-I15 -> -2000 | AB15: =J15-K15 -> 2000 | AC15: =L15-M15 -> 0 | AD15: =N15-O15 -> 0 | AE15: =P15-Q15 -> 0
A16: 2024-03-15 | B16: Other | C16: AirBNB | D16: Travel | E16: Hotel | K16: 555 | R16: =R15+F16+H16+P16-G16-I16-Q16 -> 880 | S16: =S15+J16+L16+N16-K16-M16-O16 -> 1310 | T16: =T15+F16+H16+J16+L16+N16+P16-G16-I16-K16-M16-O16-Q16 -> 2190 | U16: =IF(B16="Reimbursement",U15+X16,IF(B16="Settled",U15+X16,U15)) -> 0 | V16: 3 | W16: 2024 | X16: =F16+H16+J16+L16+N16+P16-G16-I16-K16-M16-O16-Q16 -> -555 | Z16: =F16-G16 -> 0 | AA16: =H16-I16 -> 0 | AB16: =J16-K16 -> -555 | AC16: =L16-M16 -> 0 | AD16: =N16-O16 -> 0 | AE16: =P16-Q16 -> 0
B17: Account Balance | G17: =SUMIFS(F$2:F16,$A$2:$A16,"<>S",$A$2:$A16,"<>")-SUMIFS(G$2:G16,$A$2:$A16,"<>S",$A$2:$A16,"<>") -> 100 | I17: =SUMIFS(H$2:H16,$A$2:$A16,"<>S",$A$2:$A16,"<>")-SUMIFS(I$2:I16,$A$2:$A16,"<>S",$A$2:$A16,"<>") -> 5265 | K17: =SUMIFS(J$2:J16,$A$2:$A16,"<>S",$A$2:$A16,"<>")-SUMIFS(K$2:K16,$A$2:$A16,"<>S",$A$2:$A16,"<>") -> -2275 | M17: =SUMIFS(L$2:L16,$A$2:$A16,"<>S",$A$2:$A16,"<>")-SUMIFS(M$2:M16,$A$2:$A16,"<>S",$A$2:$A16,"<>") -> 0 | O17: =SUMIFS(N$2:N16,$A$2:$A16,"<>S",$A$2:$A16,"<>")-SUMIFS(O$2:O16,$A$2:$A16,"<>S",$A$2:$A16,"<>") -> 0 | Q17: =SUMIFS(P$2:P16,$A$2:$A16,"<>S",$A$2:$A16,"<>")-SUMIFS(Q$2:Q16,$A$2:$A16,"<>S",$A$2:$A16,"<>") -> 0 | R17: =G17+I17+Q17 -> 5365 | S17: =K17+M17+O17 -> -2275 | T17: =G17+I17+K17+M17+O17+Q17 -> 3090 | U17: 0 | V17: 1 | W17: 1900 | AW17: Key123 | AX17: Key123 | AY17: Key123 | AZ17: Key123 | BA17: Key123 | BB17: Key123 | BC17: Key123 | BD17: Key123 | BE17: Key123 | BF17: Do not delete the value to the left of this text. The text you are reading can be deleted.
A18: 2024-03-21 | B18: Bills | C18: Bell | D18: Utilities | E18: Internet | K18: 110 | R18: =R17+F18+H18+P18-G18-I18-Q18 -> 5365 | S18: =S17+J18+L18+N18-K18-M18-O18 -> -2385 | T18: =T17+F18+H18+J18+L18+N18+P18-G18-I18-K18-M18-O18-Q18 -> 2980 | U18: 0 | V18: 3 | W18: 2024 | X18: =F18+H18+J18+L18+N18+P18-G18-I18-K18-M18-O18-Q18 -> -110 | Y18: ="F" -> F | Z18: =F18-G18 -> 0 | AA18: =H18-I18 -> 0 | AB18: =J18-K18 -> -110 | AC18: =L18-M18 -> 0 | AD18: =N18-O18 -> 0 | AE18: =P18-Q18 -> 0
A19: 2024-03-25 | B19: Salary | C19: Employer 1 | H19: 3000 | R19: =R18+F19+H19+P19-G19-I19-Q19 -> 8365 | S19: =S18+J19+L19+N19-K19-M19-O19 -> -2385 | T19: =T18+F19+H19+J19+L19+N19+P19-G19-I19-K19-M19-O19-Q19 -> 5980 | U19: 0 | V19: 3 | W19: 2024 | X19: 3000 | Y19: F | Z19: 0 | AA19: 3000 | AB19: 0 | AC19: 0 | AD19: 0 | AE19: 0
A20: 2024-03-29 | B20: Bills | C20: RBC | D20: Mortgage | E20: Interest | I20: 500 | R20: =R19+F20+H20+P20-G20-I20-Q20 -> 7865 | S20: =S19+J20+L20+N20-K20-M20-O20 -> -2385 | T20: =T19+F20+H20+J20+L20+N20+P20-G20-I20-K20-M20-O20-Q20 -> 5480 | U20: 0 | V20: 3 | W20: 2024 | X20: -500 | Y20: F | Z20: 0 | AA20: -500 | AB20: 0 | AC20: 0 | AD20: 0 | AE20: 0
A21: 2024-03-29 | B21: Savings | C21: RBC | D21: Mortgage | E21: Principal | I21: 1100 | R21: =R20+F21+H21+P21-G21-I21-Q21 -> 6765 | S21: =S20+J21+L21+N21-K21-M21-O21 -> -2385 | T21: =T20+F21+H21+J21+L21+N21+P21-G21-I21-K21-M21-O21-Q21 -> 4380 | U21: 0 | V21: 3 | W21: 2024 | X21: =F21+H21+J21+L21+N21+P21-G21-I21-K21-M21-O21-Q21 -> -1100 | Y21: F | Z21: =F21-G21 -> 0 | AA21: =H21-I21 -> -1100 | AB21: =J21-K21 -> 0 | AC21: =L21-M21 -> 0 | AD21: =N21-O21 -> 0 | AE21: =P21-Q21 -> 0
A22: 2024-04-05 | B22: Savings | C22: SCOTIA | D22: RESP | E22: Deposit | I22: 615 | R22: 6150 | S22: -2385 | T22: 3765 | U22: 0 | V22: 4 | W22: 2024 | X22: -615 | Y22: F | Z22: 0 | AA22: -615 | AB22: 0 | AC22: 0 | AD22: 0 | AE22: 0
B23: Forecasted Balance | G23: =SUMIFS(F$2:F22,$A$2:$A22,"<>S",$A$2:$A22,"<>")-SUMIFS(G$2:G22,$A$2:$A22,"<>S",$A$2:$A22,"<>") -> 100 | I23: =SUMIFS(H$2:H22,$A$2:$A22,"<>S",$A$2:$A22,"<>")-SUMIFS(I$2:I22,$A$2:$A22,"<>S",$A$2:$A22,"<>") -> 6050 | K23: =SUMIFS(J$2:J22,$A$2:$A22,"<>S",$A$2:$A22,"<>")-SUMIFS(K$2:K22,$A$2:$A22,"<>S",$A$2:$A22,"<>") -> -2385 | M23: =SUMIFS(L$2:L22,$A$2:$A22,"<>S",$A$2:$A22,"<>")-SUMIFS(M$2:M22,$A$2:$A22,"<>S",$A$2:$A22,"<>") -> 0 | O23: =SUMIFS(N$2:N22,$A$2:$A22,"<>S",$A$2:$A22,"<>")-SUMIFS(O$2:O22,$A$2:$A22,"<>S",$A$2:$A22,"<>") -> 0 | Q23: =SUMIFS(P$2:P22,$A$2:$A22,"<>S",$A$2:$A22,"<>")-SUMIFS(Q$2:Q22,$A$2:$A22,"<>S",$A$2:$A22,"<>") -> 0 | R23: =G23+I23+Q23 -> 6150 | S23: =K23+M23+O23 -> -2385 | T23: =G23+I23+K23+M23+O23+Q23 -> 3765 | U23: 0 | AW23: Key456 | AX23: Key456 | AY23: Key456 | AZ23: Key456 | BA23: Key456 | BB23: Key456 | BC23: Key456 | BD23: Key456 | BE23: Key456 | BF23: Do not delete the value to the left of this text. The text you are reading can be deleted.
A26: Start Date | B26: Subscriptions | C26: Horizon: 30 days | T26: Schedule | AW26: Key789 | AX26: Key789 | AY26: Key789 | AZ26: Key789 | BA26: Key789 | BB26: Key789 | BC26: Key789 | BD26: Key789 | BE26: Key789 | BF26: Do not delete the value to the left of this text. The text you are reading can be deleted.
A27: 2024-04-07 | B27: Bills | C27: Virgin | D27: Utilities | E27: Cell Phone | K27: 40 | T27: Weekly
A28: 2024-04-08 | B28: Salary | C28: Employer 1 | H28: 3000 | T28: Bi-weekly
A29: 2024-04-13 | B29: Transfer | C29: SCOTIA | D29: Credit Card | I29: 3000 | J29: 3000 | T29: Monthly
A30: 2024-04-21 | B30: Bills | C30: Bell | D30: Utilities | E30: Internet | K30: 110 | T30: Monthly
A31: 2024-04-29 | B31: Bills | C31: RBC | D31: Mortgage | E31: Interest | I31: 500 | T31: Monthly
A32: 2024-04-29 | B32: Savings | C32: RBC | D32: Mortgage | E32: Principal | I32: 1100 | T32: Monthly
A33: 2024-05-05 | B33: Savings | C33: SCOTIA | D33: RESP | E33: Deposit | I33: 615 | T33: Monthly

Sheet Investments
A1: Date ↓ | B1: Budget | C1: Place | D1: Sub-Budget | E1: Comment | F1: Type | G1: RRSP | H1: Cr1 | I1: RPP | J1: Cr2 | K1: RESP | L1: Cr3 | M1: Scotia Me | N1: Cr4 | O1: Scotia Nata | P1: Cr5 | Q1: Scotia Exchange | R1: Cr6 | S1: Long-Term | T1: Short-term | U1: Balance | V1: Reimbursements | W1: Month | X1: Year | Y1: Amount | Z1: Forecast | AA1: Account 1 | AB1: Account 2 | AC1: Account 3 | AD1: Account 4 | AE1: Account 5 | AF1: Account 6 | AZ1: Do not delete these values: | BA1: 2814 | BB1: 2817 | BC1: 2820 | BD1: 2374
A2: 2021-12-31 | B2: Initial Balance | G2: 200000 | K2: 50000 | S2: =G2+I2+K2-H2-J2-L2 -> 250000 | T2: =M2+O2+Q2-N2-P2-R2 -> 0 | U2: =G2+I2+K2+M2+O2+Q2-H2-J2-L2-N2-P2-R2 -> 250000 | W2: =MONTH(A2) -> 12 | X2: =YEAR(A2) -> 2021 | Y2: =G2+I2+K2+M2+O2+Q2-H2-J2-L2-N2-P2-R2 -> 250000 | AA2: =G2-H2 -> 200000 | AB2: =I2-J2 -> 0 | AC2: =K2-L2 -> 50000 | AD2: =M2-N2 -> 0 | AE2: =O2-P2 -> 0 | AF2: =Q2-R2 -> 0
A3: 2024-02-26 | B3: Pension | C3: KIK | D3: RRSP | E3: Deposit | G3: 360 | S3: =S2+G3+I3+K3-H3-J3-L3 -> 250360 | T3: =T2+M3+O3+Q3-N3-P3-R3 -> 0 | U3: =U2+G3+I3+K3+M3+O3+Q3-H3-J3-L3-N3-P3-R3 -> 250360 | V3: =IF(B3="Reimbursement",V2+Y3,IF(B3="Settled",V2+Y3,V2)) -> 0 | W3: 2 | X3: 2024 | Y3: =G3+I3+K3+M3+O3+Q3-H3-J3-L3-N3-P3-R3 -> 360 | AA3: =G3-H3 -> 360 | AB3: =I3-J3 -> 0 | AC3: =K3-L3 -> 0 | AD3: =M3-N3 -> 0 | AE3: =O3-P3 -> 0 | AF3: =Q3-R3 -> 0 | COW3: Dollar Store | COX3: Dollar Store | COY3: Dollar Store | COZ3: Dollar Store | CPA3: Dollar Store | CPB3: Dollar Store | CPC3: Dollar Store | CPD3: Dollar Store | CPE3: Dollar Store | CPF3: Dollar Store
A4: 2024-03-05 | B4: Kids Education | C4: Me | D4: RESP | E4: Deposit | K4: 615 | S4: =S3+G4+I4+K4-H4-J4-L4 -> 250975 | T4: =T3+M4+O4+Q4-N4-P4-R4 -> 0 | U4: =U3+G4+I4+K4+M4+O4+Q4-H4-J4-L4-N4-P4-R4 -> 250975 | V4: =IF(B4="Reimbursement",#REF!+Y4,IF(B4="Settled",#REF!+Y4,#REF!)) ->  | W4: 3 | X4: 2024 | Y4: 615 | AA4: 0 | AB4: 0 | AC4: 615 | AD4: 0 | AE4: 0 | AF4: 0 | COW4: Dollar Store | COX4: Dollar Store | COY4: Dollar Store | COZ4: Dollar Store | CPA4: Dollar Store | CPB4: Dollar Store | CPC4: Dollar Store | CPD4: Dollar Store | CPE4: Dollar Store | CPF4: Dollar Store
A5: 2024-03-05 | B5: Kids Education | C5: Government | D5: RESP | E5: Grant | K5: 125 | S5: 251100 | T5: 0 | U5: 251100 | W5: =MONTH(A5) -> 3 | X5: =YEAR(A5) -> 2024 | Y5: =G5+I5+K5+M5+O5+Q5-H5-J5-L5-N5-P5-R5 -> 125 | AA5: =G5-H5 -> 0 | AB5: =I5-J5 -> 0 | AC5: =K5-L5 -> 125 | AD5: =M5-N5 -> 0 | AE5: =O5-P5 -> 0 | AF5: =Q5-R5 -> 0
A6: 2024-03-11 | B6: Pension | C6: KIK | D6: RRSP | E6: Deposit | G6: 360 | S6: 251460 | T6: 0 | U6: =U5+G6+I6+K6+M6+O6+Q6-H6-J6-L6-N6-P6-R6 -> 251460 | V6: =IF(B6="Reimbursement",V1+Y6,IF(B6="Settled",V1+Y6,V1)) -> Reimbursements | W6: 3 | X6: 2024 | Y6: 360 | AA6: 360 | AB6: 0 | AC6: 0 | AD6: 0 | AE6: 0 | AF6: 0
A7: 2024-03-12 | B7: Transfer | C7: Scotia | D7: Contribution | M7: 5000 | S7: 251460 | T7: 5000 | U7: =U6+G7+I7+K7+M7+O7+Q7-H7-J7-L7-N7-P7-R7 -> 256460 | V7: =IF(B7="Reimbursement",V2+Y7,IF(B7="Settled",V2+Y7,V2)) -> 0 | W7: =MONTH(A7) -> 3 | X7: =YEAR(A7) -> 2024 | Y7: =G7+I7+K7+M7+O7+Q7-H7-J7-L7-N7-P7-R7 -> 5000 | AA7: =G7-H7 -> 0 | AB7: =I7-J7 -> 0 | AC7: =K7-L7 -> 0 | AD7: =M7-N7 -> 5000 | AE7: =O7-P7 -> 0 | AF7: =Q7-R7 -> 0
A8: 2024-03-12 | B8: Stocks | C8: Scotia | D8: Trade | E8: 150AYX@47.50 | M8: 7125 | N8: 7125 | S8: 251460 | T8: 5000 | U8: =U7+G8+I8+K8+M8+O8+Q8-H8-J8-L8-N8-P8-R8 -> 256460 | V8: =IF(B8="Reimbursement",V3+Y8,IF(B8="Settled",V3+Y8,V3)) -> 0 | W8: 3 | X8: 2024 | Y8: 0 | AA8: 0 | AB8: 0 | AC8: 0 | AD8: 0 | AE8: 0 | AF8: 0
A9: 2024-03-15 | B9: Stocks | C9: Scotia | D9: Growth | E9: 150AYX@50 | M9: 375 | S9: 251460 | T9: 5375 | U9: =U8+G9+I9+K9+M9+O9+Q9-H9-J9-L9-N9-P9-R9 -> 256835 | V9: =IF(B9="Reimbursement",V8+Y9,IF(B9="Settled",V8+Y9,V8)) -> 0 | W9: =MONTH(A9) -> 3 | X9: =YEAR(A9) -> 2024 | Y9: =G9+I9+K9+M9+O9+Q9-H9-J9-L9-N9-P9-R9 -> 375 | AA9: =G9-H9 -> 0 | AB9: =I9-J9 -> 0 | AC9: =K9-L9 -> 0 | AD9: =M9-N9 -> 375 | AE9: =O9-P9 -> 0 | AF9: =Q9-R9 -> 0
B10: Account Balance | H10: =SUMIFS(G$2:G9,$A$2:$A9,"<>S",$A$2:$A9,"<>")-SUMIFS(H$2:H9,$A$2:$A9,"<>S",$A$2:$A9,"<>") -> 200720 | J10: =SUMIFS(I$2:I9,$A$2:$A9,"<>S",$A$2:$A9,"<>")-SUMIFS(J$2:J9,$A$2:$A9,"<>S",$A$2:$A9,"<>") -> 0 | L10: =SUMIFS(K$2:K9,$A$2:$A9,"<>S",$A$2:$A9,"<>")-SUMIFS(L$2:L9,$A$2:$A9,"<>S",$A$2:$A9,"<>") -> 50740 | N10: =SUMIFS(M$2:M9,$A$2:$A9,"<>S",$A$2:$A9,"<>")-SUMIFS(N$2:N9,$A$2:$A9,"<>S",$A$2:$A9,"<>") -> 5375 | P10: =SUMIFS(O$2:O9,$A$2:$A9,"<>S",$A$2:$A9,"<>")-SUMIFS(P$2:P9,$A$2:$A9,"<>S",$A$2:$A9,"<>") -> 0 | R10: =SUMIFS(Q$2:Q9,$A$2:$A9,"<>S",$A$2:$A9,"<>")-SUMIFS(R$2:R9,$A$2:$A9,"<>S",$A$2:$A9,"<>") -> 0 | S10: =H10+J10+L10 -> 251460 | T10: =R10+N10+P10 -> 5375 | U10: =H10+J10+L10+N10+P10+R10 -> 256835 | V10: =IF(B10="Reimbursement",V9+Y10,IF(B10="Settled",V9+Y10,V9)) -> 0 | W10: 1 | X10: 1900 | BA10: Key123 | BB10: Do not delete the value to the left of this text. The text you are reading can be deleted.
A11: 2024-03-25 | B11: Pension | C11: KIK | D11: RRSP | E11: Deposit | G11: 360 | S11: =S10+G11+I11+K11-H11-J11-L11 -> 251820 | T11: =T10+M11+O11+Q11-N11-P11-R11 -> 5375 | U11: =U10+G11+I11+K11+M11+O11+Q11-H11-J11-L11-N11-P11-R11 -> 257195 | V11: =IF(B11="Reimbursement",V6+Y11,IF(B11="Settled",V6+Y11,V6)) -> Reimbursements | W11: 3 | X11: 2024 | Y11: =G11+I11+K11+M11+O11+Q11-H11-J11-L11-N11-P11-R11 -> 360 | Z11: ="F" -> F | AA11: =G11-H11 -> 360 | AB11: =I11-J11 -> 0 | AC11: =K11-L11 -> 0 | AD11: =M11-N11 -> 0 | AE11: =O11-P11 -> 0 | AF11: =Q11-R11 -> 0
A12: 2024-03-31 | B12: Growth | C12: Manulife | D12: RRSP | E12: Interest | G12: 8000 | S12: 259820 | T12: 5375 | U12: 265195 | V12: =IF(B12="Reimbursement",V7+Y12,IF(B12="Settled",V7+Y12,V7)) -> 0 | W12: =MONTH(A12) -> 3 | X12: =YEAR(A12) -> 2024 | Y12: =G12+I12+K12+M12+O12+Q12-H12-J12-L12-N12-P12-R12 -> 8000 | Z12: F | AA12: =G12-H12 -> 8000 | AB12: =I12-J12 -> 0 | AC12: =K12-L12 -> 0 | AD12: =M12-N12 -> 0 | AE12: =O12-P12 -> 0 | AF12: =Q12-R12 -> 0
A13: 2024-03-31 | B13: Growth | C13: Scotia | D13: RESP | E13: Interest | K13: 2000 | S13: 261820 | T13: 5375 | U13: 267195 | V13: =IF(B13="Reimbursement",V8+Y13,IF(B13="Settled",V8+Y13,V8)) -> 0 | W13: 3 | X13: 2024 | Y13: =G13+I13+K13+M13+O13+Q13-H13-J13-L13-N13-P13-R13 -> 2000 | Z13: F | AA13: =G13-H13 -> 0 | AB13: =I13-J13 -> 0 | AC13: =K13-L13 -> 2000 | AD13: =M13-N13 -> 0 | AE13: =O13-P13 -> 0 | AF13: =Q13-R13 -> 0
A14: 2024-04-05 | B14: Kids Education | C14: Me | D14: RESP | E14: Deposit | K14: 615 | S14: 262435 | T14: 5375 | U14: 267810 | V14: =IF(B14="Reimbursement",V9+Y14,IF(B14="Settled",V9+Y14,V9)) -> 0 | W14: =MONTH(A14) -> 4 | X14: =YEAR(A14) -> 2024 | Y14: =G14+I14+K14+M14+O14+Q14-H14-J14-L14-N14-P14-R14 -> 615 | Z14: F | AA14: =G14-H14 -> 0 | AB14: =I14-J14 -> 0 | AC14: =K14-L14 -> 615 | AD14: =M14-N14 -> 0 | AE14: =O14-P14 -> 0 | AF14: =Q14-R14 -> 0
A15: 2024-04-05 | B15: Kids Education | C15: Government | D15: RESP | E15: Grant | K15: 125 | S15: 262560 | T15: 5375 | U15: 267935 | V15: =IF(B15="Reimbursement",V10+Y15,IF(B15="Settled",V10+Y15,V10)) -> 0 | W15: 4 | X15: 2024 | Y15: =G15+I15+K15+M15+O15+Q15-H15-J15-L15-N15-P15-R15 -> 125 | Z15: F | AA15: =G15-H15 -> 0 | AB15: =I15-J15 -> 0 | AC15: =K15-L15 -> 125 | AD15: =M15-N15 -> 0 | AE15: =O15-P15 -> 0 | AF15: =Q15-R15 -> 0
A16: 2024-04-08 | B16: Pension | C16: KIK | D16: RRSP | E16: Deposit | G16: 360 | S16: 262920 | T16: 5375 | U16: 268295 | V16: =IF(B16="Reimbursement",V15+Y16,IF(B16="Settled",V15+Y16,V15)) -> 0 | W16: =MONTH(A16) -> 4 | X16: =YEAR(A16) -> 2024 | Y16: 360 | Z16: F | AA16: 360 | AB16: 0 | AC16: 0 | AD16: 0 | AE16: 0 | AF16: 0
B17: Forecasted Balance | H17: =SUMIFS(G$2:G16,$A$2:$A16,"<>S",$A$2:$A16,"<>")-SUMIFS(H$2:H16,$A$2:$A16,"<>S",$A$2:$A16,"<>") -> 209440 | J17: =SUMIFS(I$2:I16,$A$2:$A16,"<>S",$A$2:$A16,"<>")-SUMIFS(J$2:J16,$A$2:$A16,"<>S",$A$2:$A16,"<>") -> 0 | L17: =SUMIFS(K$2:K16,$A$2:$A16,"<>S",$A$2:$A16,"<>")-SUMIFS(L$2:L16,$A$2:$A16,"<>S",$A$2:$A16,"<>") -> 53480 | N17: =SUMIFS(M$2:M16,$A$2:$A16,"<>S",$A$2:$A16,"<>")-SUMIFS(N$2:N16,$A$2:$A16,"<>S",$A$2:$A16,"<>") -> 5375 | P17: =SUMIFS(O$2:O16,$A$2:$A16,"<>S",$A$2:$A16,"<>")-SUMIFS(P$2:P16,$A$2:$A16,"<>S",$A$2:$A16,"<>") -> 0 | R17: =SUMIFS(Q$2:Q16,$A$2:$A16,"<>S",$A$2:$A16,"<>")-SUMIFS(R$2:R16,$A$2:$A16,"<>S",$A$2:$A16,"<>") -> 0 | S17: =H17+J17+R17 -> 209440 | T17: =L17+N17+P17 -> 58855 | U17: =H17+J17+L17+N17+P17+R17 -> 268295 | V17: =IF(B17="Reimbursement",V16+Y17,IF(B17="Settled",V16+Y17,V16)) -> 0 | BA17: Key456 | BB17: Do not delete the value to the left of this text. The text you are reading can be deleted.
A20: Start Date | B20: Subscriptions | C20: Horizon: 30 days | U20: Schedule | BA20: Key789 | BB20: Do not delete the value to the left of this text. The text you are reading can be deleted.
A21: 2024-04-22 | B21: Pension | C21: KIK | D21: RRSP | E21: Deposit | G21: 560 | U21: Bi-Weekly
A22: 2024-05-05 | B22: Kids Education | C22: Me | D22: RESP | E22: Deposit | H22: 40 | K22: 615 | U22: Monthly
A23: 2024-05-05 | B23: Kids Education | C23: Government | D23: RESP | E23: Grant | K23: 125 | U23: Monthly
A24: 2024-06-30 | B24: Growth | C24: Manulife | D24: RRSP | E24: Interest | G24: 8000 | U24: Quarterly
A25: 2024-06-30 | B25: Growth | C25: Scotia | D25: RESP | E25: Interest | K25: 2000 | U25: Quarterly

Sheet Budget
A1: Income | G1: Expenses
A2: Budget Category | B2: Last Year Same Period | C2: Last Month | D2: Budget | E2: Percent | G2: Budget Category | H2: Last Year Same Period | I2: Last Month | J2: Avg Last 3 Months | K2: Budget | L2: Percent
A3: Salary | B3: =SUMIFS(Transactions!X:X,Transactions!W:W,YEAR(TODAY())-1,Transactions!V:V,MONTH(TODAY()),Transactions!B:B,IncBudgetTable[[#This Row],[Budget Category]]) -> 0 | C3: =SUMIFS(Transactions!X:X,Transactions!W:W,IF(MONTH(TODAY())=1,YEAR(TODAY())-1,YEAR(TODAY())),Transactions!V:V,MOD(MONTH(TODAY())-2,12)+1,Transactions!B:B,IncBudgetTable[[#This Row],[Budget Category]]) -> 0 | D3: 6000 | E3: =IncBudgetTable[[#This Row],[Budget]]/IncBudgetTable[[#Totals],[Budget]] -> 0.8921933086 | G3: Groceries | H3: =SUMIFS(Transactions!X:X,Transactions!W:W,YEAR(TODAY())-1,Transactions!V:V,MONTH(TODAY()),Transactions!B:B,ExpBudgetTable[[#This Row],[Budget Category]])*-1 -> 0 | I3: =SUMIFS(Transactions!X:X,Transactions!W:W,IF(MONTH(TODAY())=1,YEAR(TODAY())-1,YEAR(TODAY())),Transactions!V:V,MOD(MONTH(TODAY())-2,12)+1,Transactions!B:B,ExpBudgetTable[[#This Row],[Budget Category]])*-1 -> 0 | J3: =AVERAGE(SUMIFS(Transactions!X:X,Transactions!W:W,IF(MONTH(TODAY())=1,YEAR(TODAY())-1,YEAR(TODAY())),Transactions!V:V,MOD(MONTH(TODAY())-2,12)+1,Transactions!B:B,ExpBudgetTable[[#This Row],[Budget Category]]),SUMIFS(Transactions!X:X,Transactions!W:W,IF(MONTH(TODAY())=1,YEAR(TODAY())-1,YEAR(TODAY())),Transactions!V:V,MOD(MONTH(TODAY())-3,12)+1,Transactions!B:B,ExpBudgetTable[[#This Row],[Budget Category]]),SUMIFS(Transactions!X:X,Transactions!W:W,IF(MONTH(TODAY())=1,YEAR(TODAY())-1,YEAR(TODAY())),Transactions!V:V,MOD(MONTH(TODAY())-4,12)+1,Transactions!B:B,ExpBudgetTable[[#This Row],[Budget Category]]))*-1 -> 130 | K3: 1185 | L3: =ExpBudgetTable[[#This Row],[Budget]]/ExpBudgetTable[[#Totals],[Budget]] -> 0.2267942584
A4: Bonus | B4: =SUMIFS(Transactions!X:X,Transactions!W:W,YEAR(TODAY())-1,Transactions!V:V,MONTH(TODAY()),Transactions!B:B,IncBudgetTable[[#This Row],[Budget Category]]) -> 0 | C4: =SUMIFS(Transactions!X:X,Transactions!W:W,IF(MONTH(TODAY())=1,YEAR(TODAY())-1,YEAR(TODAY())),Transactions!V:V,MOD(MONTH(TODAY())-2,12)+1,Transactions!B:B,IncBudgetTable[[#This Row],[Budget Category]]) -> 0 | E4: =IncBudgetTable[[#This Row],[Budget]]/IncBudgetTable[[#Totals],[Budget]] -> 0 | G4: Entertainment | H4: =SUMIFS(Transactions!X:X,Transactions!W:W,YEAR(TODAY())-1,Transactions!V:V,MONTH(TODAY()),Transactions!B:B,ExpBudgetTable[[#This Row],[Budget Category]])*-1 -> 0 | I4: =SUMIFS(Transactions!X:X,Transactions!W:W,IF(MONTH(TODAY())=1,YEAR(TODAY())-1,YEAR(TODAY())),Transactions!V:V,MOD(MONTH(TODAY())-2,12)+1,Transactions!B:B,ExpBudgetTable[[#This Row],[Budget Category]])*-1 -> 0 | J4: =AVERAGE(SUMIFS(Transactions!X:X,Transactions!W:W,IF(MONTH(TODAY())=1,YEAR(TODAY())-1,YEAR(TODAY())),Transactions!V:V,MOD(MONTH(TODAY())-2,12)+1,Transactions!B:B,ExpBudgetTable[[#This Row],[Budget Category]]),SUMIFS(Transactions!X:X,Transactions!W:W,IF(MONTH(TODAY())=1,YEAR(TODAY())-1,YEAR(TODAY())),Transactions!V:V,MOD(MONTH(TODAY())-3,12)+1,Transactions!B:B,ExpBudgetTable[[#This Row],[Budget Category]]),SUMIFS(Transactions!X:X,Transactions!W:W,IF(MONTH(TODAY())=1,YEAR(TODAY())-1,YEAR(TODAY())),Transactions!V:V,MOD(MONTH(TODAY())-4,12)+1,Transactions!B:B,ExpBudgetTable[[#This Row],[Budget Category]]))*-1 -> 13.33333333 | K4: 400 | L4: =ExpBudgetTable[[#This Row],[Budget]]/ExpBudgetTable[[#Totals],[Budget]] -> 0.07655502392
A5: Kids | B5: =SUMIFS(Transactions!X:X,Transactions!W:W,YEAR(TODAY())-1,Transactions!V:V,MONTH(TODAY()),Transactions!B:B,IncBudgetTable[[#This Row],[Budget Category]]) -> 0 | C5: =SUMIFS(Transactions!X:X,Transactions!W:W,IF(MONTH(TODAY())=1,YEAR(TODAY())-1,YEAR(TODAY())),Transactions!V:V,MOD(MONTH(TODAY())-2,12)+1,Transactions!B:B,IncBudgetTable[[#This Row],[Budget Category]]) -> 0 | D5: 725 | E5: =IncBudgetTable[[#This Row],[Budget]]/IncBudgetTable[[#Totals],[Budget]] -> 0.1078066914 | G5: Shopping | H5: =SUMIFS(Transactions!X:X,Transactions!W:W,YEAR(TODAY())-1,Transactions!V:V,MONTH(TODAY()),Transactions!B:B,ExpBudgetTable[[#This Row],[Budget Category]])*-1 -> 0 | I5: =SUMIFS(Transactions!X:X,Transactions!W:W,IF(MONTH(TODAY())=1,YEAR(TODAY())-1,YEAR(TODAY())),Transactions!V:V,MOD(MONTH(TODAY())-2,12)+1,Transactions!B:B,ExpBudgetTable[[#This Row],[Budget Category]])*-1 -> 0 | J5: =AVERAGE(SUMIFS(Transactions!X:X,Transactions!W:W,IF(MONTH(TODAY())=1,YEAR(TODAY())-1,YEAR(TODAY())),Transactions!V:V,MOD(MONTH(TODAY())-2,12)+1,Transactions!B:B,ExpBudgetTable[[#This Row],[Budget Category]]),SUMIFS(Transactions!X:X,Transactions!W:W,IF(MONTH(TODAY())=1,YEAR(TODAY())-1,YEAR(TODAY())),Transactions!V:V,MOD(MONTH(TODAY())-3,12)+1,Transactions!B:B,ExpBudgetTable[[#This Row],[Budget Category]]),SUMIFS(Transactions!X:X,Transactions!W:W,IF(MONTH(TODAY())=1,YEAR(TODAY())-1,YEAR(TODAY())),Transactions!V:V,MOD(MONTH(TODAY())-4,12)+1,Transactions!B:B,ExpBudgetTable[[#This Row],[Budget Category]]))*-1 -> 31.66666667 | K5: 500 | L5: =ExpBudgetTable[[#This Row],[Budget]]/ExpBudgetTable[[#Totals],[Budget]] -> 0.0956937799
A6: Side Project | B6: =SUMIFS(Transactions!X:X,Transactions!W:W,YEAR(TODAY())-1,Transactions!V:V,MONTH(TODAY()),Transactions!B:B,IncBudgetTable[[#This Row],[Budget Category]]) -> 0 | C6: =SUMIFS(Transactions!X:X,Transactions!W:W,IF(MONTH(TODAY())=1,YEAR(TODAY())-1,YEAR(TODAY())),Transactions!V:V,MOD(MONTH(TODAY())-2,12)+1,Transactions!B:B,IncBudgetTable[[#This Row],[Budget Category]]) -> 0 | E6: =IncBudgetTable[[#This Row],[Budget]]/IncBudgetTable[[#Totals],[Budget]] -> 0 | G6: Bills | H6: =SUMIFS(Transactions!X:X,Transactions!W:W,YEAR(TODAY())-1,Transactions!V:V,MONTH(TODAY()),Transactions!B:B,ExpBudgetTable[[#This Row],[Budget Category]])*-1 -> 0 | I6: =SUMIFS(Transactions!X:X,Transactions!W:W,IF(MONTH(TODAY())=1,YEAR(TODAY())-1,YEAR(TODAY())),Transactions!V:V,MOD(MONTH(TODAY())-2,12)+1,Transactions!B:B,ExpBudgetTable[[#This Row],[Budget Category]])*-1 -> 0 | J6: =AVERAGE(SUMIFS(Transactions!X:X,Transactions!W:W,IF(MONTH(TODAY())=1,YEAR(TODAY())-1,YEAR(TODAY())),Transactions!V:V,MOD(MONTH(TODAY())-2,12)+1,Transactions!B:B,ExpBudgetTable[[#This Row],[Budget Category]]),SUMIFS(Transactions!X:X,Transactions!W:W,IF(MONTH(TODAY())=1,YEAR(TODAY())-1,YEAR(TODAY())),Transactions!V:V,MOD(MONTH(TODAY())-3,12)+1,Transactions!B:B,ExpBudgetTable[[#This Row],[Budget Category]]),SUMIFS(Transactions!X:X,Transactions!W:W,IF(MONTH(TODAY())=1,YEAR(TODAY())-1,YEAR(TODAY())),Transactions!V:V,MOD(MONTH(TODAY())-4,12)+1,Transactions!B:B,ExpBudgetTable[[#This Row],[Budget Category]]))*-1 -> 230 | K6: 1700 | L6: =ExpBudgetTable[[#This Row],[Budget]]/ExpBudgetTable[[#Totals],[Budget]] -> 0.3253588517
A7: Other Income | B7: =SUMIFS(Transactions!X:X,Transactions!W:W,YEAR(TODAY())-1,Transactions!V:V,MONTH(TODAY()),Transactions!B:B,IncBudgetTable[[#This Row],[Budget Category]]) -> 0 | C7: =SUMIFS(Transactions!X:X,Transactions!W:W,IF(MONTH(TODAY())=1,YEAR(TODAY())-1,YEAR(TODAY())),Transactions!V:V,MOD(MONTH(TODAY())-2,12)+1,Transactions!B:B,IncBudgetTable[[#This Row],[Budget Category]]) -> 0 | E7: =IncBudgetTable[[#This Row],[Budget]]/IncBudgetTable[[#Totals],[Budget]] -> 0 | G7: Car | H7: =SUMIFS(Transactions!X:X,Transactions!W:W,YEAR(TODAY())-1,Transactions!V:V,MONTH(TODAY()),Transactions!B:B,ExpBudgetTable[[#This Row],[Budget Category]])*-1 -> 0 | I7: =SUMIFS(Transactions!X:X,Transactions!W:W,IF(MONTH(TODAY())=1,YEAR(TODAY())-1,YEAR(TODAY())),Transactions!V:V,MOD(MONTH(TODAY())-2,12)+1,Transactions!B:B,ExpBudgetTable[[#This Row],[Budget Category]])*-1 -> 0 | J7: =AVERAGE(SUMIFS(Transactions!X:X,Transactions!W:W,IF(MONTH(TODAY())=1,YEAR(TODAY())-1,YEAR(TODAY())),Transactions!V:V,MOD(MONTH(TODAY())-2,12)+1,Transactions!B:B,ExpBudgetTable[[#This Row],[Budget Category]]),SUMIFS(Transactions!X:X,Transactions!W:W,IF(MONTH(TODAY())=1,YEAR(TODAY())-1,YEAR(TODAY())),Transactions!V:V,MOD(MONTH(TODAY())-3,12)+1,Transactions!B:B,ExpBudgetTable[[#This Row],[Budget Category]]),SUMIFS(Transactions!X:X,Transactions!W:W,IF(MONTH(TODAY())=1,YEAR(TODAY())-1,YEAR(TODAY())),Transactions!V:V,MOD(MONTH(TODAY())-4,12)+1,Transactions!B:B,ExpBudgetTable[[#This Row],[Budget Category]]))*-1 -> 38.33333333 | K7: 840 | L7: =ExpBudgetTable[[#This Row],[Budget]]/ExpBudgetTable[[#Totals],[Budget]] -> 0.1607655502
C8: =SUMIFS(Transactions!X:X,Transactions!W:W,IF(MONTH(TODAY())=1,YEAR(TODAY())-1,YEAR(TODAY())),Transactions!V:V,MOD(MONTH(TODAY())-2,12)+1,Transactions!B:B,IncBudgetTable[[#This Row],[Budget Category]]) -> 0 | G8: Charity | H8: =SUMIFS(Transactions!X:X,Transactions!W:W,YEAR(TODAY())-1,Transactions!V:V,MONTH(TODAY()),Transactions!B:B,ExpBudgetTable[[#This Row],[Budget Category]])*-1 -> 0 | I8: =SUMIFS(Transactions!X:X,Transactions!W:W,IF(MONTH(TODAY())=1,YEAR(TODAY())-1,YEAR(TODAY())),Transactions!V:V,MOD(MONTH(TODAY())-2,12)+1,Transactions!B:B,ExpBudgetTable[[#This Row],[Budget Category]])*-1 -> 0 | J8: =AVERAGE(SUMIFS(Transactions!X:X,Transactions!W:W,IF(MONTH(TODAY())=1,YEAR(TODAY())-1,YEAR(TODAY())),Transactions!V:V,MOD(MONTH(TODAY())-2,12)+1,Transactions!B:B,ExpBudgetTable[[#This Row],[Budget Category]]),SUMIFS(Transactions!X:X,Transactions!W:W,IF(MONTH(TODAY())=1,YEAR(TODAY())-1,YEAR(TODAY())),Transactions!V:V,MOD(MONTH(TODAY())-3,12)+1,Transactions!B:B,ExpBudgetTable[[#This Row],[Budget Category]]),SUMIFS(Transactions!X:X,Transactions!W:W,IF(MONTH(TODAY())=1,YEAR(TODAY())-1,YEAR(TODAY())),Transactions!V:V,MOD(MONTH(TODAY())-4,12)+1,Transactions!B:B,ExpBudgetTable[[#This Row],[Budget Category]]))*-1 -> 33.33333333 | K8: 400 | L8: =ExpBudgetTable[[#This Row],[Budget]]/ExpBudgetTable[[#Totals],[Budget]] -> 0.07655502392
C9: =SUMIFS(Transactions!X:X,Transactions!W:W,IF(MONTH(TODAY())=1,YEAR(TODAY())-1,YEAR(TODAY())),Transactions!V:V,MOD(MONTH(TODAY())-2,12)+1,Transactions!B:B,IncBudgetTable[[#This Row],[Budget Category]]) -> 0 | G9: Health | H9: =SUMIFS(Transactions!X:X,Transactions!W:W,YEAR(TODAY())-1,Transactions!V:V,MONTH(TODAY()),Transactions!B:B,ExpBudgetTable[[#This Row],[Budget Category]])*-1 -> 0 | I9: =SUMIFS(Transactions!X:X,Transactions!W:W,IF(MONTH(TODAY())=1,YEAR(TODAY())-1,YEAR(TODAY())),Transactions!V:V,MOD(MONTH(TODAY())-2,12)+1,Transactions!B:B,ExpBudgetTable[[#This Row],[Budget Category]])*-1 -> 0 | J9: =AVERAGE(SUMIFS(Transactions!X:X,Transactions!W:W,IF(MONTH(TODAY())=1,YEAR(TODAY())-1,YEAR(TODAY())),Transactions!V:V,MOD(MONTH(TODAY())-2,12)+1,Transactions!B:B,ExpBudgetTable[[#This Row],[Budget Category]]),SUMIFS(Transactions!X:X,Transactions!W:W,IF(MONTH(TODAY())=1,YEAR(TODAY())-1,YEAR(TODAY())),Transactions!V:V,MOD(MONTH(TODAY())-3,12)+1,Transactions!B:B,ExpBudgetTable[[#This Row],[Budget Category]]),SUMIFS(Transactions!X:X,Transactions!W:W,IF(MONTH(TODAY())=1,YEAR(TODAY())-1,YEAR(TODAY())),Transactions!V:V,MOD(MONTH(TODAY())-4,12)+1,Transactions!B:B,ExpBudgetTable[[#This Row],[Budget Category]]))*-1 -> 6.666666667 | K9: 200 | L9: =ExpBudgetTable[[#This Row],[Budget]]/ExpBudgetTable[[#Totals],[Budget]] -> 0.03827751196
B10: =SUMIFS(Transactions!X:X,Transactions!W:W,YEAR(TODAY())-1,Transactions!V:V,MONTH(TODAY()),Transactions!B:B,IncBudgetTable[[#This Row],[Budget Category]]) -> 0 | C10: =SUMIFS(Transactions!X:X,Transactions!W:W,IF(MONTH(TODAY())=1,YEAR(TODAY())-1,YEAR(TODAY())),Transactions!V:V,MOD(MONTH(TODAY())-2,12)+1,Transactions!B:B,IncBudgetTable[[#This Row],[Budget Category]]) -> 0 | G10: Other | H10: =SUMIFS(Transactions!X:X,Transactions!W:W,YEAR(TODAY())-1,Transactions!V:V,MONTH(TODAY()),Transactions!B:B,ExpBudgetTable[[#This Row],[Budget Category]])*-1 -> 0 | I10: =SUMIFS(Transactions!X:X,Transactions!W:W,IF(MONTH(TODAY())=1,YEAR(TODAY())-1,YEAR(TODAY())),Transactions!V:V,MOD(MONTH(TODAY())-2,12)+1,Transactions!B:B,ExpBudgetTable[[#This Row],[Budget Category]])*-1 -> 0 | J10: =AVERAGE(SUMIFS(Transactions!X:X,Transactions!W:W,IF(MONTH(TODAY())=1,YEAR(TODAY())-1,YEAR(TODAY())),Transactions!V:V,MOD(MONTH(TODAY())-2,12)+1,Transactions!B:B,ExpBudgetTable[[#This Row],[Budget Category]]),SUMIFS(Transactions!X:X,Transactions!W:W,IF(MONTH(TODAY())=1,YEAR(TODAY())-1,YEAR(TODAY())),Transactions!V:V,MOD(MONTH(TODAY())-3,12)+1,Transactions!B:B,ExpBudgetTable[[#This Row],[Budget Category]]),SUMIFS(Transactions!X:X,Transactions!W:W,IF(MONTH(TODAY())=1,YEAR(TODAY())-1,YEAR(TODAY())),Transactions!V:V,MOD(MONTH(TODAY())-4,12)+1,Transactions!B:B,ExpBudgetTable[[#This Row],[Budget Category]]))*-1 -> 185 | L10: =ExpBudgetTable[[#This Row],[Budget]]/ExpBudgetTable[[#Totals],[Budget]] -> 0 | N10: Savings | O10: =IncBudgetTable[[#Totals],[Budget]]-ExpBudgetTable[[#Totals],[Budget]] -> 1500
A11: Total | D11: =SUBTOTAL(109,IncBudgetTable[Budget]) -> 6725 | E11: =SUBTOTAL(109,IncBudgetTable[Percent]) -> 1 | G11: Total | K11: =SUBTOTAL(109,ExpBudgetTable[Budget]) -> 5225 | L11: =SUBTOTAL(109,ExpBudgetTable[Percent]) -> 1 | N11: Savings to Income Ratio | O11: =(IncBudgetTable[[#Totals],[Budget]]-ExpBudgetTable[[#Totals],[Budget]])/IncBudgetTable[[#Totals],[Budget]] -> 0.2230483271
A13: Investments | G13: Savings
A14: Budget Category | B14: Last Year Same Period | C14: Last Month | D14: Budget | E14: Percent | G14: Budget Category | H14: Last Year Same Period | I14: Last Month | J14: Avg Last 3 Months | K14: Budget | L14: Percent
A15: Stocks | B15: =SUMIFS(Transactions!X:X,Transactions!W:W,YEAR(TODAY())-1,Transactions!V:V,MONTH(TODAY()),Transactions!B:B,InvBudgetTable[[#This Row],[Budget Category]]) -> 0 | C15: =SUMIFS(Transactions!X:X,Transactions!W:W,IF(MONTH(TODAY())=1,YEAR(TODAY())-1,YEAR(TODAY())),Transactions!V:V,MOD(MONTH(TODAY())-2,12)+1,Transactions!B:B,InvBudgetTable[[#This Row],[Budget Category]]) -> 0 | E15: =InvBudgetTable[[#This Row],[Budget]]/InvBudgetTable[[#Totals],[Budget]] -> 0 | G15: Mortgage Principal | H15: =SUMIFS(Transactions!X:X,Transactions!W:W,YEAR(TODAY())-1,Transactions!V:V,MONTH(TODAY()),Transactions!B:B,SavBudgetTable[[#This Row],[Budget Category]])*-1 -> 0 | I15: =SUM(I10:I14) -> 0 | J15: =AVERAGE(SUMIFS(Transactions!X:X,Transactions!W:W,IF(MONTH(TODAY())=1,YEAR(TODAY())-1,YEAR(TODAY())),Transactions!V:V,MOD(MONTH(TODAY())-2,12)+1,Transactions!B:B,SavBudgetTable[[#This Row],[Budget Category]]),SUMIFS(Transactions!X:X,Transactions!W:W,IF(MONTH(TODAY())=1,YEAR(TODAY())-1,YEAR(TODAY())),Transactions!V:V,MOD(MONTH(TODAY())-3,12)+1,Transactions!B:B,SavBudgetTable[[#This Row],[Budget Category]]),SUMIFS(Transactions!X:X,Transactions!W:W,IF(MONTH(TODAY())=1,YEAR(TODAY())-1,YEAR(TODAY())),Transactions!V:V,MOD(MONTH(TODAY())-4,12)+1,Transactions!B:B,SavBudgetTable[[#This Row],[Budget Category]]))*-1 -> 0 | K15: 1100 | L15: =SavBudgetTable[[#This Row],[Budget]]/SavBudgetTable[[#Totals],[Budget]] -> 1 | N15: Cash Savings | O15: =IncBudgetTable[[#Totals],[Budget]]-ExpBudgetTable[[#Totals],[Budget]]-SavBudgetTable[[#Totals],[Budget]] -> 400
A16: RESP Earnings | B16: =SUMIFS(Transactions!X:X,Transactions!W:W,YEAR(TODAY())-1,Transactions!V:V,MONTH(TODAY()),Transactions!B:B,InvBudgetTable[[#This Row],[Budget Category]]) -> 0 | C16: =SUMIFS(Transactions!X:X,Transactions!W:W,IF(MONTH(TODAY())=1,YEAR(TODAY())-1,YEAR(TODAY())),Transactions!V:V,MOD(MONTH(TODAY())-2,12)+1,Transactions!B:B,InvBudgetTable[[#This Row],[Budget Category]]) -> 0 | E16: =InvBudgetTable[[#This Row],[Budget]]/InvBudgetTable[[#Totals],[Budget]] -> 0 | G16: RESP | H16: =SUMIFS(Transactions!X:X,Transactions!W:W,YEAR(TODAY())-1,Transactions!V:V,MONTH(TODAY()),Transactions!B:B,SavBudgetTable[[#This Row],[Budget Category]])*-1 -> 0 | I16: =SUM(I11:I15) -> 0 | J16: =AVERAGE(SUMIFS(Transactions!X:X,Transactions!W:W,IF(MONTH(TODAY())=1,YEAR(TODAY())-1,YEAR(TODAY())),Transactions!V:V,MOD(MONTH(TODAY())-2,12)+1,Transactions!B:B,SavBudgetTable[[#This Row],[Budget Category]]),SUMIFS(Transactions!X:X,Transactions!W:W,IF(MONTH(TODAY())=1,YEAR(TODAY())-1,YEAR(TODAY())),Transactions!V:V,MOD(MONTH(TODAY())-3,12)+1,Transactions!B:B,SavBudgetTable[[#This Row],[Budget Category]]),SUMIFS(Transactions!X:X,Transactions!W:W,IF(MONTH(TODAY())=1,YEAR(TODAY())-1,YEAR(TODAY())),Transactions!V:V,MOD(MONTH(TODAY())-4,12)+1,Transactions!B:B,SavBudgetTable[[#This Row],[Budget Category]]))*-1 -> 0 | L16: =SavBudgetTable[[#This Row],[Budget]]/SavBudgetTable[[#Totals],[Budget]] -> 0 | N16: Total Savings | O16: =IncBudgetTable[[#Totals],[Budget]]-ExpBudgetTable[[#Totals],[Budget]]+InvBudgetTable[[#Totals],[Budget]] -> 2000
A17: RRSP | B17: =SUMIFS(Transactions!X:X,Transactions!W:W,YEAR(TODAY())-1,Transactions!V:V,MONTH(TODAY()),Transactions!B:B,InvBudgetTable[[#This Row],[Budget Category]]) -> 0 | C17: =SUMIFS(Transactions!X:X,Transactions!W:W,IF(MONTH(TODAY())=1,YEAR(TODAY())-1,YEAR(TODAY())),Transactions!V:V,MOD(MONTH(TODAY())-2,12)+1,Transactions!B:B,InvBudgetTable[[#This Row],[Budget Category]]) -> 0 | D17: 500 | E17: =InvBudgetTable[[#This Row],[Budget]]/InvBudgetTable[[#Totals],[Budget]] -> 1 | I17: =SUM(I12:I16) -> 0 | J17: =AVERAGE(SUMIFS(Transactions!X:X,Transactions!W:W,IF(MONTH(TODAY())=1,YEAR(TODAY())-1,YEAR(TODAY())),Transactions!V:V,MOD(MONTH(TODAY())-2,12)+1,Transactions!B:B,SavBudgetTable[[#This Row],[Budget Category]]),SUMIFS(Transactions!X:X,Transactions!W:W,IF(MONTH(TODAY())=1,YEAR(TODAY())-1,YEAR(TODAY())),Transactions!V:V,MOD(MONTH(TODAY())-3,12)+1,Transactions!B:B,SavBudgetTable[[#This Row],[Budget Category]]),SUMIFS(Transactions!X:X,Transactions!W:W,IF(MONTH(TODAY())=1,YEAR(TODAY())-1,YEAR(TODAY())),Transactions!V:V,MOD(MONTH(TODAY())-4,12)+1,Transactions!B:B,SavBudgetTable[[#This Row],[Budget Category]]))*-1 -> 0 | L17: =SavBudgetTable[[#This Row],[Budget]]/SavBudgetTable[[#Totals],[Budget]] -> 0
E18: =InvBudgetTable[[#This Row],[Budget]]/InvBudgetTable[[#Totals],[Budget]] -> 0 | I18: 0 | J18: =AVERAGE(SUMIFS(Transactions!X:X,Transactions!W:W,IF(MONTH(TODAY())=1,YEAR(TODAY())-1,YEAR(TODAY())),Transactions!V:V,MOD(MONTH(TODAY())-2,12)+1,Transactions!B:B,SavBudgetTable[[#This Row],[Budget Category]]),SUMIFS(Transactions!X:X,Transactions!W:W,IF(MONTH(TODAY())=1,YEAR(TODAY())-1,YEAR(TODAY())),Transactions!V:V,MOD(MONTH(TODAY())-3,12)+1,Transactions!B:B,SavBudgetTable[[#This Row],[Budget Category]]),SUMIFS(Transactions!X:X,Transactions!W:W,IF(MONTH(TODAY())=1,YEAR(TODAY())-1,YEAR(TODAY())),Transactions!V:V,MOD(MONTH(TODAY())-4,12)+1,Transactions!B:B,SavBudgetTable[[#This Row],[Budget Category]]))*-1 -> 0 | L18: =SavBudgetTable[[#This Row],[Budget]]/SavBudgetTable[[#Totals],[Budget]] -> 0 | N18: Savings to Income Ratio | O18: =O16/IncBudgetTable[[#Totals],[Budget]] -> 0.2973977695
E19: =InvBudgetTable[[#This Row],[Budget]]/InvBudgetTable[[#Totals],[Budget]] -> 0 | I19: 0 | J19: =AVERAGE(SUMIFS(Transactions!X:X,Transactions!W:W,IF(MONTH(TODAY())=1,YEAR(TODAY())-1,YEAR(TODAY())),Transactions!V:V,MOD(MONTH(TODAY())-2,12)+1,Transactions!B:B,SavBudgetTable[[#This Row],[Budget Category]]),SUMIFS(Transactions!X:X,Transactions!W:W,IF(MONTH(TODAY())=1,YEAR(TODAY())-1,YEAR(TODAY())),Transactions!V:V,MOD(MONTH(TODAY())-3,12)+1,Transactions!B:B,SavBudgetTable[[#This Row],[Budget Category]]),SUMIFS(Transactions!X:X,Transactions!W:W,IF(MONTH(TODAY())=1,YEAR(TODAY())-1,YEAR(TODAY())),Transactions!V:V,MOD(MONTH(TODAY())-4,12)+1,Transactions!B:B,SavBudgetTable[[#This Row],[Budget Category]]))*-1 -> 0 | L19: =SavBudgetTable[[#This Row],[Budget]]/SavBudgetTable[[#Totals],[Budget]] -> 0
A20: Total | D20: =SUBTOTAL(109,InvBudgetTable[Budget]) -> 500 | E20: =SUBTOTAL(109,InvBudgetTable[Percent]) -> 1 | G20: Total | K20: =SUBTOTAL(109,SavBudgetTable[Budget]) -> 1100 | L20: =SUBTOTAL(109,SavBudgetTable[Percent]) -> 1

Sheet Budget 2024
A1: 2024 | C1: Income Category | D1: Budget | E1: Actual | F1: Variance | H1: Expense Category | I1: Avg Last 3 Months | J1: Last Month | K1: Budget | L1: Actual | M1: Incl Forecast | N1: Available | O1: Savings | P1: KPI | Q1: =HYPERLINK("#"&"K2","Go to Top") -> Go to Top | R1: =HYPERLINK("#"&"K"&MATCH(MONTH(TODAY()),A:A,0)+9,"Current Month") -> Current Month | S1: =HYPERLINK("#"&"K131","Go to Bottom") -> Go to Bottom
A2: 1 | B2: =TEXT(A2*28,"mmmm") -> January | C2: =Budget!$A$3 -> Salary | D2: 6000 | E2: =SUMIFS(Transactions!X:X,Transactions!Y:Y,"<>F",Transactions!W:W,$A$1,Transactions!V:V,$A2,Transactions!B:B,C2) -> 0 | F2: =E2-D2 -> -6000 | H2: =Budget!$G$3 -> Groceries | J2: =SUMIFS(Transactions!X:X,Transactions!W:W,$A$1-1,Transactions!V:V,12,Transactions!B:B,H2)*-1 -> 0 | K2: 1185 | L2: =SUMIFS(Transactions!$X:$X,Transactions!$Y:$Y,"<>F",Transactions!$W:$W,$A$1,Transactions!$V:$V,$A2,Transactions!$B:$B,$H2)*-1 -> 0 | M2: =SUMIFS(Transactions!$X:$X,Transactions!$W:$W,$A$1,Transactions!$V:$V,$A2,Transactions!$B:$B,$H2)*-1 -> 0 | N2: =K2-M2 -> 1185 | O2: Budget Cash Savings | P2: =$D11-$K11 -> 720
C3: =Budget!$A$4 -> Bonus | E3: =SUMIFS(Transactions!X:X,Transactions!Y:Y,"<>F",Transactions!W:W,$A$1,Transactions!V:V,$A2,Transactions!B:B,C3) -> 0 | F3: 0 | H3: =Budget!$G$4 -> Entertainment | J3: =SUMIFS(Transactions!X:X,Transactions!W:W,$A$1-1,Transactions!V:V,12,Transactions!B:B,H3)*-1 -> 0 | K3: 400 | L3: =SUMIFS(Transactions!$X:$X,Transactions!$Y:$Y,"<>F",Transactions!$W:$W,$A$1,Transactions!$V:$V,$A2,Transactions!$B:$B,$H3)*-1 -> 0 | M3: =SUMIFS(Transactions!$X:$X,Transactions!$W:$W,$A$1,Transactions!$V:$V,$A2,Transactions!$B:$B,$H3)*-1 -> 0 | N3: 400 | O3: Cash Savings | P3: =$E11-$L11 -> 0
C4: =Budget!$A$5 -> Kids | D4: 725 | E4: =SUMIFS(Transactions!X:X,Transactions!Y:Y,"<>F",Transactions!W:W,$A$1,Transactions!V:V,$A2,Transactions!B:B,C4) -> 0 | F4: -725 | H4: =Budget!$G$5 -> Shopping | J4: =SUMIFS(Transactions!X:X,Transactions!W:W,$A$1-1,Transactions!V:V,12,Transactions!B:B,H4)*-1 -> 0 | K4: 500 | L4: =SUMIFS(Transactions!$X:$X,Transactions!$Y:$Y,"<>F",Transactions!$W:$W,$A$1,Transactions!$V:$V,$A2,Transactions!$B:$B,$H4)*-1 -> 0 | M4: =SUMIFS(Transactions!$X:$X,Transactions!$W:$W,$A$1,Transactions!$V:$V,$A2,Transactions!$B:$B,$H4)*-1 -> 0 | N4: 500 | O4: Cash Savings to Income | P4: =IF($E11=0,"",$P3/$E11) -> 
C5: =Budget!$A$6 -> Side Project | D5: =Budget!$B$6 -> 0 | E5: =SUMIFS(Transactions!X:X,Transactions!Y:Y,"<>F",Transactions!W:W,$A$1,Transactions!V:V,$A2,Transactions!B:B,C5) -> 0 | F5: 0 | H5: =Budget!$G$6 -> Bills | J5: =SUMIFS(Transactions!X:X,Transactions!W:W,$A$1-1,Transactions!V:V,12,Transactions!B:B,H5)*-1 -> 0 | K5: 1700 | L5: =SUMIFS(Transactions!$X:$X,Transactions!$Y:$Y,"<>F",Transactions!$W:$W,$A$1,Transactions!$V:$V,$A2,Transactions!$B:$B,$H5)*-1 -> 0 | M5: =SUMIFS(Transactions!$X:$X,Transactions!$W:$W,$A$1,Transactions!$V:$V,$A2,Transactions!$B:$B,$H5)*-1 -> 0 | N5: =K5-M5 -> 1700 | O5: Gross Savings | P5: =$E11-$L11+$L10 -> 0
C6: =Budget!$A$7 -> Other Income | D6: 320 | E6: =SUMIFS(Transactions!X:X,Transactions!Y:Y,"<>F",Transactions!W:W,$A$1,Transactions!V:V,$A2,Transactions!B:B,C6) -> 0 | F6: -320 | H6: =Budget!$G$7 -> Car | J6: =SUMIFS(Transactions!X:X,Transactions!W:W,$A$1-1,Transactions!V:V,12,Transactions!B:B,H6)*-1 -> 0 | K6: 840 | L6: =SUMIFS(Transactions!$X:$X,Transactions!$Y:$Y,"<>F",Transactions!$W:$W,$A$1,Transactions!$V:$V,$A2,Transactions!$B:$B,$H6)*-1 -> 0 | M6: =SUMIFS(Transactions!$X:$X,Transactions!$W:$W,$A$1,Transactions!$V:$V,$A2,Transactions!$B:$B,$H6)*-1 -> 0 | N6: =K6-M6 -> 840 | O6: Gross Savings to Income | P6: =IF($E11=0,"",$P5/$E11) -> 
C7: =Budget!$A$8 -> 0 | D7: =Budget!$B$8 -> 0 | E7: =SUMIFS(Transactions!X:X,Transactions!Y:Y,"<>F",Transactions!W:W,$A$1,Transactions!V:V,$A2,Transactions!B:B,C7) -> 0 | F7: 0 | H7: =Budget!$G$8 -> Charity | J7: =SUMIFS(Transactions!X:X,Transactions!W:W,$A$1-1,Transactions!V:V,12,Transactions!B:B,H7)*-1 -> 0 | K7: 400 | L7: =SUMIFS(Transactions!$X:$X,Transactions!$Y:$Y,"<>F",Transactions!$W:$W,$A$1,Transactions!$V:$V,$A2,Transactions!$B:$B,$H7)*-1 -> 0 | M7: =SUMIFS(Transactions!$X:$X,Transactions!$W:$W,$A$1,Transactions!$V:$V,$A2,Transactions!$B:$B,$H7)*-1 -> 0 | N7: 400
C8: =Budget!$A$9 -> 0 | D8: =Budget!$B$9 -> 0 | E8: =SUMIFS(Transactions!X:X,Transactions!Y:Y,"<>F",Transactions!W:W,$A$1,Transactions!V:V,$A2,Transactions!B:B,C8) -> 0 | F8: 0 | H8: =Budget!$G$9 -> Health | J8: =SUMIFS(Transactions!X:X,Transactions!W:W,$A$1-1,Transactions!V:V,12,Transactions!B:B,H8)*-1 -> 0 | K8: 200 | L8: =SUMIFS(Transactions!$X:$X,Transactions!$Y:$Y,"<>F",Transactions!$W:$W,$A$1,Transactions!$V:$V,$A2,Transactions!$B:$B,$H8)*-1 -> 0 | M8: =SUMIFS(Transactions!$X:$X,Transactions!$W:$W,$A$1,Transactions!$V:$V,$A2,Transactions!$B:$B,$H8)*-1 -> 0 | N8: 200
C9: =Budget!$A$10 -> 0 | D9: =Budget!$B$10 -> 0 | E9: =SUMIFS(Transactions!X:X,Transactions!Y:Y,"<>F",Transactions!W:W,$A$1,Transactions!V:V,$A2,Transactions!B:B,C9) -> 0 | F9: 0 | H9: =Budget!$G$10 -> Other | J9: =SUMIFS(Transactions!X:X,Transactions!W:W,$A$1-1,Transactions!V:V,12,Transactions!B:B,H9)*-1 -> 0 | L9: =SUMIFS(Transactions!$X:$X,Transactions!$Y:$Y,"<>F",Transactions!$W:$W,$A$1,Transactions!$V:$V,$A2,Transactions!$B:$B,$H9)*-1 -> 0 | M9: =SUMIFS(Transactions!$X:$X,Transactions!$W:$W,$A$1,Transactions!$V:$V,$A2,Transactions!$B:$B,$H9)*-1 -> 0 | N9: 0
H10: Savings | J10: =SUMIFS(Transactions!X:X,Transactions!W:W,$A$1-1,Transactions!V:V,12,Transactions!B:B,H10)*-1 -> 0 | K10: 1100 | L10: =SUMIFS(Transactions!$X:$X,Transactions!$Y:$Y,"<>F",Transactions!$W:$W,$A$1,Transactions!$V:$V,$A2,Transactions!$B:$B,$H10)*-1 -> 0 | M10: =SUMIFS(Transactions!$X:$X,Transactions!$W:$W,$A$1,Transactions!$V:$V,$A2,Transactions!$B:$B,$H10)*-1 -> 0 | N10: 1100
C11: Total Income | D11: =SUM(D2:D10) -> 7045 | E11: =SUM(E2:E10) -> 0 | F11: =SUM(F2:F10) -> -7045 | H11: Total Expenses | I11: =SUM(I2:I10) -> 0 | J11: =L1 -> Actual | K11: =SUM(K2:K10) -> 6325 | L11: =SUM(L2:L10) -> 0 | M11: =SUM(M2:M10) -> 0 | N11: =SUM(N2:N10) -> 6325
A12: 2 | B12: =TEXT(A12*28,"mmmm") -> February | C12: =Budget!$A$3 -> Salary | D12: 6000 | E12: =SUMIFS(Transactions!X:X,Transactions!Y:Y,"<>F",Transactions!W:W,$A$1,Transactions!V:V,$A12,Transactions!B:B,C12) -> 0 | F12: =E12-D12 -> -6000 | H12: =Budget!$G$3 -> Groceries | J12: 0 | K12: 1185 | L12: =SUMIFS(Transactions!$X:$X,Transactions!$Y:$Y,"<>F",Transactions!$W:$W,$A$1,Transactions!$V:$V,$A12,Transactions!$B:$B,$H12)*-1 -> 0 | M12: =SUMIFS(Transactions!$X:$X,Transactions!$W:$W,$A$1,Transactions!$V:$V,$A12,Transactions!$B:$B,$H12)*-1 -> 0 | N12: =K12-M12 -> 1185 | O12: Budget Cash Savings | P12: =$D21-$K21 -> 400
C13: =Budget!$A$4 -> Bonus | E13: =SUMIFS(Transactions!X:X,Transactions!Y:Y,"<>F",Transactions!W:W,$A$1,Transactions!V:V,$A12,Transactions!B:B,C13) -> 0 | F13: 0 | H13: =Budget!$G$4 -> Entertainment | J13: 0 | K13: 400 | L13: =SUMIFS(Transactions!$X:$X,Transactions!$Y:$Y,"<>F",Transactions!$W:$W,$A$1,Transactions!$V:$V,$A12,Transactions!$B:$B,$H13)*-1 -> 0 | M13: =SUMIFS(Transactions!$X:$X,Transactions!$W:$W,$A$1,Transactions!$V:$V,$A12,Transactions!$B:$B,$H13)*-1 -> 0 | N13: 400 | O13: Cash Savings | P13: =$E21-$L21 -> 0
C14: =Budget!$A$5 -> Kids | D14: 725 | E14: =SUMIFS(Transactions!X:X,Transactions!Y:Y,"<>F",Transactions!W:W,$A$1,Transactions!V:V,$A12,Transactions!B:B,C14) -> 0 | F14: -725 | H14: =Budget!$G$5 -> Shopping | J14: 0 | K14: 500 | L14: =SUMIFS(Transactions!$X:$X,Transactions!$Y:$Y,"<>F",Transactions!$W:$W,$A$1,Transactions!$V:$V,$A12,Transactions!$B:$B,$H14)*-1 -> 0 | M14: =SUMIFS(Transactions!$X:$X,Transactions!$W:$W,$A$1,Transactions!$V:$V,$A12,Transactions!$B:$B,$H14)*-1 -> 0 | N14: 500 | O14: Cash Savings to Income | P14: =IF($E21=0,"",$P13/$E21) -> 
C15: =Budget!$A$6 -> Side Project | D15: =Budget!$B$6 -> 0 | E15: =SUMIFS(Transactions!X:X,Transactions!Y:Y,"<>F",Transactions!W:W,$A$1,Transactions!V:V,$A12,Transactions!B:B,C15) -> 0 | F15: 0 | H15: =Budget!$G$6 -> Bills | J15: 0 | K15: 1700 | L15: =SUMIFS(Transactions!$X:$X,Transactions!$Y:$Y,"<>F",Transactions!$W:$W,$A$1,Transactions!$V:$V,$A12,Transactions!$B:$B,$H15)*-1 -> 0 | M15: =SUMIFS(Transactions!$X:$X,Transactions!$W:$W,$A$1,Transactions!$V:$V,$A12,Transactions!$B:$B,$H15)*-1 -> 0 | N15: =K15-M15 -> 1700 | O15: Gross Savings | P15: =$E21-$L21+$L20 -> 0
C16: =Budget!$A$7 -> Other Income | E16: =SUMIFS(Transactions!X:X,Transactions!Y:Y,"<>F",Transactions!W:W,$A$1,Transactions!V:V,$A12,Transactions!B:B,C16) -> 0 | F16: 0 | H16: =Budget!$G$7 -> Car | J16: 0 | K16: 840 | L16: =SUMIFS(Transactions!$X:$X,Transactions!$Y:$Y,"<>F",Transactions!$W:$W,$A$1,Transactions!$V:$V,$A12,Transactions!$B:$B,$H16)*-1 -> 0 | M16: =SUMIFS(Transactions!$X:$X,Transactions!$W:$W,$A$1,Transactions!$V:$V,$A12,Transactions!$B:$B,$H16)*-1 -> 0 | N16: =K16-M16 -> 840 | O16: Gross Savings to Income | P16: =IF($E21=0,"",$P15/$E21) -> 
C17: =Budget!$A$8 -> 0 | D17: =Budget!$B$8 -> 0 | E17: =SUMIFS(Transactions!X:X,Transactions!Y:Y,"<>F",Transactions!W:W,$A$1,Transactions!V:V,$A12,Transactions!B:B,C17) -> 0 | F17: 0 | H17: =Budget!$G$8 -> Charity | J17: 0 | K17: 400 | L17: =SUMIFS(Transactions!$X:$X,Transactions!$Y:$Y,"<>F",Transactions!$W:$W,$A$1,Transactions!$V:$V,$A12,Transactions!$B:$B,$H17)*-1 -> 0 | M17: =SUMIFS(Transactions!$X:$X,Transactions!$W:$W,$A$1,Transactions!$V:$V,$A12,Transactions!$B:$B,$H17)*-1 -> 0 | N17: 400
C18: =Budget!$A$9 -> 0 | D18: =Budget!$B$9 -> 0 | E18: =SUMIFS(Transactions!X:X,Transactions!Y:Y,"<>F",Transactions!W:W,$A$1,Transactions!V:V,$A12,Transactions!B:B,C18) -> 0 | F18: 0 | H18: =Budget!$G$9 -> Health | J18: 0 | K18: 200 | L18: =SUMIFS(Transactions!$X:$X,Transactions!$Y:$Y,"<>F",Transactions!$W:$W,$A$1,Transactions!$V:$V,$A12,Transactions!$B:$B,$H18)*-1 -> 0 | M18: =SUMIFS(Transactions!$X:$X,Transactions!$W:$W,$A$1,Transactions!$V:$V,$A12,Transactions!$B:$B,$H18)*-1 -> 0 | N18: 200
C19: =Budget!$A$10 -> 0 | D19: =Budget!$B$10 -> 0 | E19: =SUMIFS(Transactions!X:X,Transactions!Y:Y,"<>F",Transactions!W:W,$A$1,Transactions!V:V,$A12,Transactions!B:B,C19) -> 0 | F19: 0 | H19: =Budget!$G$10 -> Other | J19: 0 | L19: =SUMIFS(Transactions!$X:$X,Transactions!$Y:$Y,"<>F",Transactions!$W:$W,$A$1,Transactions!$V:$V,$A12,Transactions!$B:$B,$H19)*-1 -> 0 | M19: =SUMIFS(Transactions!$X:$X,Transactions!$W:$W,$A$1,Transactions!$V:$V,$A12,Transactions!$B:$B,$H19)*-1 -> 0 | N19: 0
H20: Savings | J20: 0 | K20: 1100 | L20: =SUMIFS(Transactions!$X:$X,Transactions!$Y:$Y,"<>F",Transactions!$W:$W,$A$1,Transactions!$V:$V,$A12,Transactions!$B:$B,$H20)*-1 -> 0 | M20: =SUMIFS(Transactions!$X:$X,Transactions!$W:$W,$A$1,Transactions!$V:$V,$A12,Transactions!$B:$B,$H20)*-1 -> 0 | N20: 1100
C21: Total Income | D21: =SUM(D12:D20) -> 6725 | E21: =SUM(E12:E20) -> 0 | F21: =SUM(F12:F20) -> -6725 | H21: Total Expenses | I21: =SUM(I12:I20) -> 0 | J21: 0 | K21: =SUM(K12:K20) -> 6325 | L21: =SUM(L12:L20) -> 0 | M21: =SUM(M12:M20) -> 0 | N21: =SUM(N12:N20) -> 6325
A22: 3 | B22: =TEXT(A22*28,"mmmm") -> March | C22: =Budget!$A$3 -> Salary | D22: 9000 | E22: =SUMIFS(Transactions!X:X,Transactions!Y:Y,"<>F",Transactions!W:W,$A$1,Transactions!V:V,$A22,Transactions!B:B,C22) -> 3000 | F22: =E22-D22 -> -6000 | H22: =Budget!$G$3 -> Groceries | I22: =ROUND(AVERAGE(L2,L12,SUMIFS(Transactions!X:X,Transactions!W:W,$A$1-1,Transactions!V:V,12,Transactions!B:B,H22)*-1),-2) -> 0 | J22: 0 | K22: 1185 | L22: =SUMIFS(Transactions!$X:$X,Transactions!$Y:$Y,"<>F",Transactions!$W:$W,$A$1,Transactions!$V:$V,$A22,Transactions!$B:$B,$H22)*-1 -> 390 | M22: =SUMIFS(Transactions!$X:$X,Transactions!$W:$W,$A$1,Transactions!$V:$V,$A22,Transactions!$B:$B,$H22)*-1 -> 390 | N22: =K22-M22 -> 795 | O22: Budget Cash Savings | P22: =$D31-$K31 -> 4000
C23: =Budget!$A$4 -> Bonus | E23: =SUMIFS(Transactions!X:X,Transactions!Y:Y,"<>F",Transactions!W:W,$A$1,Transactions!V:V,$A22,Transactions!B:B,C23) -> 0 | F23: 0 | H23: =Budget!$G$4 -> Entertainment | I23: =ROUND(AVERAGE(L3,L13,SUMIFS(Transactions!X:X,Transactions!W:W,$A$1-1,Transactions!V:V,12,Transactions!B:B,H23)*-1),-2) -> 0 | J23: 0 | K23: 400 | L23: =SUMIFS(Transactions!$X:$X,Transactions!$Y:$Y,"<>F",Transactions!$W:$W,$A$1,Transactions!$V:$V,$A22,Transactions!$B:$B,$H23)*-1 -> 40 | M23: =SUMIFS(Transactions!$X:$X,Transactions!$W:$W,$A$1,Transactions!$V:$V,$A22,Transactions!$B:$B,$H23)*-1 -> 40 | N23: 360 | O23: Cash Savings | P23: =$E31-$L31 -> 990
C24: =Budget!$A$5 -> Kids | D24: 725 | E24: =SUMIFS(Transactions!X:X,Transactions!Y:Y,"<>F",Transactions!W:W,$A$1,Transactions!V:V,$A22,Transactions!B:B,C24) -> 0 | F24: -725 | H24: =Budget!$G$5 -> Shopping | I24: =ROUND(AVERAGE(L4,L14,SUMIFS(Transactions!X:X,Transactions!W:W,$A$1-1,Transactions!V:V,12,Transactions!B:B,H24)*-1),-2) -> 0 | J24: 0 | K24: 500 | L24: =SUMIFS(Transactions!$X:$X,Transactions!$Y:$Y,"<>F",Transactions!$W:$W,$A$1,Transactions!$V:$V,$A22,Transactions!$B:$B,$H24)*-1 -> 95 | M24: =SUMIFS(Transactions!$X:$X,Transactions!$W:$W,$A$1,Transactions!$V:$V,$A22,Transactions!$B:$B,$H24)*-1 -> 95 | N24: 405 | O24: Cash Savings to Income | P24: =IF($E31=0,"",$P23/$E31) -> 0.33
C25: =Budget!$A$6 -> Side Project | D25: =Budget!$B$6 -> 0 | E25: =SUMIFS(Transactions!X:X,Transactions!Y:Y,"<>F",Transactions!W:W,$A$1,Transactions!V:V,$A22,Transactions!B:B,C25) -> 0 | F25: 0 | H25: =Budget!$G$6 -> Bills | I25: =ROUND(AVERAGE(L5,L15,SUMIFS(Transactions!X:X,Transactions!W:W,$A$1-1,Transactions!V:V,12,Transactions!B:B,H25)*-1),-2) -> 0 | J25: 0 | K25: 1700 | L25: =SUMIFS(Transactions!$X:$X,Transactions!$Y:$Y,"<>F",Transactions!$W:$W,$A$1,Transactions!$V:$V,$A22,Transactions!$B:$B,$H25)*-1 -> 80 | M25: =SUMIFS(Transactions!$X:$X,Transactions!$W:$W,$A$1,Transactions!$V:$V,$A22,Transactions!$B:$B,$H25)*-1 -> 690 | N25: =K25-M25 -> 1010 | O25: Gross Savings | P25: =$E31-$L31+$L30 -> 1605
C26: =Budget!$A$7 -> Other Income | D26: 600 | E26: =SUMIFS(Transactions!X:X,Transactions!Y:Y,"<>F",Transactions!W:W,$A$1,Transactions!V:V,$A22,Transactions!B:B,C26) -> 0 | F26: -600 | H26: =Budget!$G$7 -> Car | I26: =ROUND(AVERAGE(L6,L16,SUMIFS(Transactions!X:X,Transactions!W:W,$A$1-1,Transactions!V:V,12,Transactions!B:B,H26)*-1),-2) -> 0 | J26: 0 | K26: 840 | L26: =SUMIFS(Transactions!$X:$X,Transactions!$Y:$Y,"<>F",Transactions!$W:$W,$A$1,Transactions!$V:$V,$A22,Transactions!$B:$B,$H26)*-1 -> 115 | M26: =SUMIFS(Transactions!$X:$X,Transactions!$W:$W,$A$1,Transactions!$V:$V,$A22,Transactions!$B:$B,$H26)*-1 -> 115 | N26: =K26-M26 -> 725 | O26: Gross Savings to Income | P26: =IF($E31=0,"",$P25/$E31) -> 0.535
C27: =Budget!$A$8 -> 0 | D27: =Budget!$B$8 -> 0 | E27: =SUMIFS(Transactions!X:X,Transactions!Y:Y,"<>F",Transactions!W:W,$A$1,Transactions!V:V,$A22,Transactions!B:B,C27) -> 0 | F27: 0 | H27: =Budget!$G$8 -> Charity | I27: =ROUND(AVERAGE(L7,L17,SUMIFS(Transactions!X:X,Transactions!W:W,$A$1-1,Transactions!V:V,12,Transactions!B:B,H27)*-1),-2) -> 0 | J27: 0 | K27: 400 | L27: =SUMIFS(Transactions!$X:$X,Transactions!$Y:$Y,"<>F",Transactions!$W:$W,$A$1,Transactions!$V:$V,$A22,Transactions!$B:$B,$H27)*-1 -> 100 | M27: =SUMIFS(Transactions!$X:$X,Transactions!$W:$W,$A$1,Transactions!$V:$V,$A22,Transactions!$B:$B,$H27)*-1 -> 100 | N27: 300
C28: =Budget!$A$9 -> 0 | D28: =Budget!$B$9 -> 0 | E28: =SUMIFS(Transactions!X:X,Transactions!Y:Y,"<>F",Transactions!W:W,$A$1,Transactions!V:V,$A22,Transactions!B:B,C28) -> 0 | F28: 0 | H28: =Budget!$G$9 -> Health | I28: =ROUND(AVERAGE(L8,L18,SUMIFS(Transactions!X:X,Transactions!W:W,$A$1-1,Transactions!V:V,12,Transactions!B:B,H28)*-1),-2) -> 0 | J28: 0 | K28: 200 | L28: =SUMIFS(Transactions!$X:$X,Transactions!$Y:$Y,"<>F",Transactions!$W:$W,$A$1,Transactions!$V:$V,$A22,Transactions!$B:$B,$H28)*-1 -> 20 | M28: =SUMIFS(Transactions!$X:$X,Transactions!$W:$W,$A$1,Transactions!$V:$V,$A22,Transactions!$B:$B,$H28)*-1 -> 20 | N28: 180
C29: =Budget!$A$10 -> 0 | D29: =Budget!$B$10 -> 0 | E29: =SUMIFS(Transactions!X:X,Transactions!Y:Y,"<>F",Transactions!W:W,$A$1,Transactions!V:V,$A22,Transactions!B:B,C29) -> 0 | F29: 0 | H29: =Budget!$G$10 -> Other | I29: =ROUND(AVERAGE(L9,L19,SUMIFS(Transactions!X:X,Transactions!W:W,$A$1-1,Transactions!V:V,12,Transactions!B:B,H29)*-1),-2) -> 0 | J29: 0 | L29: =SUMIFS(Transactions!$X:$X,Transactions!$Y:$Y,"<>F",Transactions!$W:$W,$A$1,Transactions!$V:$V,$A22,Transactions!$B:$B,$H29)*-1 -> 555 | M29: =SUMIFS(Transactions!$X:$X,Transactions!$W:$W,$A$1,Transactions!$V:$V,$A22,Transactions!$B:$B,$H29)*-1 -> 555 | N29: -555
H30: Savings | I30: =ROUND(AVERAGE(L10,L20,SUMIFS(Transactions!X:X,Transactions!W:W,$A$1-1,Transactions!V:V,12,Transactions!B:B,H30)*-1),-2) -> 0 | J30: 0 | K30: 1100 | L30: =SUMIFS(Transactions!$X:$X,Transactions!$Y:$Y,"<>F",Transactions!$W:$W,$A$1,Transactions!$V:$V,$A22,Transactions!$B:$B,$H30)*-1 -> 615 | M30: =SUMIFS(Transactions!$X:$X,Transactions!$W:$W,$A$1,Transactions!$V:$V,$A22,Transactions!$B:$B,$H30)*-1 -> 1715 | N30: -615
C31: Total Income | D31: =SUM(D22:D30) -> 10325 | E31: =SUM(E22:E30) -> 3000 | F31: =SUM(F22:F30) -> -7325 | H31: Total Expenses | I31: =SUM(I22:I30) -> 0 | J31: 0 | K31: =SUM(K22:K30) -> 6325 | L31: =SUM(L22:L30) -> 2010 | M31: =SUM(M22:M30) -> 3720 | N31: =SUM(N22:N30) -> 2605
A32: 4 | B32: =TEXT(A32*28,"mmmm") -> April | C32: =Budget!$A$3 -> Salary | D32: 6000 | E32: =SUMIFS(Transactions!X:X,Transactions!Y:Y,"<>F",Transactions!W:W,$A$1,Transactions!V:V,$A32,Transactions!B:B,C32) -> 0 | F32: =E32-D32 -> -6000 | H32: =Budget!$G$3 -> Groceries | I32: =ROUND(AVERAGE(L2,L12,L22),-2) -> 100 | J32: 390 | K32: 1185 | L32: =SUMIFS(Transactions!$X:$X,Transactions!$Y:$Y,"<>F",Transactions!$W:$W,$A$1,Transactions!$V:$V,$A32,Transactions!$B:$B,$H32)*-1 -> 0 | M32: =SUMIFS(Transactions!$X:$X,Transactions!$W:$W,$A$1,Transactions!$V:$V,$A32,Transactions!$B:$B,$H32)*-1 -> 0 | N32: =K32-M32 -> 1185 | O32: Budget Cash Savings | P32: =$D41-$K41 -> 400
C33: =Budget!$A$4 -> Bonus | E33: =SUMIFS(Transactions!X:X,Transactions!Y:Y,"<>F",Transactions!W:W,$A$1,Transactions!V:V,$A32,Transactions!B:B,C33) -> 0 | F33: 0 | H33: =Budget!$G$4 -> Entertainment | I33: 0 | J33: 40 | K33: 400 | L33: =SUMIFS(Transactions!$X:$X,Transactions!$Y:$Y,"<>F",Transactions!$W:$W,$A$1,Transactions!$V:$V,$A32,Transactions!$B:$B,$H33)*-1 -> 0 | M33: =SUMIFS(Transactions!$X:$X,Transactions!$W:$W,$A$1,Transactions!$V:$V,$A32,Transactions!$B:$B,$H33)*-1 -> 0 | N33: 400 | O33: Cash Savings | P33: =$E41-$L41 -> 0
C34: =Budget!$A$5 -> Kids | D34: 725 | E34: =SUMIFS(Transactions!X:X,Transactions!Y:Y,"<>F",Transactions!W:W,$A$1,Transactions!V:V,$A32,Transactions!B:B,C34) -> 0 | F34: -725 | H34: =Budget!$G$5 -> Shopping | I34: 0 | J34: 95 | K34: 500 | L34: =SUMIFS(Transactions!$X:$X,Transactions!$Y:$Y,"<>F",Transactions!$W:$W,$A$1,Transactions!$V:$V,$A32,Transactions!$B:$B,$H34)*-1 -> 0 | M34: =SUMIFS(Transactions!$X:$X,Transactions!$W:$W,$A$1,Transactions!$V:$V,$A32,Transactions!$B:$B,$H34)*-1 -> 0 | N34: 500 | O34: Cash Savings to Income | P34: =IF($E41=0,"",$P33/$E41) -> 
C35: =Budget!$A$6 -> Side Project | D35: 0 | E35: =SUMIFS(Transactions!X:X,Transactions!Y:Y,"<>F",Transactions!W:W,$A$1,Transactions!V:V,$A32,Transactions!B:B,C35) -> 0 | F35: 0 | H35: =Budget!$G$6 -> Bills | I35: 0 | J35: 80 | K35: 1700 | L35: =SUMIFS(Transactions!$X:$X,Transactions!$Y:$Y,"<>F",Transactions!$W:$W,$A$1,Transactions!$V:$V,$A32,Transactions!$B:$B,$H35)*-1 -> 0 | M35: =SUMIFS(Transactions!$X:$X,Transactions!$W:$W,$A$1,Transactions!$V:$V,$A32,Transactions!$B:$B,$H35)*-1 -> 0 | N35: =K35-M35 -> 1700 | O35: Gross Savings | P35: =$E41-$L41+$L40 -> 0
C36: =Budget!$A$7 -> Other Income | E36: =SUMIFS(Transactions!X:X,Transactions!Y:Y,"<>F",Transactions!W:W,$A$1,Transactions!V:V,$A32,Transactions!B:B,C36) -> 0 | F36: 0 | H36: =Budget!$G$7 -> Car | I36: 0 | J36: 115 | K36: 840 | L36: =SUMIFS(Transactions!$X:$X,Transactions!$Y:$Y,"<>F",Transactions!$W:$W,$A$1,Transactions!$V:$V,$A32,Transactions!$B:$B,$H36)*-1 -> 0 | M36: =SUMIFS(Transactions!$X:$X,Transactions!$W:$W,$A$1,Transactions!$V:$V,$A32,Transactions!$B:$B,$H36)*-1 -> 0 | N36: =K36-M36 -> 840 | O36: Gross Savings to Income | P36: =IF($E41=0,"",$P35/$E41) -> 
C37: =Budget!$A$8 -> 0 | E37: =SUMIFS(Transactions!X:X,Transactions!Y:Y,"<>F",Transactions!W:W,$A$1,Transactions!V:V,$A32,Transactions!B:B,C37) -> 0 | F37: 0 | H37: =Budget!$G$8 -> Charity | I37: 0 | J37: 100 | K37: 400 | L37: =SUMIFS(Transactions!$X:$X,Transactions!$Y:$Y,"<>F",Transactions!$W:$W,$A$1,Transactions!$V:$V,$A32,Transactions!$B:$B,$H37)*-1 -> 0 | M37: =SUMIFS(Transactions!$X:$X,Transactions!$W:$W,$A$1,Transactions!$V:$V,$A32,Transactions!$B:$B,$H37)*-1 -> 0 | N37: 400
C38: =Budget!$A$9 -> 0 | E38: =SUMIFS(Transactions!X:X,Transactions!Y:Y,"<>F",Transactions!W:W,$A$1,Transactions!V:V,$A32,Transactions!B:B,C38) -> 0 | F38: 0 | H38: =Budget!$G$9 -> Health | I38: 0 | J38: 20 | K38: 200 | L38: =SUMIFS(Transactions!$X:$X,Transactions!$Y:$Y,"<>F",Transactions!$W:$W,$A$1,Transactions!$V:$V,$A32,Transactions!$B:$B,$H38)*-1 -> 0 | M38: =SUMIFS(Transactions!$X:$X,Transactions!$W:$W,$A$1,Transactions!$V:$V,$A32,Transactions!$B:$B,$H38)*-1 -> 0 | N38: 200
C39: =Budget!$A$10 -> 0 | E39: =SUMIFS(Transactions!X:X,Transactions!Y:Y,"<>F",Transactions!W:W,$A$1,Transactions!V:V,$A32,Transactions!B:B,C39) -> 0 | F39: 0 | H39: =Budget!$G$10 -> Other | I39: 200 | J39: 555 | L39: =SUMIFS(Transactions!$X:$X,Transactions!$Y:$Y,"<>F",Transactions!$W:$W,$A$1,Transactions!$V:$V,$A32,Transactions!$B:$B,$H39)*-1 -> 0 | M39: =SUMIFS(Transactions!$X:$X,Transactions!$W:$W,$A$1,Transactions!$V:$V,$A32,Transactions!$B:$B,$H39)*-1 -> 0 | N39: 0
H40: Savings | I40: 200 | J40: 615 | K40: 1100 | L40: =SUMIFS(Transactions!$X:$X,Transactions!$Y:$Y,"<>F",Transactions!$W:$W,$A$1,Transactions!$V:$V,$A32,Transactions!$B:$B,$H40)*-1 -> 0 | M40: =SUMIFS(Transactions!$X:$X,Transactions!$W:$W,$A$1,Transactions!$V:$V,$A32,Transactions!$B:$B,$H40)*-1 -> 615 | N40: 485
C41: Total Income | D41: =SUM(D32:D40) -> 6725 | E41: =SUM(E32:E40) -> 0 | F41: =SUM(F32:F40) -> -6725 | H41: Total Expenses | I41: =SUM(I32:I40) -> 500 | J41: 2010 | K41: =SUM(K32:K40) -> 6325 | L41: =SUM(L32:L40) -> 0 | M41: =SUM(M32:M40) -> 615 | N41: =SUM(N32:N40) -> 5710
A42: 5 | B42: =TEXT(A42*28,"mmmm") -> May | C42: =Budget!$A$3 -> Salary | D42: 6000 | E42: =SUMIFS(Transactions!X:X,Transactions!Y:Y,"<>F",Transactions!W:W,$A$1,Transactions!V:V,$A42,Transactions!B:B,C42) -> 0 | F42: =E42-D42 -> -6000 | H42: =Budget!$G$3 -> Groceries | I42: =ROUND(AVERAGE(L12,L22,L32),-2) -> 100 | J42: 0 | K42: 1185 | L42: =SUMIFS(Transactions!$X:$X,Transactions!$Y:$Y,"<>F",Transactions!$W:$W,$A$1,Transactions!$V:$V,$A42,Transactions!$B:$B,$H42)*-1 -> 0 | M42: =SUMIFS(Transactions!$X:$X,Transactions!$W:$W,$A$1,Transactions!$V:$V,$A42,Transactions!$B:$B,$H42)*-1 -> 0 | N42: =K42-M42 -> 1185 | O42: Budget Cash Savings | P42: =$D51-$K51 -> 400
C43: =Budget!$A$4 -> Bonus | E43: =SUMIFS(Transactions!X:X,Transactions!Y:Y,"<>F",Transactions!W:W,$A$1,Transactions!V:V,$A42,Transactions!B:B,C43) -> 0 | F43: 0 | H43: =Budget!$G$4 -> Entertainment | I43: 0 | J43: 0 | K43: 400 | L43: =SUMIFS(Transactions!$X:$X,Transactions!$Y:$Y,"<>F",Transactions!$W:$W,$A$1,Transactions!$V:$V,$A42,Transactions!$B:$B,$H43)*-1 -> 0 | M43: =SUMIFS(Transactions!$X:$X,Transactions!$W:$W,$A$1,Transactions!$V:$V,$A42,Transactions!$B:$B,$H43)*-1 -> 0 | N43: 400 | O43: Cash Savings | P43: =$E51-$L51 -> 0
C44: =Budget!$A$5 -> Kids | D44: 725 | E44: =SUMIFS(Transactions!X:X,Transactions!Y:Y,"<>F",Transactions!W:W,$A$1,Transactions!V:V,$A42,Transactions!B:B,C44) -> 0 | F44: -725 | H44: =Budget!$G$5 -> Shopping | I44: 0 | J44: 0 | K44: 500 | L44: =SUMIFS(Transactions!$X:$X,Transactions!$Y:$Y,"<>F",Transactions!$W:$W,$A$1,Transactions!$V:$V,$A42,Transactions!$B:$B,$H44)*-1 -> 0 | M44: =SUMIFS(Transactions!$X:$X,Transactions!$W:$W,$A$1,Transactions!$V:$V,$A42,Transactions!$B:$B,$H44)*-1 -> 0 | N44: 500 | O44: Cash Savings to Income | P44: =IF($E51=0,"",$P43/$E51) -> 
C45: =Budget!$A$6 -> Side Project | D45: =Budget!$B$6 -> 0 | E45: =SUMIFS(Transactions!X:X,Transactions!Y:Y,"<>F",Transactions!W:W,$A$1,Transactions!V:V,$A42,Transactions!B:B,C45) -> 0 | F45: 0 | H45: =Budget!$G$6 -> Bills | I45: 0 | J45: 0 | K45: 1700 | L45: =SUMIFS(Transactions!$X:$X,Transactions!$Y:$Y,"<>F",Transactions!$W:$W,$A$1,Transactions!$V:$V,$A42,Transactions!$B:$B,$H45)*-1 -> 0 | M45: =SUMIFS(Transactions!$X:$X,Transactions!$W:$W,$A$1,Transactions!$V:$V,$A42,Transactions!$B:$B,$H45)*-1 -> 0 | N45: =K45-M45 -> 1700 | O45: Gross Savings | P45: =$E51-$L51+$L50 -> 0
C46: =Budget!$A$7 -> Other Income | D46: =Budget!$B$7 -> 0 | E46: =SUMIFS(Transactions!X:X,Transactions!Y:Y,"<>F",Transactions!W:W,$A$1,Transactions!V:V,$A42,Transactions!B:B,C46) -> 0 | F46: 0 | H46: =Budget!$G$7 -> Car | I46: 0 | J46: 0 | K46: 840 | L46: =SUMIFS(Transactions!$X:$X,Transactions!$Y:$Y,"<>F",Transactions!$W:$W,$A$1,Transactions!$V:$V,$A42,Transactions!$B:$B,$H46)*-1 -> 0 | M46: =SUMIFS(Transactions!$X:$X,Transactions!$W:$W,$A$1,Transactions!$V:$V,$A42,Transactions!$B:$B,$H46)*-1 -> 0 | N46: =K46-M46 -> 840 | O46: Gross Savings to Income | P46: =IF($E51=0,"",$P45/$E51) -> 
C47: =Budget!$A$8 -> 0 | D47: =Budget!$B$8 -> 0 | E47: =SUMIFS(Transactions!X:X,Transactions!Y:Y,"<>F",Transactions!W:W,$A$1,Transactions!V:V,$A42,Transactions!B:B,C47) -> 0 | F47: 0 | H47: =Budget!$G$8 -> Charity | I47: 0 | J47: 0 | K47: 400 | L47: =SUMIFS(Transactions!$X:$X,Transactions!$Y:$Y,"<>F",Transactions!$W:$W,$A$1,Transactions!$V:$V,$A42,Transactions!$B:$B,$H47)*-1 -> 0 | M47: =SUMIFS(Transactions!$X:$X,Transactions!$W:$W,$A$1,Transactions!$V:$V,$A42,Transactions!$B:$B,$H47)*-1 -> 0 | N47: 400
C48: =Budget!$A$9 -> 0 | D48: =Budget!$B$9 -> 0 | E48: =SUMIFS(Transactions!X:X,Transactions!Y:Y,"<>F",Transactions!W:W,$A$1,Transactions!V:V,$A42,Transactions!B:B,C48) -> 0 | F48: 0 | H48: =Budget!$G$9 -> Health | I48: 0 | J48: 0 | K48: 200 | L48: =SUMIFS(Transactions!$X:$X,Transactions!$Y:$Y,"<>F",Transactions!$W:$W,$A$1,Transactions!$V:$V,$A42,Transactions!$B:$B,$H48)*-1 -> 0 | M48: =SUMIFS(Transactions!$X:$X,Transactions!$W:$W,$A$1,Transactions!$V:$V,$A42,Transactions!$B:$B,$H48)*-1 -> 0 | N48: 200
C49: =Budget!$A$10 -> 0 | D49: =Budget!$B$10 -> 0 | E49: =SUMIFS(Transactions!X:X,Transactions!Y:Y,"<>F",Transactions!W:W,$A$1,Transactions!V:V,$A42,Transactions!B:B,C49) -> 0 | F49: 0 | H49: =Budget!$G$10 -> Other | I49: 200 | J49: 0 | L49: =SUMIFS(Transactions!$X:$X,Transactions!$Y:$Y,"<>F",Transactions!$W:$W,$A$1,Transactions!$V:$V,$A42,Transactions!$B:$B,$H49)*-1 -> 0 | M49: =SUMIFS(Transactions!$X:$X,Transactions!$W:$W,$A$1,Transactions!$V:$V,$A42,Transactions!$B:$B,$H49)*-1 -> 0 | N49: 0
H50: Savings | I50: 200 | J50: 0 | K50: 1100 | L50: =SUMIFS(Transactions!$X:$X,Transactions!$Y:$Y,"<>F",Transactions!$W:$W,$A$1,Transactions!$V:$V,$A42,Transactions!$B:$B,$H50)*-1 -> 0 | M50: =SUMIFS(Transactions!$X:$X,Transactions!$W:$W,$A$1,Transactions!$V:$V,$A42,Transactions!$B:$B,$H50)*-1 -> 0 | N50: 1100
C51: Total Income | D51: =SUM(D42:D50) -> 6725 | E51: =SUM(E42:E50) -> 0 | F51: =SUM(F42:F50) -> -6725 | H51: Total Expenses | I51: =SUM(I42:I50) -> 500 | J51: 0 | K51: =SUM(K42:K50) -> 6325 | L51: =SUM(L42:L50) -> 0 | M51: =SUM(M42:M50) -> 0 | N51: =SUM(N42:N50) -> 6325
A52: 6 | B52: =TEXT(A52*28,"mmmm") -> June | C52: =Budget!$A$3 -> Salary | D52: 6000 | E52: =SUMIFS(Transactions!X:X,Transactions!Y:Y,"<>F",Transactions!W:W,$A$1,Transactions!V:V,$A52,Transactions!B:B,C52) -> 0 | F52: =E52-D52 -> -6000 | H52: =Budget!$G$3 -> Groceries | I52: =ROUND(AVERAGE(L22,L32,L42),-2) -> 100 | J52: 0 | K52: 1185 | L52: =SUMIFS(Transactions!$X:$X,Transactions!$Y:$Y,"<>F",Transactions!$W:$W,$A$1,Transactions!$V:$V,$A52,Transactions!$B:$B,$H52)*-1 -> 0 | M52: =SUMIFS(Transactions!$X:$X,Transactions!$W:$W,$A$1,Transactions!$V:$V,$A52,Transactions!$B:$B,$H52)*-1 -> 0 | N52: =K52-M52 -> 1185 | O52: Budget Cash Savings | P52: =$D61-$K61 -> 400
C53: =Budget!$A$4 -> Bonus | E53: =SUMIFS(Transactions!X:X,Transactions!Y:Y,"<>F",Transactions!W:W,$A$1,Transactions!V:V,$A52,Transactions!B:B,C53) -> 0 | F53: 0 | H53: =Budget!$G$4 -> Entertainment | I53: 0 | J53: 0 | K53: 400 | L53: =SUMIFS(Transactions!$X:$X,Transactions!$Y:$Y,"<>F",Transactions!$W:$W,$A$1,Transactions!$V:$V,$A52,Transactions!$B:$B,$H53)*-1 -> 0 | M53: =SUMIFS(Transactions!$X:$X,Transactions!$W:$W,$A$1,Transactions!$V:$V,$A52,Transactions!$B:$B,$H53)*-1 -> 0 | N53: 400 | O53: Cash Savings | P53: =$E61-$L61 -> 0
C54: =Budget!$A$5 -> Kids | D54: 725 | E54: =SUMIFS(Transactions!X:X,Transactions!Y:Y,"<>F",Transactions!W:W,$A$1,Transactions!V:V,$A52,Transactions!B:B,C54) -> 0 | F54: -725 | H54: =Budget!$G$5 -> Shopping | I54: 0 | J54: 0 | K54: 500 | L54: =SUMIFS(Transactions!$X:$X,Transactions!$Y:$Y,"<>F",Transactions!$W:$W,$A$1,Transactions!$V:$V,$A52,Transactions!$B:$B,$H54)*-1 -> 0 | M54: =SUMIFS(Transactions!$X:$X,Transactions!$W:$W,$A$1,Transactions!$V:$V,$A52,Transactions!$B:$B,$H54)*-1 -> 0 | N54: 500 | O54: Cash Savings to Income | P54: =IF($E61=0,"",$P53/$E61) -> 
C55: =Budget!$A$6 -> Side Project | E55: =SUMIFS(Transactions!X:X,Transactions!Y:Y,"<>F",Transactions!W:W,$A$1,Transactions!V:V,$A52,Transactions!B:B,C55) -> 0 | F55: 0 | H55: =Budget!$G$6 -> Bills | I55: 0 | J55: 0 | K55: 1700 | L55: =SUMIFS(Transactions!$X:$X,Transactions!$Y:$Y,"<>F",Transactions!$W:$W,$A$1,Transactions!$V:$V,$A52,Transactions!$B:$B,$H55)*-1 -> 0 | M55: =SUMIFS(Transactions!$X:$X,Transactions!$W:$W,$A$1,Transactions!$V:$V,$A52,Transactions!$B:$B,$H55)*-1 -> 0 | N55: =K55-M55 -> 1700 | O55: Gross Savings | P55: =$E61-$L61+$L60 -> 0
C56: =Budget!$A$7 -> Other Income | E56: =SUMIFS(Transactions!X:X,Transactions!Y:Y,"<>F",Transactions!W:W,$A$1,Transactions!V:V,$A52,Transactions!B:B,C56) -> 0 | F56: 0 | H56: =Budget!$G$7 -> Car | I56: 0 | J56: 0 | K56: 840 | L56: =SUMIFS(Transactions!$X:$X,Transactions!$Y:$Y,"<>F",Transactions!$W:$W,$A$1,Transactions!$V:$V,$A52,Transactions!$B:$B,$H56)*-1 -> 0 | M56: =SUMIFS(Transactions!$X:$X,Transactions!$W:$W,$A$1,Transactions!$V:$V,$A52,Transactions!$B:$B,$H56)*-1 -> 0 | N56: =K56-M56 -> 840 | O56: Gross Savings to Income | P56: =IF($E61=0,"",$P55/$E61) -> 
C57: =Budget!$A$8 -> 0 | D57: 0 | E57: =SUMIFS(Transactions!X:X,Transactions!Y:Y,"<>F",Transactions!W:W,$A$1,Transactions!V:V,$A52,Transactions!B:B,C57) -> 0 | F57: 0 | H57: =Budget!$G$8 -> Charity | I57: 0 | J57: 0 | K57: 400 | L57: =SUMIFS(Transactions!$X:$X,Transactions!$Y:$Y,"<>F",Transactions!$W:$W,$A$1,Transactions!$V:$V,$A52,Transactions!$B:$B,$H57)*-1 -> 0 | M57: =SUMIFS(Transactions!$X:$X,Transactions!$W:$W,$A$1,Transactions!$V:$V,$A52,Transactions!$B:$B,$H57)*-1 -> 0 | N57: 400
C58: =Budget!$A$9 -> 0 | E58: =SUMIFS(Transactions!X:X,Transactions!Y:Y,"<>F",Transactions!W:W,$A$1,Transactions!V:V,$A52,Transactions!B:B,C58) -> 0 | F58: 0 | H58: =Budget!$G$9 -> Health | I58: 0 | J58: 0 | K58: 200 | L58: =SUMIFS(Transactions!$X:$X,Transactions!$Y:$Y,"<>F",Transactions!$W:$W,$A$1,Transactions!$V:$V,$A52,Transactions!$B:$B,$H58)*-1 -> 0 | M58: =SUMIFS(Transactions!$X:$X,Transactions!$W:$W,$A$1,Transactions!$V:$V,$A52,Transactions!$B:$B,$H58)*-1 -> 0 | N58: 200
C59: =Budget!$A$10 -> 0 | E59: =SUMIFS(Transactions!X:X,Transactions!Y:Y,"<>F",Transactions!W:W,$A$1,Transactions!V:V,$A52,Transactions!B:B,C59) -> 0 | F59: 0 | H59: =Budget!$G$10 -> Other | I59: 200 | J59: 0 | L59: =SUMIFS(Transactions!$X:$X,Transactions!$Y:$Y,"<>F",Transactions!$W:$W,$A$1,Transactions!$V:$V,$A52,Transactions!$B:$B,$H59)*-1 -> 0 | M59: =SUMIFS(Transactions!$X:$X,Transactions!$W:$W,$A$1,Transactions!$V:$V,$A52,Transactions!$B:$B,$H59)*-1 -> 0 | N59: 0
H60: Savings | I60: 200 | J60: 0 | K60: 1100 | L60: =SUMIFS(Transactions!$X:$X,Transactions!$Y:$Y,"<>F",Transactions!$W:$W,$A$1,Transactions!$V:$V,$A52,Transactions!$B:$B,$H60)*-1 -> 0 | M60: =SUMIFS(Transactions!$X:$X,Transactions!$W:$W,$A$1,Transactions!$V:$V,$A52,Transactions!$B:$B,$H60)*-1 -> 0 | N60: 1100
C61: Total Income | D61: =SUM(D52:D60) -> 6725 | E61: =SUM(E52:E60) -> 0 | F61: =SUM(F52:F60) -> -6725 | H61: Total Expenses | I61: =SUM(I52:I60) -> 500 | J61: 0 | K61: =SUM(K52:K60) -> 6325 | L61: =SUM(L52:L60) -> 0 | M61: =SUM(M52:M60) -> 0 | N61: =SUM(N52:N60) -> 6325
A62: 7 | B62: =TEXT(A62*28,"mmmm") -> July | C62: =Budget!$A$3 -> Salary | D62: 6000 | E62: =SUMIFS(Transactions!X:X,Transactions!Y:Y,"<>F",Transactions!W:W,$A$1,Transactions!V:V,$A62,Transactions!B:B,C62) -> 0 | F62: =E62-D62 -> -6000 | H62: =Budget!$G$3 -> Groceries | I62: =ROUND(AVERAGE(L32,L42,L52),-2) -> 0 | J62: 0 | K62: 1185 | L62: =SUMIFS(Transactions!$X:$X,Transactions!$Y:$Y,"<>F",Transactions!$W:$W,$A$1,Transactions!$V:$V,$A62,Transactions!$B:$B,$H62)*-1 -> 0 | M62: =SUMIFS(Transactions!$X:$X,Transactions!$W:$W,$A$1,Transactions!$V:$V,$A62,Transactions!$B:$B,$H62)*-1 -> 0 | N62: =K62-M62 -> 1185 | O62: Budget Cash Savings | P62: =$D71-$K71 -> 400
C63: =Budget!$A$4 -> Bonus | E63: =SUMIFS(Transactions!X:X,Transactions!Y:Y,"<>F",Transactions!W:W,$A$1,Transactions!V:V,$A62,Transactions!B:B,C63) -> 0 | F63: 0 | H63: =Budget!$G$4 -> Entertainment | I63: 0 | J63: 0 | K63: 400 | L63: =SUMIFS(Transactions!$X:$X,Transactions!$Y:$Y,"<>F",Transactions!$W:$W,$A$1,Transactions!$V:$V,$A62,Transactions!$B:$B,$H63)*-1 -> 0 | M63: =SUMIFS(Transactions!$X:$X,Transactions!$W:$W,$A$1,Transactions!$V:$V,$A62,Transactions!$B:$B,$H63)*-1 -> 0 | N63: 400 | O63: Cash Savings | P63: =$E71-$L71 -> 0
C64: =Budget!$A$5 -> Kids | D64: 725 | E64: =SUMIFS(Transactions!X:X,Transactions!Y:Y,"<>F",Transactions!W:W,$A$1,Transactions!V:V,$A62,Transactions!B:B,C64) -> 0 | F64: -725 | H64: =Budget!$G$5 -> Shopping | I64: 0 | J64: 0 | K64: 500 | L64: =SUMIFS(Transactions!$X:$X,Transactions!$Y:$Y,"<>F",Transactions!$W:$W,$A$1,Transactions!$V:$V,$A62,Transactions!$B:$B,$H64)*-1 -> 0 | M64: =SUMIFS(Transactions!$X:$X,Transactions!$W:$W,$A$1,Transactions!$V:$V,$A62,Transactions!$B:$B,$H64)*-1 -> 0 | N64: 500 | O64: Cash Savings to Income | P64: =IF($E71=0,"",$P63/$E71) -> 
C65: =Budget!$A$6 -> Side Project | E65: =SUMIFS(Transactions!X:X,Transactions!Y:Y,"<>F",Transactions!W:W,$A$1,Transactions!V:V,$A62,Transactions!B:B,C65) -> 0 | F65: 0 | H65: =Budget!$G$6 -> Bills | I65: 0 | J65: 0 | K65: 1700 | L65: =SUMIFS(Transactions!$X:$X,Transactions!$Y:$Y,"<>F",Transactions!$W:$W,$A$1,Transactions!$V:$V,$A62,Transactions!$B:$B,$H65)*-1 -> 0 | M65: =SUMIFS(Transactions!$X:$X,Transactions!$W:$W,$A$1,Transactions!$V:$V,$A62,Transactions!$B:$B,$H65)*-1 -> 0 | N65: =K65-M65 -> 1700 | O65: Gross Savings | P65: =$E71-$L71+$L70 -> 0
C66: =Budget!$A$7 -> Other Income | E66: =SUMIFS(Transactions!X:X,Transactions!Y:Y,"<>F",Transactions!W:W,$A$1,Transactions!V:V,$A62,Transactions!B:B,C66) -> 0 | F66: 0 | H66: =Budget!$G$7 -> Car | I66: 0 | J66: 0 | K66: 840 | L66: =SUMIFS(Transactions!$X:$X,Transactions!$Y:$Y,"<>F",Transactions!$W:$W,$A$1,Transactions!$V:$V,$A62,Transactions!$B:$B,$H66)*-1 -> 0 | M66: =SUMIFS(Transactions!$X:$X,Transactions!$W:$W,$A$1,Transactions!$V:$V,$A62,Transactions!$B:$B,$H66)*-1 -> 0 | N66: =K66-M66 -> 840 | O66: Gross Savings to Income | P66: =IF($E71=0,"",$P65/$E71) -> 
C67: =Budget!$A$8 -> 0 | D67: 0 | E67: =SUMIFS(Transactions!X:X,Transactions!Y:Y,"<>F",Transactions!W:W,$A$1,Transactions!V:V,$A62,Transactions!B:B,C67) -> 0 | F67: 0 | H67: =Budget!$G$8 -> Charity | I67: 0 | J67: 0 | K67: 400 | L67: =SUMIFS(Transactions!$X:$X,Transactions!$Y:$Y,"<>F",Transactions!$W:$W,$A$1,Transactions!$V:$V,$A62,Transactions!$B:$B,$H67)*-1 -> 0 | M67: =SUMIFS(Transactions!$X:$X,Transactions!$W:$W,$A$1,Transactions!$V:$V,$A62,Transactions!$B:$B,$H67)*-1 -> 0 | N67: 400
C68: =Budget!$A$9 -> 0 | E68: =SUMIFS(Transactions!X:X,Transactions!Y:Y,"<>F",Transactions!W:W,$A$1,Transactions!V:V,$A62,Transactions!B:B,C68) -> 0 | F68: 0 | H68: =Budget!$G$9 -> Health | I68: 0 | J68: 0 | K68: 200 | L68: =SUMIFS(Transactions!$X:$X,Transactions!$Y:$Y,"<>F",Transactions!$W:$W,$A$1,Transactions!$V:$V,$A62,Transactions!$B:$B,$H68)*-1 -> 0 | M68: =SUMIFS(Transactions!$X:$X,Transactions!$W:$W,$A$1,Transactions!$V:$V,$A62,Transactions!$B:$B,$H68)*-1 -> 0 | N68: 200
C69: =Budget!$A$10 -> 0 | E69: =SUMIFS(Transactions!X:X,Transactions!Y:Y,"<>F",Transactions!W:W,$A$1,Transactions!V:V,$A62,Transactions!B:B,C69) -> 0 | F69: 0 | H69: =Budget!$G$10 -> Other | I69: 0 | J69: 0 | L69: =SUMIFS(Transactions!$X:$X,Transactions!$Y:$Y,"<>F",Transactions!$W:$W,$A$1,Transactions!$V:$V,$A62,Transactions!$B:$B,$H69)*-1 -> 0 | M69: =SUMIFS(Transactions!$X:$X,Transactions!$W:$W,$A$1,Transactions!$V:$V,$A62,Transactions!$B:$B,$H69)*-1 -> 0 | N69: 0
H70: Savings | I70: 0 | J70: 0 | K70: 1100 | L70: =SUMIFS(Transactions!$X:$X,Transactions!$Y:$Y,"<>F",Transactions!$W:$W,$A$1,Transactions!$V:$V,$A62,Transactions!$B:$B,$H70)*-1 -> 0 | M70: =SUMIFS(Transactions!$X:$X,Transactions!$W:$W,$A$1,Transactions!$V:$V,$A62,Transactions!$B:$B,$H70)*-1 -> 0 | N70: 1100
C71: Total Income | D71: =SUM(D62:D70) -> 6725 | E71: =SUM(E62:E70) -> 0 | F71: =SUM(F62:F70) -> -6725 | H71: Total Expenses | I71: =SUM(I62:I70) -> 0 | J71: 0 | K71: =SUM(K62:K70) -> 6325 | L71: =SUM(L62:L70) -> 0 | M71: =SUM(M62:M70) -> 0 | N71: =SUM(N62:N70) -> 6325
A72: 8 | B72: =TEXT(A72*28,"mmmm") -> August | C72: =Budget!$A$3 -> Salary | D72: 6000 | E72: =SUMIFS(Transactions!X:X,Transactions!Y:Y,"<>F",Transactions!W:W,$A$1,Transactions!V:V,$A72,Transactions!B:B,C72) -> 0 | F72: =E72-D72 -> -6000 | H72: =Budget!$G$3 -> Groceries | I72: =ROUND(AVERAGE(L42,L52,L62),-2) -> 0 | J72: 0 | K72: 1185 | L72: =SUMIFS(Transactions!$X:$X,Transactions!$Y:$Y,"<>F",Transactions!$W:$W,$A$1,Transactions!$V:$V,$A72,Transactions!$B:$B,$H72)*-1 -> 0 | M72: =SUMIFS(Transactions!$X:$X,Transactions!$W:$W,$A$1,Transactions!$V:$V,$A72,Transactions!$B:$B,$H72)*-1 -> 0 | N72: =K72-M72 -> 1185 | O72: Budget Cash Savings | P72: =$D81-$K81 -> 400
C73: =Budget!$A$4 -> Bonus | E73: =SUMIFS(Transactions!X:X,Transactions!Y:Y,"<>F",Transactions!W:W,$A$1,Transactions!V:V,$A72,Transactions!B:B,C73) -> 0 | F73: 0 | H73: =Budget!$G$4 -> Entertainment | I73: 0 | J73: 0 | K73: 400 | L73: =SUMIFS(Transactions!$X:$X,Transactions!$Y:$Y,"<>F",Transactions!$W:$W,$A$1,Transactions!$V:$V,$A72,Transactions!$B:$B,$H73)*-1 -> 0 | M73: =SUMIFS(Transactions!$X:$X,Transactions!$W:$W,$A$1,Transactions!$V:$V,$A72,Transactions!$B:$B,$H73)*-1 -> 0 | N73: 400 | O73: Cash Savings | P73: =$E81-$L81 -> 0
C74: =Budget!$A$5 -> Kids | D74: 725 | E74: =SUMIFS(Transactions!X:X,Transactions!Y:Y,"<>F",Transactions!W:W,$A$1,Transactions!V:V,$A72,Transactions!B:B,C74) -> 0 | F74: -725 | H74: =Budget!$G$5 -> Shopping | I74: 0 | J74: 0 | K74: 500 | L74: =SUMIFS(Transactions!$X:$X,Transactions!$Y:$Y,"<>F",Transactions!$W:$W,$A$1,Transactions!$V:$V,$A72,Transactions!$B:$B,$H74)*-1 -> 0 | M74: =SUMIFS(Transactions!$X:$X,Transactions!$W:$W,$A$1,Transactions!$V:$V,$A72,Transactions!$B:$B,$H74)*-1 -> 0 | N74: 500 | O74: Cash Savings to Income | P74: =IF($E81=0,"",$P73/$E81) -> 
C75: =Budget!$A$6 -> Side Project | D75: 0 | E75: =SUMIFS(Transactions!X:X,Transactions!Y:Y,"<>F",Transactions!W:W,$A$1,Transactions!V:V,$A72,Transactions!B:B,C75) -> 0 | F75: 0 | H75: =Budget!$G$6 -> Bills | I75: 0 | J75: =L65 -> 0 | K75: 1700 | L75: =SUMIFS(Transactions!$X:$X,Transactions!$Y:$Y,"<>F",Transactions!$W:$W,$A$1,Transactions!$V:$V,$A72,Transactions!$B:$B,$H75)*-1 -> 0 | M75: =SUMIFS(Transactions!$X:$X,Transactions!$W:$W,$A$1,Transactions!$V:$V,$A72,Transactions!$B:$B,$H75)*-1 -> 0 | N75: =K75-M75 -> 1700 | O75: Gross Savings | P75: =$E81-$L81+$L80 -> 0
C76: =Budget!$A$7 -> Other Income | E76: =SUMIFS(Transactions!X:X,Transactions!Y:Y,"<>F",Transactions!W:W,$A$1,Transactions!V:V,$A72,Transactions!B:B,C76) -> 0 | F76: 0 | H76: =Budget!$G$7 -> Car | I76: 0 | J76: 0 | K76: 840 | L76: =SUMIFS(Transactions!$X:$X,Transactions!$Y:$Y,"<>F",Transactions!$W:$W,$A$1,Transactions!$V:$V,$A72,Transactions!$B:$B,$H76)*-1 -> 0 | M76: =SUMIFS(Transactions!$X:$X,Transactions!$W:$W,$A$1,Transactions!$V:$V,$A72,Transactions!$B:$B,$H76)*-1 -> 0 | N76: =K76-M76 -> 840 | O76: Gross Savings to Income | P76: =IF($E81=0,"",$P75/$E81) -> 
C77: =Budget!$A$8 -> 0 | E77: =SUMIFS(Transactions!X:X,Transactions!Y:Y,"<>F",Transactions!W:W,$A$1,Transactions!V:V,$A72,Transactions!B:B,C77) -> 0 | F77: 0 | H77: =Budget!$G$8 -> Charity | I77: 0 | J77: 0 | K77: 400 | L77: =SUMIFS(Transactions!$X:$X,Transactions!$Y:$Y,"<>F",Transactions!$W:$W,$A$1,Transactions!$V:$V,$A72,Transactions!$B:$B,$H77)*-1 -> 0 | M77: =SUMIFS(Transactions!$X:$X,Transactions!$W:$W,$A$1,Transactions!$V:$V,$A72,Transactions!$B:$B,$H77)*-1 -> 0 | N77: 400
C78: =Budget!$A$9 -> 0 | E78: =SUMIFS(Transactions!X:X,Transactions!Y:Y,"<>F",Transactions!W:W,$A$1,Transactions!V:V,$A72,Transactions!B:B,C78) -> 0 | F78: 0 | H78: =Budget!$G$9 -> Health | I78: 0 | J78: 0 | K78: 200 | L78: =SUMIFS(Transactions!$X:$X,Transactions!$Y:$Y,"<>F",Transactions!$W:$W,$A$1,Transactions!$V:$V,$A72,Transactions!$B:$B,$H78)*-1 -> 0 | M78: =SUMIFS(Transactions!$X:$X,Transactions!$W:$W,$A$1,Transactions!$V:$V,$A72,Transactions!$B:$B,$H78)*-1 -> 0 | N78: 200
C79: =Budget!$A$10 -> 0 | E79: =SUMIFS(Transactions!X:X,Transactions!Y:Y,"<>F",Transactions!W:W,$A$1,Transactions!V:V,$A72,Transactions!B:B,C79) -> 0 | F79: 0 | H79: =Budget!$G$10 -> Other | I79: 0 | J79: 0 | L79: =SUMIFS(Transactions!$X:$X,Transactions!$Y:$Y,"<>F",Transactions!$W:$W,$A$1,Transactions!$V:$V,$A72,Transactions!$B:$B,$H79)*-1 -> 0 | M79: =SUMIFS(Transactions!$X:$X,Transactions!$W:$W,$A$1,Transactions!$V:$V,$A72,Transactions!$B:$B,$H79)*-1 -> 0 | N79: 0
H80: Savings | I80: 0 | J80: 0 | K80: 1100 | L80: =SUMIFS(Transactions!$X:$X,Transactions!$Y:$Y,"<>F",Transactions!$W:$W,$A$1,Transactions!$V:$V,$A72,Transactions!$B:$B,$H80)*-1 -> 0 | M80: =SUMIFS(Transactions!$X:$X,Transactions!$W:$W,$A$1,Transactions!$V:$V,$A72,Transactions!$B:$B,$H80)*-1 -> 0 | N80: 1100
C81: Total Income | D81: =SUM(D72:D80) -> 6725 | E81: =SUM(E72:E80) -> 0 | F81: =SUM(F72:F80) -> -6725 | H81: Total Expenses | I81: =SUM(I72:I80) -> 0 | J81: 0 | K81: =SUM(K72:K80) -> 6325 | L81: =SUM(L72:L80) -> 0 | M81: =SUM(M72:M80) -> 0 | N81: =SUM(N72:N80) -> 6325
A82: 9 | B82: =TEXT(A82*28,"mmmm") -> September | C82: =Budget!$A$3 -> Salary | D82: 10000 | E82: =SUMIFS(Transactions!X:X,Transactions!Y:Y,"<>F",Transactions!W:W,$A$1,Transactions!V:V,$A82,Transactions!B:B,C82) -> 0 | F82: =E82-D82 -> -10000 | H82: =Budget!$G$3 -> Groceries | I82: =ROUND(AVERAGE(L52,L62,L72),-2) -> 0 | J82: 0 | K82: 1185 | L82: =SUMIFS(Transactions!$X:$X,Transactions!$Y:$Y,"<>F",Transactions!$W:$W,$A$1,Transactions!$V:$V,$A82,Transactions!$B:$B,$H82)*-1 -> 0 | M82: =SUMIFS(Transactions!$X:$X,Transactions!$W:$W,$A$1,Transactions!$V:$V,$A82,Transactions!$B:$B,$H82)*-1 -> 0 | N82: =K82-M82 -> 1185 | O82: Budget Cash Savings | P82: =$D91-$K91 -> 4400
C83: =Budget!$A$4 -> Bonus | E83: =SUMIFS(Transactions!X:X,Transactions!Y:Y,"<>F",Transactions!W:W,$A$1,Transactions!V:V,$A82,Transactions!B:B,C83) -> 0 | F83: 0 | H83: =Budget!$G$4 -> Entertainment | I83: 0 | J83: 0 | K83: 400 | L83: =SUMIFS(Transactions!$X:$X,Transactions!$Y:$Y,"<>F",Transactions!$W:$W,$A$1,Transactions!$V:$V,$A82,Transactions!$B:$B,$H83)*-1 -> 0 | M83: =SUMIFS(Transactions!$X:$X,Transactions!$W:$W,$A$1,Transactions!$V:$V,$A82,Transactions!$B:$B,$H83)*-1 -> 0 | N83: 400 | O83: Cash Savings | P83: =$E91-$L91 -> 0
C84: =Budget!$A$5 -> Kids | D84: 725 | E84: =SUMIFS(Transactions!X:X,Transactions!Y:Y,"<>F",Transactions!W:W,$A$1,Transactions!V:V,$A82,Transactions!B:B,C84) -> 0 | F84: -725 | H84: =Budget!$G$5 -> Shopping | I84: 0 | J84: 0 | K84: 500 | L84: =SUMIFS(Transactions!$X:$X,Transactions!$Y:$Y,"<>F",Transactions!$W:$W,$A$1,Transactions!$V:$V,$A82,Transactions!$B:$B,$H84)*-1 -> 0 | M84: =SUMIFS(Transactions!$X:$X,Transactions!$W:$W,$A$1,Transactions!$V:$V,$A82,Transactions!$B:$B,$H84)*-1 -> 0 | N84: 500 | O84: Cash Savings to Income | P84: =IF($E91=0,"",$P83/$E91) -> 
C85: =Budget!$A$6 -> Side Project | D85: 0 | E85: =SUMIFS(Transactions!X:X,Transactions!Y:Y,"<>F",Transactions!W:W,$A$1,Transactions!V:V,$A82,Transactions!B:B,C85) -> 0 | F85: 0 | H85: =Budget!$G$6 -> Bills | I85: 0 | J85: 0 | K85: 1700 | L85: =SUMIFS(Transactions!$X:$X,Transactions!$Y:$Y,"<>F",Transactions!$W:$W,$A$1,Transactions!$V:$V,$A82,Transactions!$B:$B,$H85)*-1 -> 0 | M85: =SUMIFS(Transactions!$X:$X,Transactions!$W:$W,$A$1,Transactions!$V:$V,$A82,Transactions!$B:$B,$H85)*-1 -> 0 | N85: =K85-M85 -> 1700 | O85: Gross Savings | P85: =$E91-$L91+$L90 -> 0
C86: =Budget!$A$7 -> Other Income | E86: =SUMIFS(Transactions!X:X,Transactions!Y:Y,"<>F",Transactions!W:W,$A$1,Transactions!V:V,$A82,Transactions!B:B,C86) -> 0 | F86: 0 | H86: =Budget!$G$7 -> Car | I86: 0 | J86: 0 | K86: 840 | L86: =SUMIFS(Transactions!$X:$X,Transactions!$Y:$Y,"<>F",Transactions!$W:$W,$A$1,Transactions!$V:$V,$A82,Transactions!$B:$B,$H86)*-1 -> 0 | M86: =SUMIFS(Transactions!$X:$X,Transactions!$W:$W,$A$1,Transactions!$V:$V,$A82,Transactions!$B:$B,$H86)*-1 -> 0 | N86: =K86-M86 -> 840 | O86: Gross Savings to Income | P86: =IF($E91=0,"",$P85/$E91) -> 
C87: =Budget!$A$8 -> 0 | E87: =SUMIFS(Transactions!X:X,Transactions!Y:Y,"<>F",Transactions!W:W,$A$1,Transactions!V:V,$A82,Transactions!B:B,C87) -> 0 | F87: 0 | H87: =Budget!$G$8 -> Charity | I87: 0 | J87: 0 | K87: 400 | L87: =SUMIFS(Transactions!$X:$X,Transactions!$Y:$Y,"<>F",Transactions!$W:$W,$A$1,Transactions!$V:$V,$A82,Transactions!$B:$B,$H87)*-1 -> 0 | M87: =SUMIFS(Transactions!$X:$X,Transactions!$W:$W,$A$1,Transactions!$V:$V,$A82,Transactions!$B:$B,$H87)*-1 -> 0 | N87: 400
C88: =Budget!$A$9 -> 0 | E88: =SUMIFS(Transactions!X:X,Transactions!Y:Y,"<>F",Transactions!W:W,$A$1,Transactions!V:V,$A82,Transactions!B:B,C88) -> 0 | F88: 0 | H88: =Budget!$G$9 -> Health | I88: 0 | J88: 0 | K88: 200 | L88: =SUMIFS(Transactions!$X:$X,Transactions!$Y:$Y,"<>F",Transactions!$W:$W,$A$1,Transactions!$V:$V,$A82,Transactions!$B:$B,$H88)*-1 -> 0 | M88: =SUMIFS(Transactions!$X:$X,Transactions!$W:$W,$A$1,Transactions!$V:$V,$A82,Transactions!$B:$B,$H88)*-1 -> 0 | N88: 200
C89: =Budget!$A$10 -> 0 | E89: =SUMIFS(Transactions!X:X,Transactions!Y:Y,"<>F",Transactions!W:W,$A$1,Transactions!V:V,$A82,Transactions!B:B,C89) -> 0 | F89: 0 | H89: =Budget!$G$10 -> Other | I89: 0 | J89: 0 | L89: =SUMIFS(Transactions!$X:$X,Transactions!$Y:$Y,"<>F",Transactions!$W:$W,$A$1,Transactions!$V:$V,$A82,Transactions!$B:$B,$H89)*-1 -> 0 | M89: =SUMIFS(Transactions!$X:$X,Transactions!$W:$W,$A$1,Transactions!$V:$V,$A82,Transactions!$B:$B,$H89)*-1 -> 0 | N89: 0
H90: Savings | I90: 0 | J90: 0 | K90: 1100 | L90: =SUMIFS(Transactions!$X:$X,Transactions!$Y:$Y,"<>F",Transactions!$W:$W,$A$1,Transactions!$V:$V,$A82,Transactions!$B:$B,$H90)*-1 -> 0 | M90: =SUMIFS(Transactions!$X:$X,Transactions!$W:$W,$A$1,Transactions!$V:$V,$A82,Transactions!$B:$B,$H90)*-1 -> 0 | N90: 1100
C91: Total Income | D91: =SUM(D82:D90) -> 10725 | E91: =SUM(E82:E90) -> 0 | F91: =SUM(F82:F90) -> -10725 | H91: Total Expenses | I91: =SUM(I82:I90) -> 0 | J91: 0 | K91: =SUM(K82:K90) -> 6325 | L91: =SUM(L82:L90) -> 0 | M91: =SUM(M82:M90) -> 0 | N91: =SUM(N82:N90) -> 6325
A92: 10 | B92: =TEXT(A92*28,"mmmm") -> October | C92: =Budget!$A$3 -> Salary | D92: 7000 | E92: =SUMIFS(Transactions!X:X,Transactions!Y:Y,"<>F",Transactions!W:W,$A$1,Transactions!V:V,$A92,Transactions!B:B,C92) -> 0 | F92: =E92-D92 -> -7000 | H92: =Budget!$G$3 -> Groceries | I92: =ROUND(AVERAGE(L62,L72,L82),-2) -> 0 | J92: 0 | K92: 1185 | L92: =SUMIFS(Transactions!$X:$X,Transactions!$Y:$Y,"<>F",Transactions!$W:$W,$A$1,Transactions!$V:$V,$A92,Transactions!$B:$B,$H92)*-1 -> 0 | M92: =SUMIFS(Transactions!$X:$X,Transactions!$W:$W,$A$1,Transactions!$V:$V,$A92,Transactions!$B:$B,$H92)*-1 -> 0 | N92: =K92-M92 -> 1185 | O92: Budget Cash Savings | P92: =$D101-$K101 -> 1400
C93: =Budget!$A$4 -> Bonus | E93: =SUMIFS(Transactions!X:X,Transactions!Y:Y,"<>F",Transactions!W:W,$A$1,Transactions!V:V,$A92,Transactions!B:B,C93) -> 0 | F93: 0 | H93: =Budget!$G$4 -> Entertainment | I93: 0 | J93: 0 | K93: 400 | L93: =SUMIFS(Transactions!$X:$X,Transactions!$Y:$Y,"<>F",Transactions!$W:$W,$A$1,Transactions!$V:$V,$A92,Transactions!$B:$B,$H93)*-1 -> 0 | M93: =SUMIFS(Transactions!$X:$X,Transactions!$W:$W,$A$1,Transactions!$V:$V,$A92,Transactions!$B:$B,$H93)*-1 -> 0 | N93: 400 | O93: Cash Savings | P93: =$E101-$L101 -> 0
C94: =Budget!$A$5 -> Kids | D94: 725 | E94: =SUMIFS(Transactions!X:X,Transactions!Y:Y,"<>F",Transactions!W:W,$A$1,Transactions!V:V,$A92,Transactions!B:B,C94) -> 0 | F94: -725 | H94: =Budget!$G$5 -> Shopping | I94: 0 | J94: 0 | K94: 500 | L94: =SUMIFS(Transactions!$X:$X,Transactions!$Y:$Y,"<>F",Transactions!$W:$W,$A$1,Transactions!$V:$V,$A92,Transactions!$B:$B,$H94)*-1 -> 0 | M94: =SUMIFS(Transactions!$X:$X,Transactions!$W:$W,$A$1,Transactions!$V:$V,$A92,Transactions!$B:$B,$H94)*-1 -> 0 | N94: 500 | O94: Cash Savings to Income | P94: =IF($E101=0,"",$P93/$E101) -> 
C95: =Budget!$A$6 -> Side Project | D95: 0 | E95: =SUMIFS(Transactions!X:X,Transactions!Y:Y,"<>F",Transactions!W:W,$A$1,Transactions!V:V,$A92,Transactions!B:B,C95) -> 0 | F95: 0 | H95: =Budget!$G$6 -> Bills | I95: 0 | J95: 0 | K95: 1700 | L95: =SUMIFS(Transactions!$X:$X,Transactions!$Y:$Y,"<>F",Transactions!$W:$W,$A$1,Transactions!$V:$V,$A92,Transactions!$B:$B,$H95)*-1 -> 0 | M95: =SUMIFS(Transactions!$X:$X,Transactions!$W:$W,$A$1,Transactions!$V:$V,$A92,Transactions!$B:$B,$H95)*-1 -> 0 | N95: =K95-M95 -> 1700 | O95: Gross Savings | P95: =$E101-$L101+$L100 -> 0
C96: =Budget!$A$7 -> Other Income | E96: =SUMIFS(Transactions!X:X,Transactions!Y:Y,"<>F",Transactions!W:W,$A$1,Transactions!V:V,$A92,Transactions!B:B,C96) -> 0 | F96: 0 | H96: =Budget!$G$7 -> Car | I96: 0 | J96: 0 | K96: 840 | L96: =SUMIFS(Transactions!$X:$X,Transactions!$Y:$Y,"<>F",Transactions!$W:$W,$A$1,Transactions!$V:$V,$A92,Transactions!$B:$B,$H96)*-1 -> 0 | M96: =SUMIFS(Transactions!$X:$X,Transactions!$W:$W,$A$1,Transactions!$V:$V,$A92,Transactions!$B:$B,$H96)*-1 -> 0 | N96: =K96-M96 -> 840 | O96: Gross Savings to Income | P96: =IF($E101=0,"",$P95/$E101) -> 
C97: =Budget!$A$8 -> 0 | E97: =SUMIFS(Transactions!X:X,Transactions!Y:Y,"<>F",Transactions!W:W,$A$1,Transactions!V:V,$A92,Transactions!B:B,C97) -> 0 | F97: 0 | H97: =Budget!$G$8 -> Charity | I97: 0 | J97: 0 | K97: 400 | L97: =SUMIFS(Transactions!$X:$X,Transactions!$Y:$Y,"<>F",Transactions!$W:$W,$A$1,Transactions!$V:$V,$A92,Transactions!$B:$B,$H97)*-1 -> 0 | M97: =SUMIFS(Transactions!$X:$X,Transactions!$W:$W,$A$1,Transactions!$V:$V,$A92,Transactions!$B:$B,$H97)*-1 -> 0 | N97: 400
C98: =Budget!$A$9 -> 0 | E98: =SUMIFS(Transactions!X:X,Transactions!Y:Y,"<>F",Transactions!W:W,$A$1,Transactions!V:V,$A92,Transactions!B:B,C98) -> 0 | F98: 0 | H98: =Budget!$G$9 -> Health | I98: 0 | J98: 0 | K98: 200 | L98: =SUMIFS(Transactions!$X:$X,Transactions!$Y:$Y,"<>F",Transactions!$W:$W,$A$1,Transactions!$V:$V,$A92,Transactions!$B:$B,$H98)*-1 -> 0 | M98: =SUMIFS(Transactions!$X:$X,Transactions!$W:$W,$A$1,Transactions!$V:$V,$A92,Transactions!$B:$B,$H98)*-1 -> 0 | N98: 200
C99: =Budget!$A$10 -> 0 | E99: =SUMIFS(Transactions!X:X,Transactions!Y:Y,"<>F",Transactions!W:W,$A$1,Transactions!V:V,$A92,Transactions!B:B,C99) -> 0 | F99: 0 | H99: =Budget!$G$10 -> Other | I99: 0 | J99: 0 | L99: =SUMIFS(Transactions!$X:$X,Transactions!$Y:$Y,"<>F",Transactions!$W:$W,$A$1,Transactions!$V:$V,$A92,Transactions!$B:$B,$H99)*-1 -> 0 | M99: =SUMIFS(Transactions!$X:$X,Transactions!$W:$W,$A$1,Transactions!$V:$V,$A92,Transactions!$B:$B,$H99)*-1 -> 0 | N99: 0
H100: Savings | I100: 0 | J100: 0 | K100: 1100 | L100: =SUMIFS(Transactions!$X:$X,Transactions!$Y:$Y,"<>F",Transactions!$W:$W,$A$1,Transactions!$V:$V,$A92,Transactions!$B:$B,$H100)*-1 -> 0 | M100: =SUMIFS(Transactions!$X:$X,Transactions!$W:$W,$A$1,Transactions!$V:$V,$A92,Transactions!$B:$B,$H100)*-1 -> 0 | N100: 1100
C101: Total Income | D101: =SUM(D92:D100) -> 7725 | E101: =SUM(E92:E100) -> 0 | F101: =SUM(F92:F100) -> -7725 | H101: Total Expenses | I101: =SUM(I92:I100) -> 0 | J101: 0 | K101: =SUM(K92:K100) -> 6325 | L101: =SUM(L92:L100) -> 0 | M101: =SUM(M92:M100) -> 0 | N101: =SUM(N92:N100) -> 6325
A102: 11 | B102: =TEXT(A102*28,"mmmm") -> November | C102: =Budget!$A$3 -> Salary | D102: 7000 | E102: =SUMIFS(Transactions!X:X,Transactions!Y:Y,"<>F",Transactions!W:W,$A$1,Transactions!V:V,$A102,Transactions!B:B,C102) -> 0 | F102: =E102-D102 -> -7000 | H102: =Budget!$G$3 -> Groceries | I102: =ROUND(AVERAGE(L72,L82,L92),-2) -> 0 | J102: 0 | K102: 1185 | L102: =SUMIFS(Transactions!$X:$X,Transactions!$Y:$Y,"<>F",Transactions!$W:$W,$A$1,Transactions!$V:$V,$A102,Transactions!$B:$B,$H102)*-1 -> 0 | M102: =SUMIFS(Transactions!$X:$X,Transactions!$W:$W,$A$1,Transactions!$V:$V,$A102,Transactions!$B:$B,$H102)*-1 -> 0 | N102: =K102-M102 -> 1185 | O102: Budget Cash Savings | P102: =$D111-$K111 -> 1400
C103: =Budget!$A$4 -> Bonus | E103: =SUMIFS(Transactions!X:X,Transactions!Y:Y,"<>F",Transactions!W:W,$A$1,Transactions!V:V,$A102,Transactions!B:B,C103) -> 0 | F103: 0 | H103: =Budget!$G$4 -> Entertainment | I103: 0 | J103: 0 | K103: 400 | L103: =SUMIFS(Transactions!$X:$X,Transactions!$Y:$Y,"<>F",Transactions!$W:$W,$A$1,Transactions!$V:$V,$A102,Transactions!$B:$B,$H103)*-1 -> 0 | M103: =SUMIFS(Transactions!$X:$X,Transactions!$W:$W,$A$1,Transactions!$V:$V,$A102,Transactions!$B:$B,$H103)*-1 -> 0 | N103: 400 | O103: Cash Savings | P103: =$E111-$L111 -> 0
C104: =Budget!$A$5 -> Kids | D104: 725 | E104: =SUMIFS(Transactions!X:X,Transactions!Y:Y,"<>F",Transactions!W:W,$A$1,Transactions!V:V,$A102,Transactions!B:B,C104) -> 0 | F104: -725 | H104: =Budget!$G$5 -> Shopping | I104: 0 | J104: 0 | K104: 500 | L104: =SUMIFS(Transactions!$X:$X,Transactions!$Y:$Y,"<>F",Transactions!$W:$W,$A$1,Transactions!$V:$V,$A102,Transactions!$B:$B,$H104)*-1 -> 0 | M104: =SUMIFS(Transactions!$X:$X,Transactions!$W:$W,$A$1,Transactions!$V:$V,$A102,Transactions!$B:$B,$H104)*-1 -> 0 | N104: 500 | O104: Cash Savings to Income | P104: =IF($E111=0,"",$P103/$E111) -> 
C105: =Budget!$A$6 -> Side Project | D105: 0 | E105: =SUMIFS(Transactions!X:X,Transactions!Y:Y,"<>F",Transactions!W:W,$A$1,Transactions!V:V,$A102,Transactions!B:B,C105) -> 0 | F105: 0 | H105: =Budget!$G$6 -> Bills | I105: 0 | J105: 0 | K105: 1700 | L105: =SUMIFS(Transactions!$X:$X,Transactions!$Y:$Y,"<>F",Transactions!$W:$W,$A$1,Transactions!$V:$V,$A102,Transactions!$B:$B,$H105)*-1 -> 0 | M105: =SUMIFS(Transactions!$X:$X,Transactions!$W:$W,$A$1,Transactions!$V:$V,$A102,Transactions!$B:$B,$H105)*-1 -> 0 | N105: =K105-M105 -> 1700 | O105: Gross Savings | P105: =$E111-$L111+$L110 -> 0
C106: =Budget!$A$7 -> Other Income | E106: =SUMIFS(Transactions!X:X,Transactions!Y:Y,"<>F",Transactions!W:W,$A$1,Transactions!V:V,$A102,Transactions!B:B,C106) -> 0 | F106: 0 | H106: =Budget!$G$7 -> Car | I106: 0 | J106: 0 | K106: 840 | L106: =SUMIFS(Transactions!$X:$X,Transactions!$Y:$Y,"<>F",Transactions!$W:$W,$A$1,Transactions!$V:$V,$A102,Transactions!$B:$B,$H106)*-1 -> 0 | M106: =SUMIFS(Transactions!$X:$X,Transactions!$W:$W,$A$1,Transactions!$V:$V,$A102,Transactions!$B:$B,$H106)*-1 -> 0 | N106: =K106-M106 -> 840 | O106: Gross Savings to Income | P106: =IF($E111=0,"",$P105/$E111) -> 
C107: =Budget!$A$8 -> 0 | E107: =SUMIFS(Transactions!X:X,Transactions!Y:Y,"<>F",Transactions!W:W,$A$1,Transactions!V:V,$A102,Transactions!B:B,C107) -> 0 | F107: 0 | H107: =Budget!$G$8 -> Charity | I107: 0 | J107: 0 | K107: 400 | L107: =SUMIFS(Transactions!$X:$X,Transactions!$Y:$Y,"<>F",Transactions!$W:$W,$A$1,Transactions!$V:$V,$A102,Transactions!$B:$B,$H107)*-1 -> 0 | M107: =SUMIFS(Transactions!$X:$X,Transactions!$W:$W,$A$1,Transactions!$V:$V,$A102,Transactions!$B:$B,$H107)*-1 -> 0 | N107: 400
C108: =Budget!$A$9 -> 0 | E108: =SUMIFS(Transactions!X:X,Transactions!Y:Y,"<>F",Transactions!W:W,$A$1,Transactions!V:V,$A102,Transactions!B:B,C108) -> 0 | F108: 0 | H108: =Budget!$G$9 -> Health | I108: 0 | J108: 0 | K108: 200 | L108: =SUMIFS(Transactions!$X:$X,Transactions!$Y:$Y,"<>F",Transactions!$W:$W,$A$1,Transactions!$V:$V,$A102,Transactions!$B:$B,$H108)*-1 -> 0 | M108: =SUMIFS(Transactions!$X:$X,Transactions!$W:$W,$A$1,Transactions!$V:$V,$A102,Transactions!$B:$B,$H108)*-1 -> 0 | N108: 200
C109: =Budget!$A$10 -> 0 | E109: =SUMIFS(Transactions!X:X,Transactions!Y:Y,"<>F",Transactions!W:W,$A$1,Transactions!V:V,$A102,Transactions!B:B,C109) -> 0 | F109: 0 | H109: =Budget!$G$10 -> Other | I109: 0 | J109: 0 | L109: =SUMIFS(Transactions!$X:$X,Transactions!$Y:$Y,"<>F",Transactions!$W:$W,$A$1,Transactions!$V:$V,$A102,Transactions!$B:$B,$H109)*-1 -> 0 | M109: =SUMIFS(Transactions!$X:$X,Transactions!$W:$W,$A$1,Transactions!$V:$V,$A102,Transactions!$B:$B,$H109)*-1 -> 0 | N109: 0
H110: Savings | I110: 0 | J110: 0 | K110: 1100 | L110: =SUMIFS(Transactions!$X:$X,Transactions!$Y:$Y,"<>F",Transactions!$W:$W,$A$1,Transactions!$V:$V,$A102,Transactions!$B:$B,$H110)*-1 -> 0 | M110: =SUMIFS(Transactions!$X:$X,Transactions!$W:$W,$A$1,Transactions!$V:$V,$A102,Transactions!$B:$B,$H110)*-1 -> 0 | N110: 1100
C111: Total Income | D111: =SUM(D102:D110) -> 7725 | E111: =SUM(E102:E110) -> 0 | F111: =SUM(F102:F110) -> -7725 | H111: Total Expenses | I111: =SUM(I102:I110) -> 0 | J111: 0 | K111: =SUM(K102:K110) -> 6325 | L111: =SUM(L102:L110) -> 0 | M111: =SUM(M102:M110) -> 0 | N111: =SUM(N102:N110) -> 6325
A112: 12 | B112: =TEXT(A112*28,"mmmm") -> December | C112: =Budget!$A$3 -> Salary | D112: 7000 | E112: =SUMIFS(Transactions!X:X,Transactions!Y:Y,"<>F",Transactions!W:W,$A$1,Transactions!V:V,$A112,Transactions!B:B,C112) -> 0 | F112: =E112-D112 -> -7000 | H112: =Budget!$G$3 -> Groceries | I112: =ROUND(AVERAGE(L82,L92,L102),-2) -> 0 | J112: 0 | K112: 1185 | L112: =SUMIFS(Transactions!$X:$X,Transactions!$Y:$Y,"<>F",Transactions!$W:$W,$A$1,Transactions!$V:$V,$A112,Transactions!$B:$B,$H112)*-1 -> 0 | M112: =SUMIFS(Transactions!$X:$X,Transactions!$W:$W,$A$1,Transactions!$V:$V,$A112,Transactions!$B:$B,$H112)*-1 -> 0 | N112: =K112-M112 -> 1185 | O112: Budget Cash Savings | P112: =$D121-$K121 -> 1400
C113: =Budget!$A$4 -> Bonus | E113: =SUMIFS(Transactions!X:X,Transactions!Y:Y,"<>F",Transactions!W:W,$A$1,Transactions!V:V,$A112,Transactions!B:B,C113) -> 0 | F113: 0 | H113: =Budget!$G$4 -> Entertainment | I113: 0 | J113: 0 | K113: 400 | L113: =SUMIFS(Transactions!$X:$X,Transactions!$Y:$Y,"<>F",Transactions!$W:$W,$A$1,Transactions!$V:$V,$A112,Transactions!$B:$B,$H113)*-1 -> 0 | M113: =SUMIFS(Transactions!$X:$X,Transactions!$W:$W,$A$1,Transactions!$V:$V,$A112,Transactions!$B:$B,$H113)*-1 -> 0 | N113: 400 | O113: Cash Savings | P113: =$E121-$L121 -> 0
C114: =Budget!$A$5 -> Kids | D114: 725 | E114: =SUMIFS(Transactions!X:X,Transactions!Y:Y,"<>F",Transactions!W:W,$A$1,Transactions!V:V,$A112,Transactions!B:B,C114) -> 0 | F114: -725 | H114: =Budget!$G$5 -> Shopping | I114: 0 | J114: 0 | K114: 500 | L114: =SUMIFS(Transactions!$X:$X,Transactions!$Y:$Y,"<>F",Transactions!$W:$W,$A$1,Transactions!$V:$V,$A112,Transactions!$B:$B,$H114)*-1 -> 0 | M114: =SUMIFS(Transactions!$X:$X,Transactions!$W:$W,$A$1,Transactions!$V:$V,$A112,Transactions!$B:$B,$H114)*-1 -> 0 | N114: 500 | O114: Cash Savings to Income | P114: =IF($E121=0,"",$P113/$E121) -> 
C115: =Budget!$A$6 -> Side Project | E115: =SUMIFS(Transactions!X:X,Transactions!Y:Y,"<>F",Transactions!W:W,$A$1,Transactions!V:V,$A112,Transactions!B:B,C115) -> 0 | F115: 0 | H115: =Budget!$G$6 -> Bills | I115: 0 | J115: 0 | K115: 1700 | L115: =SUMIFS(Transactions!$X:$X,Transactions!$Y:$Y,"<>F",Transactions!$W:$W,$A$1,Transactions!$V:$V,$A112,Transactions!$B:$B,$H115)*-1 -> 0 | M115: =SUMIFS(Transactions!$X:$X,Transactions!$W:$W,$A$1,Transactions!$V:$V,$A112,Transactions!$B:$B,$H115)*-1 -> 0 | N115: =K115-M115 -> 1700 | O115: Gross Savings | P115: =$E121-$L121+$L120 -> 0
C116: =Budget!$A$7 -> Other Income | E116: =SUMIFS(Transactions!X:X,Transactions!Y:Y,"<>F",Transactions!W:W,$A$1,Transactions!V:V,$A112,Transactions!B:B,C116) -> 0 | F116: 0 | H116: =Budget!$G$7 -> Car | I116: 0 | J116: 0 | K116: 840 | L116: =SUMIFS(Transactions!$X:$X,Transactions!$Y:$Y,"<>F",Transactions!$W:$W,$A$1,Transactions!$V:$V,$A112,Transactions!$B:$B,$H116)*-1 -> 0 | M116: =SUMIFS(Transactions!$X:$X,Transactions!$W:$W,$A$1,Transactions!$V:$V,$A112,Transactions!$B:$B,$H116)*-1 -> 0 | N116: =K116-M116 -> 840 | O116: Gross Savings to Income | P116: =IF($E121=0,"",$P115/$E121) -> 
C117: =Budget!$A$8 -> 0 | E117: =SUMIFS(Transactions!X:X,Transactions!Y:Y,"<>F",Transactions!W:W,$A$1,Transactions!V:V,$A112,Transactions!B:B,C117) -> 0 | F117: 0 | H117: =Budget!$G$8 -> Charity | I117: 0 | J117: 0 | K117: 400 | L117: =SUMIFS(Transactions!$X:$X,Transactions!$Y:$Y,"<>F",Transactions!$W:$W,$A$1,Transactions!$V:$V,$A112,Transactions!$B:$B,$H117)*-1 -> 0 | M117: =SUMIFS(Transactions!$X:$X,Transactions!$W:$W,$A$1,Transactions!$V:$V,$A112,Transactions!$B:$B,$H117)*-1 -> 0 | N117: 400
C118: =Budget!$A$9 -> 0 | E118: =SUMIFS(Transactions!X:X,Transactions!Y:Y,"<>F",Transactions!W:W,$A$1,Transactions!V:V,$A112,Transactions!B:B,C118) -> 0 | F118: 0 | H118: =Budget!$G$9 -> Health | I118: 0 | J118: 0 | K118: 200 | L118: =SUMIFS(Transactions!$X:$X,Transactions!$Y:$Y,"<>F",Transactions!$W:$W,$A$1,Transactions!$V:$V,$A112,Transactions!$B:$B,$H118)*-1 -> 0 | M118: =SUMIFS(Transactions!$X:$X,Transactions!$W:$W,$A$1,Transactions!$V:$V,$A112,Transactions!$B:$B,$H118)*-1 -> 0 | N118: 200
C119: =Budget!$A$10 -> 0 | E119: =SUMIFS(Transactions!X:X,Transactions!Y:Y,"<>F",Transactions!W:W,$A$1,Transactions!V:V,$A112,Transactions!B:B,C119) -> 0 | F119: 0 | H119: =Budget!$G$10 -> Other | I119: 0 | J119: 0 | L119: =SUMIFS(Transactions!$X:$X,Transactions!$Y:$Y,"<>F",Transactions!$W:$W,$A$1,Transactions!$V:$V,$A112,Transactions!$B:$B,$H119)*-1 -> 0 | M119: =SUMIFS(Transactions!$X:$X,Transactions!$W:$W,$A$1,Transactions!$V:$V,$A112,Transactions!$B:$B,$H119)*-1 -> 0 | N119: 0
H120: Savings | I120: 0 | J120: 0 | K120: 1100 | L120: =SUMIFS(Transactions!$X:$X,Transactions!$Y:$Y,"<>F",Transactions!$W:$W,$A$1,Transactions!$V:$V,$A112,Transactions!$B:$B,$H120)*-1 -> 0 | M120: =SUMIFS(Transactions!$X:$X,Transactions!$W:$W,$A$1,Transactions!$V:$V,$A112,Transactions!$B:$B,$H120)*-1 -> 0 | N120: 1100
C121: Total Income | D121: =SUM(D112:D120) -> 7725 | E121: =SUM(E112:E120) -> 0 | F121: =SUM(F112:F120) -> -7725 | H121: Total Expenses | I121: =SUM(I112:I120) -> 0 | J121: 0 | K121: =SUM(K112:K120) -> 6325 | L121: =SUM(L112:L120) -> 0 | M121: =SUM(M112:M120) -> 0 | N121: =SUM(N112:N120) -> 6325
B122: Full Year | C122: =Budget!$A$3 -> Salary | E122: =SUMIFS(Transactions!X:X,Transactions!Y:Y,"<>F",Transactions!W:W,$A$1,Transactions!B:B,C122) -> 3000 | H122: =Budget!$G$3 -> Groceries | I122: =ROUND(SUM(L2,L12,L22,L32,L42,L52,L62,L72,L82,L92,L102,L112)/SUM(COUNTIF(L2,"<>0"),COUNTIF(L12,"<>0"),COUNTIF(L22,"<>0"),COUNTIF(L32,"<>0"),COUNTIF(L42,"<>0"),COUNTIF(L52,"<>0"),COUNTIF(L62,"<>0"),COUNTIF(L72,"<>0"),COUNTIF(L82,"<>0"),COUNTIF(L92,"<>0"),COUNTIF(L102,"<>0"),COUNTIF(L112,"<>0")),-2) -> 400 | L122: =SUMIFS(Transactions!$X:$X,Transactions!$Y:$Y,"<>F",Transactions!$W:$W,$A$1,Transactions!$B:$B,$H122)*-1 -> 390 | O122: Budget Cash Savings | P122: =$D131-$K131 -> 0
C123: =Budget!$A$4 -> Bonus | E123: =SUMIFS(Transactions!X:X,Transactions!Y:Y,"<>F",Transactions!W:W,$A$1,Transactions!B:B,C123) -> 0 | H123: =Budget!$G$4 -> Entertainment | I123: =ROUND(SUM(L3,L13,L23,L33,L43,L53,L63,L73,L83,L93,L103,L113)/SUM(COUNTIF(L3,"<>0"),COUNTIF(L13,"<>0"),COUNTIF(L23,"<>0"),COUNTIF(L33,"<>0"),COUNTIF(L43,"<>0"),COUNTIF(L53,"<>0"),COUNTIF(L63,"<>0"),COUNTIF(L73,"<>0"),COUNTIF(L83,"<>0"),COUNTIF(L93,"<>0"),COUNTIF(L103,"<>0"),COUNTIF(L113,"<>0")),-2) -> 0 | L123: =SUMIFS(Transactions!$X:$X,Transactions!$Y:$Y,"<>F",Transactions!$W:$W,$A$1,Transactions!$B:$B,$H123)*-1 -> 40 | O123: Cash Savings | P123: =$E131-$L131 -> 990
C124: =Budget!$A$5 -> Kids | E124: =SUMIFS(Transactions!X:X,Transactions!Y:Y,"<>F",Transactions!W:W,$A$1,Transactions!B:B,C124) -> 0 | H124: =Budget!$G$5 -> Shopping | I124: 100 | L124: =SUMIFS(Transactions!$X:$X,Transactions!$Y:$Y,"<>F",Transactions!$W:$W,$A$1,Transactions!$B:$B,$H124)*-1 -> 95 | O124: Cash Savings to Income | P124: =IF($E131=0,"",$P123/$E131) -> 0.33
C125: =Budget!$A$6 -> Side Project | E125: =SUMIFS(Transactions!X:X,Transactions!Y:Y,"<>F",Transactions!W:W,$A$1,Transactions!B:B,C125) -> 0 | H125: =Budget!$G$6 -> Bills | I125: 100 | L125: =SUMIFS(Transactions!$X:$X,Transactions!$Y:$Y,"<>F",Transactions!$W:$W,$A$1,Transactions!$B:$B,$H125)*-1 -> 80 | O125: Gross Savings | P125: =$E131-$L131+$L130 -> 1605
C126: =Budget!$A$7 -> Other Income | E126: =SUMIFS(Transactions!X:X,Transactions!Y:Y,"<>F",Transactions!W:W,$A$1,Transactions!B:B,C126) -> 0 | H126: =Budget!$G$7 -> Car | I126: 100 | L126: =SUMIFS(Transactions!$X:$X,Transactions!$Y:$Y,"<>F",Transactions!$W:$W,$A$1,Transactions!$B:$B,$H126)*-1 -> 115 | O126: Gross Savings to Income | P126: =IF($E131=0,"",$P125/$E131) -> 0.535
C127: =Budget!$A$8 -> 0 | E127: =SUMIFS(Transactions!X:X,Transactions!Y:Y,"<>F",Transactions!W:W,$A$1,Transactions!B:B,C127) -> 0 | H127: =Budget!$G$8 -> Charity | I127: 100 | L127: =SUMIFS(Transactions!$X:$X,Transactions!$Y:$Y,"<>F",Transactions!$W:$W,$A$1,Transactions!$B:$B,$H127)*-1 -> 100
C128: =Budget!$A$9 -> 0 | E128: =SUMIFS(Transactions!X:X,Transactions!Y:Y,"<>F",Transactions!W:W,$A$1,Transactions!B:B,C128) -> 0 | H128: =Budget!$G$9 -> Health | I128: 0 | L128: =SUMIFS(Transactions!$X:$X,Transactions!$Y:$Y,"<>F",Transactions!$W:$W,$A$1,Transactions!$B:$B,$H128)*-1 -> 20
C129: =Budget!$A$10 -> 0 | E129: =SUMIFS(Transactions!X:X,Transactions!Y:Y,"<>F",Transactions!W:W,$A$1,Transactions!B:B,C129) -> 0 | H129: =Budget!$G$10 -> Other | I129: 600 | L129: =SUMIFS(Transactions!$X:$X,Transactions!$Y:$Y,"<>F",Transactions!$W:$W,$A$1,Transactions!$B:$B,$H129)*-1 -> 555
H130: Savings | I130: 600 | L130: =SUMIFS(Transactions!$X:$X,Transactions!$Y:$Y,"<>F",Transactions!$W:$W,$A$1,Transactions!$B:$B,$H130)*-1 -> 615
C131: Total Income | E131: =SUM(E122:E130) -> 3000 | H131: Total Expenses | I131: 2000 | L131: =SUM(L122:L130) -> 2010 | M131: =SUM(M122:M130) -> 0
A135: Cash Savings Calculation: Total Income minus Total Expenses. As simple as it gets.
A136: No matter how you calculate your savings… From a Cash Flow purspective - money leaving your checking and credit card accounts should never exceed the inflow to these accounts. Per period.
A137: Cash Savings can go into a negative territory for a few periods only if you have a cushion. But long term this is not sustainable.
A139: Gross Savings:
A140: Consider this example: In Jan your income was 5,000. Total expenses were 4,000. Simple cash savings calculation gives us 1,000 saved. In Jan.
A141: Now consider you have a mortgage. In Feb you decided to make an extra payment on the mortgage. 1,000 goes towards principal.
A142: Your account balance becomes zero. Let's assume for simplicity you had no income nor expenses in Feb yet.
A143: From the cash flow perspective: you have made 5,000. You have spent 5,000.
A144: Jan Cash Savings: 1,000. Feb Cash Savings: -1,000. Year-to-date Cash Savings is zero. But you owe less money to the bank now.
A145: Gross Savings calculation removes such savings transactions from expenses category. All you need to do is use Savings as Budget Category on the Transactions sheet.
A146: Important: Savings transactions should not be counted twice. I.e. Mortgage extra payment of 1,000 in Feb does NOT increase your YTD savings to 2,000.
A148: The same can be said if you put this 1,000 in your personal pension 401K, RRSP, your kids education savings account, etc.
A149: Funds become unavailable to you until you cell your house, reach certain age or until your kids will go to college. You have to write an outflow transaction at your checking account.
A150: But in general terms putting money aside for retirement or tuition is saving money.
A152: Now consider you pay 2,000 every month on your mortgage. 1,200 Principal and 800 Interest. 800 is a write off expense.
A153: But 1,200 of principal payment is no different than the extra payment. It reduces the amount you owe to the bank. It can be considered savings.
A154: Interest payments deducted from your taxes is a separate conversation. I consider tax refund as Income in the period when it is received
A156: Note: You can completely change formulas on the Budget spreadsheet or even replace it with your own budget sheet driven off of Transactions sheet for actuals
A159: Additional Note: Double-clicking a cell within Actual or Forecast columns opens Transactions sheet filtered by the amount you clicked on. The same can be done using the Show Transactions button in the Moneyble ribbon
H1000: Expense Category | I1000: Avg Last 3 Months | J1000: Last Month | K1000: Budget | L1000: Actual | M1000: Forecast | N1000: Variance
H1001: Groceries | I1001: 2900 | J1001: 2500 | K1001: 2670 | L1001: 3025 | M1001: 3025 | N1001: -355
H1002: Entertainment | I1002: 3000 | J1002: 1935 | K1002: 900 | L1002: 835 | M1002: 835 | N1002: 65
H1003: Shopping | I1003: 1500 | J1003: 1585 | K1003: 600 | L1003: 300 | M1003: 300 | N1003: 300
H1004: Bills | I1004: 2800 | J1004: 2640 | K1004: 2600 | L1004: 1725 | M1004: 2735 | N1004: -135
H1005: Car | I1005: 700 | J1005: 590 | K1005: 460 | L1005: 80 | M1005: 280 | N1005: 180
H1006: Charity | I1006: 300 | J1006: 310 | K1006: 500 | L1006: 310 | M1006: 310 | N1006: 190
H1007: Health | I1007: 300 | J1007: 340 | K1007: 400 | L1007: 85 | M1007: 285 | N1007: 115
H1008: Other | I1008: 100 | J1008: 385 | L1008: 30 | M1008: 150 | N1008: -150
H1009: Savings | I1009: 1500 | J1009: 1715 | K1009: 1715 | L1009: 615 | M1009: 1715 | N1009: 0
H1010: Total Expenses | I1010: 13100 | J1010: 12000 | K1010: 9845 | L1010: 7005 | M1010: 9635 | N1010: 210

Sheet Net Worth
A1: Account Name | B1: 2022 Q1 | C1: 2022 Q2 | D1: 2022 Q3 | E1: 2022 Q4 | F1: 2023 Q1 | G1: 2023 Q2 | H1: 2023 Q3 | I1: 2023 Q4 | J1: 2024 Q1 | K1: 2024 Q2 | L1: 2024 Q3 | M1: 2024 Q4 | N1: 2025 Q1 | O1: 2025 Q2 | P1: 2025 Q3 | Q1: 2025 Q4
A2: =Transactions!F1 -> Cash | B2: =SUMIFS(Transactions!$Z:$Z,Transactions!$A:$A,_xlfn.CONCAT("<=",DATE(MID(B$1,1,4),_xlfn.SWITCH(MID(B$1,7,1),"1","3","2","6","3","9","4","12","12"),_xlfn.SWITCH(MID(B$1,7,1),"1","31","2","30","3","30","4","31","30")))) -> 100 | C2: =SUMIFS(Transactions!$Z:$Z,Transactions!$A:$A,_xlfn.CONCAT("<=",DATE(MID(C$1,1,4),_xlfn.SWITCH(MID(C$1,7,1),"1","3","2","6","3","9","4","12","12"),_xlfn.SWITCH(MID(C$1,7,1),"1","31","2","30","3","30","4","31","30")))) -> 100 | D2: =SUMIFS(Transactions!$Z:$Z,Transactions!$A:$A,_xlfn.CONCAT("<=",DATE(MID(D$1,1,4),_xlfn.SWITCH(MID(D$1,7,1),"1","3","2","6","3","9","4","12","12"),_xlfn.SWITCH(MID(D$1,7,1),"1","31","2","30","3","30","4","31","30")))) -> 100 | E2: =SUMIFS(Transactions!$Z:$Z,Transactions!$A:$A,_xlfn.CONCAT("<=",DATE(MID(E$1,1,4),_xlfn.SWITCH(MID(E$1,7,1),"1","3","2","6","3","9","4","12","12"),_xlfn.SWITCH(MID(E$1,7,1),"1","31","2","30","3","30","4","31","30")))) -> 100 | F2: =SUMIFS(Transactions!$Z:$Z,Transactions!$A:$A,_xlfn.CONCAT("<=",DATE(MID(F$1,1,4),_xlfn.SWITCH(MID(F$1,7,1),"1","3","2","6","3","9","4","12","12"),_xlfn.SWITCH(MID(F$1,7,1),"1","31","2","30","3","30","4","31","30")))) -> 100 | G2: =SUMIFS(Transactions!$Z:$Z,Transactions!$A:$A,_xlfn.CONCAT("<=",DATE(MID(G$1,1,4),_xlfn.SWITCH(MID(G$1,7,1),"1","3","2","6","3","9","4","12","12"),_xlfn.SWITCH(MID(G$1,7,1),"1","31","2","30","3","30","4","31","30")))) -> 100 | H2: =SUMIFS(Transactions!$Z:$Z,Transactions!$A:$A,_xlfn.CONCAT("<=",DATE(MID(H$1,1,4),_xlfn.SWITCH(MID(H$1,7,1),"1","3","2","6","3","9","4","12","12"),_xlfn.SWITCH(MID(H$1,7,1),"1","31","2","30","3","30","4","31","30")))) -> 100 | I2: =SUMIFS(Transactions!$Z:$Z,Transactions!$A:$A,_xlfn.CONCAT("<=",DATE(MID(I$1,1,4),_xlfn.SWITCH(MID(I$1,7,1),"1","3","2","6","3","9","4","12","12"),_xlfn.SWITCH(MID(I$1,7,1),"1","31","2","30","3","30","4","31","30")))) -> 100 | J2: =SUMIFS(Transactions!$Z:$Z,Transactions!$A:$A,_xlfn.CONCAT("<=",DATE(MID(J$1,1,4),_xlfn.SWITCH(MID(J$1,7,1),"1","3","2","6","3","9","4","12","12"),_xlfn.SWITCH(MID(J$1,7,1),"1","31","2","30","3","30","4","31","30")))) -> 100 | K2: =SUMIFS(Transactions!$Z:$Z,Transactions!$A:$A,_xlfn.CONCAT("<=",DATE(MID(K$1,1,4),_xlfn.SWITCH(MID(K$1,7,1),"1","3","2","6","3","9","4","12","12"),_xlfn.SWITCH(MID(K$1,7,1),"1","31","2","30","3","30","4","31","30")))) -> 100 | L2: =SUMIFS(Transactions!$Z:$Z,Transactions!$A:$A,_xlfn.CONCAT("<=",DATE(MID(L$1,1,4),_xlfn.SWITCH(MID(L$1,7,1),"1","3","2","6","3","9","4","12","12"),_xlfn.SWITCH(MID(L$1,7,1),"1","31","2","30","3","30","4","31","30")))) -> 100 | M2: =SUMIFS(Transactions!$Z:$Z,Transactions!$A:$A,_xlfn.CONCAT("<=",DATE(MID(M$1,1,4),_xlfn.SWITCH(MID(M$1,7,1),"1","3","2","6","3","9","4","12","12"),_xlfn.SWITCH(MID(M$1,7,1),"1","31","2","30","3","30","4","31","30")))) -> 100 | N2: =SUMIFS(Transactions!$Z:$Z,Transactions!$A:$A,_xlfn.CONCAT("<=",DATE(MID(N$1,1,4),_xlfn.SWITCH(MID(N$1,7,1),"1","3","2","6","3","9","4","12","12"),_xlfn.SWITCH(MID(N$1,7,1),"1","31","2","30","3","30","4","31","30")))) -> 100 | O2: =SUMIFS(Transactions!$Z:$Z,Transactions!$A:$A,_xlfn.CONCAT("<=",DATE(MID(O$1,1,4),_xlfn.SWITCH(MID(O$1,7,1),"1","3","2","6","3","9","4","12","12"),_xlfn.SWITCH(MID(O$1,7,1),"1","31","2","30","3","30","4","31","30")))) -> 100 | P2: =SUMIFS(Transactions!$Z:$Z,Transactions!$A:$A,_xlfn.CONCAT("<=",DATE(MID(P$1,1,4),_xlfn.SWITCH(MID(P$1,7,1),"1","3","2","6","3","9","4","12","12"),_xlfn.SWITCH(MID(P$1,7,1),"1","31","2","30","3","30","4","31","30")))) -> 100 | Q2: =SUMIFS(Transactions!$Z:$Z,Transactions!$A:$A,_xlfn.CONCAT("<=",DATE(MID(Q$1,1,4),_xlfn.SWITCH(MID(Q$1,7,1),"1","3","2","6","3","9","4","12","12"),_xlfn.SWITCH(MID(Q$1,7,1),"1","31","2","30","3","30","4","31","30")))) -> 100
A3: =Transactions!H1 -> Checking | B3: =SUMIFS(Transactions!$AA:$AA,Transactions!$A:$A,_xlfn.CONCAT("<=",DATE(MID(B$1,1,4),_xlfn.SWITCH(MID(B$1,7,1),"1","3","2","6","3","9","4","12","12"),_xlfn.SWITCH(MID(B$1,7,1),"1","31","2","30","3","30","4","31","30")))) -> 5000 | C3: =SUMIFS(Transactions!$AA:$AA,Transactions!$A:$A,_xlfn.CONCAT("<=",DATE(MID(C$1,1,4),_xlfn.SWITCH(MID(C$1,7,1),"1","3","2","6","3","9","4","12","12"),_xlfn.SWITCH(MID(C$1,7,1),"1","31","2","30","3","30","4","31","30")))) -> 5000 | D3: =SUMIFS(Transactions!$AA:$AA,Transactions!$A:$A,_xlfn.CONCAT("<=",DATE(MID(D$1,1,4),_xlfn.SWITCH(MID(D$1,7,1),"1","3","2","6","3","9","4","12","12"),_xlfn.SWITCH(MID(D$1,7,1),"1","31","2","30","3","30","4","31","30")))) -> 5000 | E3: =SUMIFS(Transactions!$AA:$AA,Transactions!$A:$A,_xlfn.CONCAT("<=",DATE(MID(E$1,1,4),_xlfn.SWITCH(MID(E$1,7,1),"1","3","2","6","3","9","4","12","12"),_xlfn.SWITCH(MID(E$1,7,1),"1","31","2","30","3","30","4","31","30")))) -> 5000 | F3: =SUMIFS(Transactions!$AA:$AA,Transactions!$A:$A,_xlfn.CONCAT("<=",DATE(MID(F$1,1,4),_xlfn.SWITCH(MID(F$1,7,1),"1","3","2","6","3","9","4","12","12"),_xlfn.SWITCH(MID(F$1,7,1),"1","31","2","30","3","30","4","31","30")))) -> 5000 | G3: =SUMIFS(Transactions!$AA:$AA,Transactions!$A:$A,_xlfn.CONCAT("<=",DATE(MID(G$1,1,4),_xlfn.SWITCH(MID(G$1,7,1),"1","3","2","6","3","9","4","12","12"),_xlfn.SWITCH(MID(G$1,7,1),"1","31","2","30","3","30","4","31","30")))) -> 5000 | H3: =SUMIFS(Transactions!$AA:$AA,Transactions!$A:$A,_xlfn.CONCAT("<=",DATE(MID(H$1,1,4),_xlfn.SWITCH(MID(H$1,7,1),"1","3","2","6","3","9","4","12","12"),_xlfn.SWITCH(MID(H$1,7,1),"1","31","2","30","3","30","4","31","30")))) -> 5000 | I3: =SUMIFS(Transactions!$AA:$AA,Transactions!$A:$A,_xlfn.CONCAT("<=",DATE(MID(I$1,1,4),_xlfn.SWITCH(MID(I$1,7,1),"1","3","2","6","3","9","4","12","12"),_xlfn.SWITCH(MID(I$1,7,1),"1","31","2","30","3","30","4","31","30")))) -> 5000 | J3: =SUMIFS(Transactions!$AA:$AA,Transactions!$A:$A,_xlfn.CONCAT("<=",DATE(MID(J$1,1,4),_xlfn.SWITCH(MID(J$1,7,1),"1","3","2","6","3","9","4","12","12"),_xlfn.SWITCH(MID(J$1,7,1),"1","31","2","30","3","30","4","31","30")))) -> 6665 | K3: =SUMIFS(Transactions!$AA:$AA,Transactions!$A:$A,_xlfn.CONCAT("<=",DATE(MID(K$1,1,4),_xlfn.SWITCH(MID(K$1,7,1),"1","3","2","6","3","9","4","12","12"),_xlfn.SWITCH(MID(K$1,7,1),"1","31","2","30","3","30","4","31","30")))) -> 6050 | L3: =SUMIFS(Transactions!$AA:$AA,Transactions!$A:$A,_xlfn.CONCAT("<=",DATE(MID(L$1,1,4),_xlfn.SWITCH(MID(L$1,7,1),"1","3","2","6","3","9","4","12","12"),_xlfn.SWITCH(MID(L$1,7,1),"1","31","2","30","3","30","4","31","30")))) -> 6050 | M3: =SUMIFS(Transactions!$AA:$AA,Transactions!$A:$A,_xlfn.CONCAT("<=",DATE(MID(M$1,1,4),_xlfn.SWITCH(MID(M$1,7,1),"1","3","2","6","3","9","4","12","12"),_xlfn.SWITCH(MID(M$1,7,1),"1","31","2","30","3","30","4","31","30")))) -> 6050 | N3: =SUMIFS(Transactions!$AA:$AA,Transactions!$A:$A,_xlfn.CONCAT("<=",DATE(MID(N$1,1,4),_xlfn.SWITCH(MID(N$1,7,1),"1","3","2","6","3","9","4","12","12"),_xlfn.SWITCH(MID(N$1,7,1),"1","31","2","30","3","30","4","31","30")))) -> 6050 | O3: =SUMIFS(Transactions!$AA:$AA,Transactions!$A:$A,_xlfn.CONCAT("<=",DATE(MID(O$1,1,4),_xlfn.SWITCH(MID(O$1,7,1),"1","3","2","6","3","9","4","12","12"),_xlfn.SWITCH(MID(O$1,7,1),"1","31","2","30","3","30","4","31","30")))) -> 6050 | P3: =SUMIFS(Transactions!$AA:$AA,Transactions!$A:$A,_xlfn.CONCAT("<=",DATE(MID(P$1,1,4),_xlfn.SWITCH(MID(P$1,7,1),"1","3","2","6","3","9","4","12","12"),_xlfn.SWITCH(MID(P$1,7,1),"1","31","2","30","3","30","4","31","30")))) -> 6050 | Q3: =SUMIFS(Transactions!$AA:$AA,Transactions!$A:$A,_xlfn.CONCAT("<=",DATE(MID(Q$1,1,4),_xlfn.SWITCH(MID(Q$1,7,1),"1","3","2","6","3","9","4","12","12"),_xlfn.SWITCH(MID(Q$1,7,1),"1","31","2","30","3","30","4","31","30")))) -> 6050
A4: =Transactions!P1 -> Chk 2 | B4: =SUMIFS(Transactions!$AE:$AE,Transactions!$A:$A,_xlfn.CONCAT("<=",DATE(MID(B$1,1,4),_xlfn.SWITCH(MID(B$1,7,1),"1","3","2","6","3","9","4","12","12"),_xlfn.SWITCH(MID(B$1,7,1),"1","31","2","30","3","30","4","31","30")))) -> 0 | C4: =SUMIFS(Transactions!$AE:$AE,Transactions!$A:$A,_xlfn.CONCAT("<=",DATE(MID(C$1,1,4),_xlfn.SWITCH(MID(C$1,7,1),"1","3","2","6","3","9","4","12","12"),_xlfn.SWITCH(MID(C$1,7,1),"1","31","2","30","3","30","4","31","30")))) -> 0 | D4: =SUMIFS(Transactions!$AE:$AE,Transactions!$A:$A,_xlfn.CONCAT("<=",DATE(MID(D$1,1,4),_xlfn.SWITCH(MID(D$1,7,1),"1","3","2","6","3","9","4","12","12"),_xlfn.SWITCH(MID(D$1,7,1),"1","31","2","30","3","30","4","31","30")))) -> 0 | E4: =SUMIFS(Transactions!$AE:$AE,Transactions!$A:$A,_xlfn.CONCAT("<=",DATE(MID(E$1,1,4),_xlfn.SWITCH(MID(E$1,7,1),"1","3","2","6","3","9","4","12","12"),_xlfn.SWITCH(MID(E$1,7,1),"1","31","2","30","3","30","4","31","30")))) -> 0 | F4: =SUMIFS(Transactions!$AE:$AE,Transactions!$A:$A,_xlfn.CONCAT("<=",DATE(MID(F$1,1,4),_xlfn.SWITCH(MID(F$1,7,1),"1","3","2","6","3","9","4","12","12"),_xlfn.SWITCH(MID(F$1,7,1),"1","31","2","30","3","30","4","31","30")))) -> 0 | G4: =SUMIFS(Transactions!$AE:$AE,Transactions!$A:$A,_xlfn.CONCAT("<=",DATE(MID(G$1,1,4),_xlfn.SWITCH(MID(G$1,7,1),"1","3","2","6","3","9","4","12","12"),_xlfn.SWITCH(MID(G$1,7,1),"1","31","2","30","3","30","4","31","30")))) -> 0 | H4: =SUMIFS(Transactions!$AE:$AE,Transactions!$A:$A,_xlfn.CONCAT("<=",DATE(MID(H$1,1,4),_xlfn.SWITCH(MID(H$1,7,1),"1","3","2","6","3","9","4","12","12"),_xlfn.SWITCH(MID(H$1,7,1),"1","31","2","30","3","30","4","31","30")))) -> 0 | I4: =SUMIFS(Transactions!$AE:$AE,Transactions!$A:$A,_xlfn.CONCAT("<=",DATE(MID(I$1,1,4),_xlfn.SWITCH(MID(I$1,7,1),"1","3","2","6","3","9","4","12","12"),_xlfn.SWITCH(MID(I$1,7,1),"1","31","2","30","3","30","4","31","30")))) -> 0 | J4: =SUMIFS(Transactions!$AE:$AE,Transactions!$A:$A,_xlfn.CONCAT("<=",DATE(MID(J$1,1,4),_xlfn.SWITCH(MID(J$1,7,1),"1","3","2","6","3","9","4","12","12"),_xlfn.SWITCH(MID(J$1,7,1),"1","31","2","30","3","30","4","31","30")))) -> 0 | K4: =SUMIFS(Transactions!$AE:$AE,Transactions!$A:$A,_xlfn.CONCAT("<=",DATE(MID(K$1,1,4),_xlfn.SWITCH(MID(K$1,7,1),"1","3","2","6","3","9","4","12","12"),_xlfn.SWITCH(MID(K$1,7,1),"1","31","2","30","3","30","4","31","30")))) -> 0 | L4: =SUMIFS(Transactions!$AE:$AE,Transactions!$A:$A,_xlfn.CONCAT("<=",DATE(MID(L$1,1,4),_xlfn.SWITCH(MID(L$1,7,1),"1","3","2","6","3","9","4","12","12"),_xlfn.SWITCH(MID(L$1,7,1),"1","31","2","30","3","30","4","31","30")))) -> 0 | M4: =SUMIFS(Transactions!$AE:$AE,Transactions!$A:$A,_xlfn.CONCAT("<=",DATE(MID(M$1,1,4),_xlfn.SWITCH(MID(M$1,7,1),"1","3","2","6","3","9","4","12","12"),_xlfn.SWITCH(MID(M$1,7,1),"1","31","2","30","3","30","4","31","30")))) -> 0 | N4: =SUMIFS(Transactions!$AE:$AE,Transactions!$A:$A,_xlfn.CONCAT("<=",DATE(MID(N$1,1,4),_xlfn.SWITCH(MID(N$1,7,1),"1","3","2","6","3","9","4","12","12"),_xlfn.SWITCH(MID(N$1,7,1),"1","31","2","30","3","30","4","31","30")))) -> 0 | O4: =SUMIFS(Transactions!$AE:$AE,Transactions!$A:$A,_xlfn.CONCAT("<=",DATE(MID(O$1,1,4),_xlfn.SWITCH(MID(O$1,7,1),"1","3","2","6","3","9","4","12","12"),_xlfn.SWITCH(MID(O$1,7,1),"1","31","2","30","3","30","4","31","30")))) -> 0 | P4: =SUMIFS(Transactions!$AE:$AE,Transactions!$A:$A,_xlfn.CONCAT("<=",DATE(MID(P$1,1,4),_xlfn.SWITCH(MID(P$1,7,1),"1","3","2","6","3","9","4","12","12"),_xlfn.SWITCH(MID(P$1,7,1),"1","31","2","30","3","30","4","31","30")))) -> 0 | Q4: =SUMIFS(Transactions!$AE:$AE,Transactions!$A:$A,_xlfn.CONCAT("<=",DATE(MID(Q$1,1,4),_xlfn.SWITCH(MID(Q$1,7,1),"1","3","2","6","3","9","4","12","12"),_xlfn.SWITCH(MID(Q$1,7,1),"1","31","2","30","3","30","4","31","30")))) -> 0
A5: Total Debit Accounts | B5: =SUM(B2:B4) -> 5100 | C5: 5100 | D5: 5100 | E5: 5100 | F5: =SUM(F2:F4) -> 5100 | G5: 5100 | H5: 5100 | I5: 5100 | J5: =SUM(J2:J4) -> 6765 | K5: 6150 | L5: 6150 | M5: 6150 | N5: =SUM(N2:N4) -> 6150 | O5: 6150 | P5: 6150 | Q5: 6150
A6: RRSP (Invest) | B6: =SUMIFS(Investments!$AA:$AA,Investments!$A:$A,_xlfn.CONCAT("<=",DATE(MID(B$1,1,4),_xlfn.SWITCH(MID(B$1,7,1),"1","3","2","6","3","9","4","12","12"),_xlfn.SWITCH(MID(B$1,7,1),"1","31","2","30","3","30","4","31","30")))) -> 200000 | C6: =SUMIFS(Investments!$AA:$AA,Investments!$A:$A,_xlfn.CONCAT("<=",DATE(MID(C$1,1,4),_xlfn.SWITCH(MID(C$1,7,1),"1","3","2","6","3","9","4","12","12"),_xlfn.SWITCH(MID(C$1,7,1),"1","31","2","30","3","30","4","31","30")))) -> 200000 | D6: =SUMIFS(Investments!$AA:$AA,Investments!$A:$A,_xlfn.CONCAT("<=",DATE(MID(D$1,1,4),_xlfn.SWITCH(MID(D$1,7,1),"1","3","2","6","3","9","4","12","12"),_xlfn.SWITCH(MID(D$1,7,1),"1","31","2","30","3","30","4","31","30")))) -> 200000 | E6: =SUMIFS(Investments!$AA:$AA,Investments!$A:$A,_xlfn.CONCAT("<=",DATE(MID(E$1,1,4),_xlfn.SWITCH(MID(E$1,7,1),"1","3","2","6","3","9","4","12","12"),_xlfn.SWITCH(MID(E$1,7,1),"1","31","2","30","3","30","4","31","30")))) -> 200000 | F6: =SUMIFS(Investments!$AA:$AA,Investments!$A:$A,_xlfn.CONCAT("<=",DATE(MID(F$1,1,4),_xlfn.SWITCH(MID(F$1,7,1),"1","3","2","6","3","9","4","12","12"),_xlfn.SWITCH(MID(F$1,7,1),"1","31","2","30","3","30","4","31","30")))) -> 200000 | G6: =SUMIFS(Investments!$AA:$AA,Investments!$A:$A,_xlfn.CONCAT("<=",DATE(MID(G$1,1,4),_xlfn.SWITCH(MID(G$1,7,1),"1","3","2","6","3","9","4","12","12"),_xlfn.SWITCH(MID(G$1,7,1),"1","31","2","30","3","30","4","31","30")))) -> 200000 | H6: =SUMIFS(Investments!$AA:$AA,Investments!$A:$A,_xlfn.CONCAT("<=",DATE(MID(H$1,1,4),_xlfn.SWITCH(MID(H$1,7,1),"1","3","2","6","3","9","4","12","12"),_xlfn.SWITCH(MID(H$1,7,1),"1","31","2","30","3","30","4","31","30")))) -> 200000 | I6: =SUMIFS(Investments!$AA:$AA,Investments!$A:$A,_xlfn.CONCAT("<=",DATE(MID(I$1,1,4),_xlfn.SWITCH(MID(I$1,7,1),"1","3","2","6","3","9","4","12","12"),_xlfn.SWITCH(MID(I$1,7,1),"1","31","2","30","3","30","4","31","30")))) -> 200000 | J6: =SUMIFS(Investments!$AA:$AA,Investments!$A:$A,_xlfn.CONCAT("<=",DATE(MID(J$1,1,4),_xlfn.SWITCH(MID(J$1,7,1),"1","3","2","6","3","9","4","12","12"),_xlfn.SWITCH(MID(J$1,7,1),"1","31","2","30","3","30","4","31","30")))) -> 209080 | K6: =SUMIFS(Investments!$AA:$AA,Investments!$A:$A,_xlfn.CONCAT("<=",DATE(MID(K$1,1,4),_xlfn.SWITCH(MID(K$1,7,1),"1","3","2","6","3","9","4","12","12"),_xlfn.SWITCH(MID(K$1,7,1),"1","31","2","30","3","30","4","31","30")))) -> 209440 | L6: =SUMIFS(Investments!$AA:$AA,Investments!$A:$A,_xlfn.CONCAT("<=",DATE(MID(L$1,1,4),_xlfn.SWITCH(MID(L$1,7,1),"1","3","2","6","3","9","4","12","12"),_xlfn.SWITCH(MID(L$1,7,1),"1","31","2","30","3","30","4","31","30")))) -> 209440 | M6: =SUMIFS(Investments!$AA:$AA,Investments!$A:$A,_xlfn.CONCAT("<=",DATE(MID(M$1,1,4),_xlfn.SWITCH(MID(M$1,7,1),"1","3","2","6","3","9","4","12","12"),_xlfn.SWITCH(MID(M$1,7,1),"1","31","2","30","3","30","4","31","30")))) -> 209440 | N6: =SUMIFS(Investments!$AA:$AA,Investments!$A:$A,_xlfn.CONCAT("<=",DATE(MID(N$1,1,4),_xlfn.SWITCH(MID(N$1,7,1),"1","3","2","6","3","9","4","12","12"),_xlfn.SWITCH(MID(N$1,7,1),"1","31","2","30","3","30","4","31","30")))) -> 209440 | O6: =SUMIFS(Investments!$AA:$AA,Investments!$A:$A,_xlfn.CONCAT("<=",DATE(MID(O$1,1,4),_xlfn.SWITCH(MID(O$1,7,1),"1","3","2","6","3","9","4","12","12"),_xlfn.SWITCH(MID(O$1,7,1),"1","31","2","30","3","30","4","31","30")))) -> 209440 | P6: =SUMIFS(Investments!$AA:$AA,Investments!$A:$A,_xlfn.CONCAT("<=",DATE(MID(P$1,1,4),_xlfn.SWITCH(MID(P$1,7,1),"1","3","2","6","3","9","4","12","12"),_xlfn.SWITCH(MID(P$1,7,1),"1","31","2","30","3","30","4","31","30")))) -> 209440 | Q6: =SUMIFS(Investments!$AA:$AA,Investments!$A:$A,_xlfn.CONCAT("<=",DATE(MID(Q$1,1,4),_xlfn.SWITCH(MID(Q$1,7,1),"1","3","2","6","3","9","4","12","12"),_xlfn.SWITCH(MID(Q$1,7,1),"1","31","2","30","3","30","4","31","30")))) -> 209440
A7: RESP (Invest) | B7: =SUMIFS(Investments!$AC:$AC,Investments!$A:$A,_xlfn.CONCAT("<=",DATE(MID(B$1,1,4),_xlfn.SWITCH(MID(B$1,7,1),"1","3","2","6","3","9","4","12","12"),_xlfn.SWITCH(MID(B$1,7,1),"1","31","2","30","3","30","4","31","30")))) -> 50000 | C7: =SUMIFS(Investments!$AC:$AC,Investments!$A:$A,_xlfn.CONCAT("<=",DATE(MID(C$1,1,4),_xlfn.SWITCH(MID(C$1,7,1),"1","3","2","6","3","9","4","12","12"),_xlfn.SWITCH(MID(C$1,7,1),"1","31","2","30","3","30","4","31","30")))) -> 50000 | D7: =SUMIFS(Investments!$AC:$AC,Investments!$A:$A,_xlfn.CONCAT("<=",DATE(MID(D$1,1,4),_xlfn.SWITCH(MID(D$1,7,1),"1","3","2","6","3","9","4","12","12"),_xlfn.SWITCH(MID(D$1,7,1),"1","31","2","30","3","30","4","31","30")))) -> 50000 | E7: =SUMIFS(Investments!$AC:$AC,Investments!$A:$A,_xlfn.CONCAT("<=",DATE(MID(E$1,1,4),_xlfn.SWITCH(MID(E$1,7,1),"1","3","2","6","3","9","4","12","12"),_xlfn.SWITCH(MID(E$1,7,1),"1","31","2","30","3","30","4","31","30")))) -> 50000 | F7: =SUMIFS(Investments!$AC:$AC,Investments!$A:$A,_xlfn.CONCAT("<=",DATE(MID(F$1,1,4),_xlfn.SWITCH(MID(F$1,7,1),"1","3","2","6","3","9","4","12","12"),_xlfn.SWITCH(MID(F$1,7,1),"1","31","2","30","3","30","4","31","30")))) -> 50000 | G7: =SUMIFS(Investments!$AC:$AC,Investments!$A:$A,_xlfn.CONCAT("<=",DATE(MID(G$1,1,4),_xlfn.SWITCH(MID(G$1,7,1),"1","3","2","6","3","9","4","12","12"),_xlfn.SWITCH(MID(G$1,7,1),"1","31","2","30","3","30","4","31","30")))) -> 50000 | H7: =SUMIFS(Investments!$AC:$AC,Investments!$A:$A,_xlfn.CONCAT("<=",DATE(MID(H$1,1,4),_xlfn.SWITCH(MID(H$1,7,1),"1","3","2","6","3","9","4","12","12"),_xlfn.SWITCH(MID(H$1,7,1),"1","31","2","30","3","30","4","31","30")))) -> 50000 | I7: =SUMIFS(Investments!$AC:$AC,Investments!$A:$A,_xlfn.CONCAT("<=",DATE(MID(I$1,1,4),_xlfn.SWITCH(MID(I$1,7,1),"1","3","2","6","3","9","4","12","12"),_xlfn.SWITCH(MID(I$1,7,1),"1","31","2","30","3","30","4","31","30")))) -> 50000 | J7: =SUMIFS(Investments!$AC:$AC,Investments!$A:$A,_xlfn.CONCAT("<=",DATE(MID(J$1,1,4),_xlfn.SWITCH(MID(J$1,7,1),"1","3","2","6","3","9","4","12","12"),_xlfn.SWITCH(MID(J$1,7,1),"1","31","2","30","3","30","4","31","30")))) -> 52740 | K7: =SUMIFS(Investments!$AC:$AC,Investments!$A:$A,_xlfn.CONCAT("<=",DATE(MID(K$1,1,4),_xlfn.SWITCH(MID(K$1,7,1),"1","3","2","6","3","9","4","12","12"),_xlfn.SWITCH(MID(K$1,7,1),"1","31","2","30","3","30","4","31","30")))) -> 53480 | L7: =SUMIFS(Investments!$AC:$AC,Investments!$A:$A,_xlfn.CONCAT("<=",DATE(MID(L$1,1,4),_xlfn.SWITCH(MID(L$1,7,1),"1","3","2","6","3","9","4","12","12"),_xlfn.SWITCH(MID(L$1,7,1),"1","31","2","30","3","30","4","31","30")))) -> 53480 | M7: =SUMIFS(Investments!$AC:$AC,Investments!$A:$A,_xlfn.CONCAT("<=",DATE(MID(M$1,1,4),_xlfn.SWITCH(MID(M$1,7,1),"1","3","2","6","3","9","4","12","12"),_xlfn.SWITCH(MID(M$1,7,1),"1","31","2","30","3","30","4","31","30")))) -> 53480 | N7: =SUMIFS(Investments!$AC:$AC,Investments!$A:$A,_xlfn.CONCAT("<=",DATE(MID(N$1,1,4),_xlfn.SWITCH(MID(N$1,7,1),"1","3","2","6","3","9","4","12","12"),_xlfn.SWITCH(MID(N$1,7,1),"1","31","2","30","3","30","4","31","30")))) -> 53480 | O7: =SUMIFS(Investments!$AC:$AC,Investments!$A:$A,_xlfn.CONCAT("<=",DATE(MID(O$1,1,4),_xlfn.SWITCH(MID(O$1,7,1),"1","3","2","6","3","9","4","12","12"),_xlfn.SWITCH(MID(O$1,7,1),"1","31","2","30","3","30","4","31","30")))) -> 53480 | P7: =SUMIFS(Investments!$AC:$AC,Investments!$A:$A,_xlfn.CONCAT("<=",DATE(MID(P$1,1,4),_xlfn.SWITCH(MID(P$1,7,1),"1","3","2","6","3","9","4","12","12"),_xlfn.SWITCH(MID(P$1,7,1),"1","31","2","30","3","30","4","31","30")))) -> 53480 | Q7: =SUMIFS(Investments!$AC:$AC,Investments!$A:$A,_xlfn.CONCAT("<=",DATE(MID(Q$1,1,4),_xlfn.SWITCH(MID(Q$1,7,1),"1","3","2","6","3","9","4","12","12"),_xlfn.SWITCH(MID(Q$1,7,1),"1","31","2","30","3","30","4","31","30")))) -> 53480
A8: Total Investment Accounts | B8: =SUM(B6:B7) -> 250000 | C8: 250000 | D8: 250000 | E8: 250000 | F8: =SUM(F6:F7) -> 250000 | G8: 250000 | H8: 250000 | I8: 250000 | J8: =SUM(J6:J7) -> 261820 | K8: 262920 | L8: 262920 | M8: 262920 | N8: =SUM(N6:N7) -> 262920 | O8: 262920 | P8: 262920 | Q8: 262920
A9: House | B9: 225000 | C9: 225000 | D9: 225000 | E9: 225000 | F9: 225000 | G9: 225000 | H9: 225000 | I9: 225000 | J9: 225000 | K9: 225000 | L9: 225000 | M9: 225000 | N9: 225000 | O9: 225000 | P9: 225000 | Q9: 225000
A10: Total Assets | B10: =SUM(B9) -> 225000 | C10: 225000 | D10: 225000 | E10: 225000 | F10: =SUM(F9) -> 225000 | G10: 225000 | H10: 225000 | I10: 225000 | J10: =SUM(J9) -> 225000 | K10: 225000 | L10: 225000 | M10: 225000 | N10: =SUM(N9) -> 225000 | O10: 225000 | P10: 225000 | Q10: 225000
A11: =Transactions!J1 -> Visa | B11: =SUMIFS(Transactions!$AB:$AB,Transactions!$A:$A,_xlfn.CONCAT("<=",DATE(MID(B$1,1,4),_xlfn.SWITCH(MID(B$1,7,1),"1","3","2","6","3","9","4","12","12"),_xlfn.SWITCH(MID(B$1,7,1),"1","31","2","30","3","30","4","31","30")))) -> -3000 | C11: =SUMIFS(Transactions!$AB:$AB,Transactions!$A:$A,_xlfn.CONCAT("<=",DATE(MID(C$1,1,4),_xlfn.SWITCH(MID(C$1,7,1),"1","3","2","6","3","9","4","12","12"),_xlfn.SWITCH(MID(C$1,7,1),"1","31","2","30","3","30","4","31","30")))) -> -3000 | D11: =SUMIFS(Transactions!$AB:$AB,Transactions!$A:$A,_xlfn.CONCAT("<=",DATE(MID(D$1,1,4),_xlfn.SWITCH(MID(D$1,7,1),"1","3","2","6","3","9","4","12","12"),_xlfn.SWITCH(MID(D$1,7,1),"1","31","2","30","3","30","4","31","30")))) -> -3000 | E11: =SUMIFS(Transactions!$AB:$AB,Transactions!$A:$A,_xlfn.CONCAT("<=",DATE(MID(E$1,1,4),_xlfn.SWITCH(MID(E$1,7,1),"1","3","2","6","3","9","4","12","12"),_xlfn.SWITCH(MID(E$1,7,1),"1","31","2","30","3","30","4","31","30")))) -> -3000 | F11: =SUMIFS(Transactions!$AB:$AB,Transactions!$A:$A,_xlfn.CONCAT("<=",DATE(MID(F$1,1,4),_xlfn.SWITCH(MID(F$1,7,1),"1","3","2","6","3","9","4","12","12"),_xlfn.SWITCH(MID(F$1,7,1),"1","31","2","30","3","30","4","31","30")))) -> -3000 | G11: =SUMIFS(Transactions!$AB:$AB,Transactions!$A:$A,_xlfn.CONCAT("<=",DATE(MID(G$1,1,4),_xlfn.SWITCH(MID(G$1,7,1),"1","3","2","6","3","9","4","12","12"),_xlfn.SWITCH(MID(G$1,7,1),"1","31","2","30","3","30","4","31","30")))) -> -3000 | H11: =SUMIFS(Transactions!$AB:$AB,Transactions!$A:$A,_xlfn.CONCAT("<=",DATE(MID(H$1,1,4),_xlfn.SWITCH(MID(H$1,7,1),"1","3","2","6","3","9","4","12","12"),_xlfn.SWITCH(MID(H$1,7,1),"1","31","2","30","3","30","4","31","30")))) -> -3000 | I11: =SUMIFS(Transactions!$AB:$AB,Transactions!$A:$A,_xlfn.CONCAT("<=",DATE(MID(I$1,1,4),_xlfn.SWITCH(MID(I$1,7,1),"1","3","2","6","3","9","4","12","12"),_xlfn.SWITCH(MID(I$1,7,1),"1","31","2","30","3","30","4","31","30")))) -> -3000 | J11: =SUMIFS(Transactions!$AB:$AB,Transactions!$A:$A,_xlfn.CONCAT("<=",DATE(MID(J$1,1,4),_xlfn.SWITCH(MID(J$1,7,1),"1","3","2","6","3","9","4","12","12"),_xlfn.SWITCH(MID(J$1,7,1),"1","31","2","30","3","30","4","31","30")))) -> -2385 | K11: =SUMIFS(Transactions!$AB:$AB,Transactions!$A:$A,_xlfn.CONCAT("<=",DATE(MID(K$1,1,4),_xlfn.SWITCH(MID(K$1,7,1),"1","3","2","6","3","9","4","12","12"),_xlfn.SWITCH(MID(K$1,7,1),"1","31","2","30","3","30","4","31","30")))) -> -2385 | L11: =SUMIFS(Transactions!$AB:$AB,Transactions!$A:$A,_xlfn.CONCAT("<=",DATE(MID(L$1,1,4),_xlfn.SWITCH(MID(L$1,7,1),"1","3","2","6","3","9","4","12","12"),_xlfn.SWITCH(MID(L$1,7,1),"1","31","2","30","3","30","4","31","30")))) -> -2385 | M11: =SUMIFS(Transactions!$AB:$AB,Transactions!$A:$A,_xlfn.CONCAT("<=",DATE(MID(M$1,1,4),_xlfn.SWITCH(MID(M$1,7,1),"1","3","2","6","3","9","4","12","12"),_xlfn.SWITCH(MID(M$1,7,1),"1","31","2","30","3","30","4","31","30")))) -> -2385 | N11: =SUMIFS(Transactions!$AB:$AB,Transactions!$A:$A,_xlfn.CONCAT("<=",DATE(MID(N$1,1,4),_xlfn.SWITCH(MID(N$1,7,1),"1","3","2","6","3","9","4","12","12"),_xlfn.SWITCH(MID(N$1,7,1),"1","31","2","30","3","30","4","31","30")))) -> -2385 | O11: =SUMIFS(Transactions!$AB:$AB,Transactions!$A:$A,_xlfn.CONCAT("<=",DATE(MID(O$1,1,4),_xlfn.SWITCH(MID(O$1,7,1),"1","3","2","6","3","9","4","12","12"),_xlfn.SWITCH(MID(O$1,7,1),"1","31","2","30","3","30","4","31","30")))) -> -2385 | P11: =SUMIFS(Transactions!$AB:$AB,Transactions!$A:$A,_xlfn.CONCAT("<=",DATE(MID(P$1,1,4),_xlfn.SWITCH(MID(P$1,7,1),"1","3","2","6","3","9","4","12","12"),_xlfn.SWITCH(MID(P$1,7,1),"1","31","2","30","3","30","4","31","30")))) -> -2385 | Q11: =SUMIFS(Transactions!$AB:$AB,Transactions!$A:$A,_xlfn.CONCAT("<=",DATE(MID(Q$1,1,4),_xlfn.SWITCH(MID(Q$1,7,1),"1","3","2","6","3","9","4","12","12"),_xlfn.SWITCH(MID(Q$1,7,1),"1","31","2","30","3","30","4","31","30")))) -> -2385
A12: =Transactions!L1 -> MC | B12: =SUMIFS(Transactions!$AC:$AC,Transactions!$A:$A,_xlfn.CONCAT("<=",DATE(MID(B$1,1,4),_xlfn.SWITCH(MID(B$1,7,1),"1","3","2","6","3","9","4","12","12"),_xlfn.SWITCH(MID(B$1,7,1),"1","31","2","30","3","30","4","31","30")))) -> 0 | C12: =SUMIFS(Transactions!$AC:$AC,Transactions!$A:$A,_xlfn.CONCAT("<=",DATE(MID(C$1,1,4),_xlfn.SWITCH(MID(C$1,7,1),"1","3","2","6","3","9","4","12","12"),_xlfn.SWITCH(MID(C$1,7,1),"1","31","2","30","3","30","4","31","30")))) -> 0 | D12: =SUMIFS(Transactions!$AC:$AC,Transactions!$A:$A,_xlfn.CONCAT("<=",DATE(MID(D$1,1,4),_xlfn.SWITCH(MID(D$1,7,1),"1","3","2","6","3","9","4","12","12"),_xlfn.SWITCH(MID(D$1,7,1),"1","31","2","30","3","30","4","31","30")))) -> 0 | E12: =SUMIFS(Transactions!$AC:$AC,Transactions!$A:$A,_xlfn.CONCAT("<=",DATE(MID(E$1,1,4),_xlfn.SWITCH(MID(E$1,7,1),"1","3","2","6","3","9","4","12","12"),_xlfn.SWITCH(MID(E$1,7,1),"1","31","2","30","3","30","4","31","30")))) -> 0 | F12: =SUMIFS(Transactions!$AC:$AC,Transactions!$A:$A,_xlfn.CONCAT("<=",DATE(MID(F$1,1,4),_xlfn.SWITCH(MID(F$1,7,1),"1","3","2","6","3","9","4","12","12"),_xlfn.SWITCH(MID(F$1,7,1),"1","31","2","30","3","30","4","31","30")))) -> 0 | G12: =SUMIFS(Transactions!$AC:$AC,Transactions!$A:$A,_xlfn.CONCAT("<=",DATE(MID(G$1,1,4),_xlfn.SWITCH(MID(G$1,7,1),"1","3","2","6","3","9","4","12","12"),_xlfn.SWITCH(MID(G$1,7,1),"1","31","2","30","3","30","4","31","30")))) -> 0 | H12: =SUMIFS(Transactions!$AC:$AC,Transactions!$A:$A,_xlfn.CONCAT("<=",DATE(MID(H$1,1,4),_xlfn.SWITCH(MID(H$1,7,1),"1","3","2","6","3","9","4","12","12"),_xlfn.SWITCH(MID(H$1,7,1),"1","31","2","30","3","30","4","31","30")))) -> 0 | I12: =SUMIFS(Transactions!$AC:$AC,Transactions!$A:$A,_xlfn.CONCAT("<=",DATE(MID(I$1,1,4),_xlfn.SWITCH(MID(I$1,7,1),"1","3","2","6","3","9","4","12","12"),_xlfn.SWITCH(MID(I$1,7,1),"1","31","2","30","3","30","4","31","30")))) -> 0 | J12: =SUMIFS(Transactions!$AC:$AC,Transactions!$A:$A,_xlfn.CONCAT("<=",DATE(MID(J$1,1,4),_xlfn.SWITCH(MID(J$1,7,1),"1","3","2","6","3","9","4","12","12"),_xlfn.SWITCH(MID(J$1,7,1),"1","31","2","30","3","30","4","31","30")))) -> 0 | K12: =SUMIFS(Transactions!$AC:$AC,Transactions!$A:$A,_xlfn.CONCAT("<=",DATE(MID(K$1,1,4),_xlfn.SWITCH(MID(K$1,7,1),"1","3","2","6","3","9","4","12","12"),_xlfn.SWITCH(MID(K$1,7,1),"1","31","2","30","3","30","4","31","30")))) -> 0 | L12: =SUMIFS(Transactions!$AC:$AC,Transactions!$A:$A,_xlfn.CONCAT("<=",DATE(MID(L$1,1,4),_xlfn.SWITCH(MID(L$1,7,1),"1","3","2","6","3","9","4","12","12"),_xlfn.SWITCH(MID(L$1,7,1),"1","31","2","30","3","30","4","31","30")))) -> 0 | M12: =SUMIFS(Transactions!$AC:$AC,Transactions!$A:$A,_xlfn.CONCAT("<=",DATE(MID(M$1,1,4),_xlfn.SWITCH(MID(M$1,7,1),"1","3","2","6","3","9","4","12","12"),_xlfn.SWITCH(MID(M$1,7,1),"1","31","2","30","3","30","4","31","30")))) -> 0 | N12: =SUMIFS(Transactions!$AC:$AC,Transactions!$A:$A,_xlfn.CONCAT("<=",DATE(MID(N$1,1,4),_xlfn.SWITCH(MID(N$1,7,1),"1","3","2","6","3","9","4","12","12"),_xlfn.SWITCH(MID(N$1,7,1),"1","31","2","30","3","30","4","31","30")))) -> 0 | O12: =SUMIFS(Transactions!$AC:$AC,Transactions!$A:$A,_xlfn.CONCAT("<=",DATE(MID(O$1,1,4),_xlfn.SWITCH(MID(O$1,7,1),"1","3","2","6","3","9","4","12","12"),_xlfn.SWITCH(MID(O$1,7,1),"1","31","2","30","3","30","4","31","30")))) -> 0 | P12: =SUMIFS(Transactions!$AC:$AC,Transactions!$A:$A,_xlfn.CONCAT("<=",DATE(MID(P$1,1,4),_xlfn.SWITCH(MID(P$1,7,1),"1","3","2","6","3","9","4","12","12"),_xlfn.SWITCH(MID(P$1,7,1),"1","31","2","30","3","30","4","31","30")))) -> 0 | Q12: =SUMIFS(Transactions!$AC:$AC,Transactions!$A:$A,_xlfn.CONCAT("<=",DATE(MID(Q$1,1,4),_xlfn.SWITCH(MID(Q$1,7,1),"1","3","2","6","3","9","4","12","12"),_xlfn.SWITCH(MID(Q$1,7,1),"1","31","2","30","3","30","4","31","30")))) -> 0
A13: =Transactions!N1 -> Visa2 | B13: =SUMIFS(Transactions!$AD:$AD,Transactions!$A:$A,_xlfn.CONCAT("<=",DATE(MID(B$1,1,4),_xlfn.SWITCH(MID(B$1,7,1),"1","3","2","6","3","9","4","12","12"),_xlfn.SWITCH(MID(B$1,7,1),"1","31","2","30","3","30","4","31","30")))) -> 0 | C13: =SUMIFS(Transactions!$AD:$AD,Transactions!$A:$A,_xlfn.CONCAT("<=",DATE(MID(C$1,1,4),_xlfn.SWITCH(MID(C$1,7,1),"1","3","2","6","3","9","4","12","12"),_xlfn.SWITCH(MID(C$1,7,1),"1","31","2","30","3","30","4","31","30")))) -> 0 | D13: =SUMIFS(Transactions!$AD:$AD,Transactions!$A:$A,_xlfn.CONCAT("<=",DATE(MID(D$1,1,4),_xlfn.SWITCH(MID(D$1,7,1),"1","3","2","6","3","9","4","12","12"),_xlfn.SWITCH(MID(D$1,7,1),"1","31","2","30","3","30","4","31","30")))) -> 0 | E13: =SUMIFS(Transactions!$AD:$AD,Transactions!$A:$A,_xlfn.CONCAT("<=",DATE(MID(E$1,1,4),_xlfn.SWITCH(MID(E$1,7,1),"1","3","2","6","3","9","4","12","12"),_xlfn.SWITCH(MID(E$1,7,1),"1","31","2","30","3","30","4","31","30")))) -> 0 | F13: =SUMIFS(Transactions!$AD:$AD,Transactions!$A:$A,_xlfn.CONCAT("<=",DATE(MID(F$1,1,4),_xlfn.SWITCH(MID(F$1,7,1),"1","3","2","6","3","9","4","12","12"),_xlfn.SWITCH(MID(F$1,7,1),"1","31","2","30","3","30","4","31","30")))) -> 0 | G13: =SUMIFS(Transactions!$AD:$AD,Transactions!$A:$A,_xlfn.CONCAT("<=",DATE(MID(G$1,1,4),_xlfn.SWITCH(MID(G$1,7,1),"1","3","2","6","3","9","4","12","12"),_xlfn.SWITCH(MID(G$1,7,1),"1","31","2","30","3","30","4","31","30")))) -> 0 | H13: =SUMIFS(Transactions!$AD:$AD,Transactions!$A:$A,_xlfn.CONCAT("<=",DATE(MID(H$1,1,4),_xlfn.SWITCH(MID(H$1,7,1),"1","3","2","6","3","9","4","12","12"),_xlfn.SWITCH(MID(H$1,7,1),"1","31","2","30","3","30","4","31","30")))) -> 0 | I13: =SUMIFS(Transactions!$AD:$AD,Transactions!$A:$A,_xlfn.CONCAT("<=",DATE(MID(I$1,1,4),_xlfn.SWITCH(MID(I$1,7,1),"1","3","2","6","3","9","4","12","12"),_xlfn.SWITCH(MID(I$1,7,1),"1","31","2","30","3","30","4","31","30")))) -> 0 | J13: =SUMIFS(Transactions!$AD:$AD,Transactions!$A:$A,_xlfn.CONCAT("<=",DATE(MID(J$1,1,4),_xlfn.SWITCH(MID(J$1,7,1),"1","3","2","6","3","9","4","12","12"),_xlfn.SWITCH(MID(J$1,7,1),"1","31","2","30","3","30","4","31","30")))) -> 0 | K13: =SUMIFS(Transactions!$AD:$AD,Transactions!$A:$A,_xlfn.CONCAT("<=",DATE(MID(K$1,1,4),_xlfn.SWITCH(MID(K$1,7,1),"1","3","2","6","3","9","4","12","12"),_xlfn.SWITCH(MID(K$1,7,1),"1","31","2","30","3","30","4","31","30")))) -> 0 | L13: =SUMIFS(Transactions!$AD:$AD,Transactions!$A:$A,_xlfn.CONCAT("<=",DATE(MID(L$1,1,4),_xlfn.SWITCH(MID(L$1,7,1),"1","3","2","6","3","9","4","12","12"),_xlfn.SWITCH(MID(L$1,7,1),"1","31","2","30","3","30","4","31","30")))) -> 0 | M13: =SUMIFS(Transactions!$AD:$AD,Transactions!$A:$A,_xlfn.CONCAT("<=",DATE(MID(M$1,1,4),_xlfn.SWITCH(MID(M$1,7,1),"1","3","2","6","3","9","4","12","12"),_xlfn.SWITCH(MID(M$1,7,1),"1","31","2","30","3","30","4","31","30")))) -> 0 | N13: =SUMIFS(Transactions!$AD:$AD,Transactions!$A:$A,_xlfn.CONCAT("<=",DATE(MID(N$1,1,4),_xlfn.SWITCH(MID(N$1,7,1),"1","3","2","6","3","9","4","12","12"),_xlfn.SWITCH(MID(N$1,7,1),"1","31","2","30","3","30","4","31","30")))) -> 0 | O13: =SUMIFS(Transactions!$AD:$AD,Transactions!$A:$A,_xlfn.CONCAT("<=",DATE(MID(O$1,1,4),_xlfn.SWITCH(MID(O$1,7,1),"1","3","2","6","3","9","4","12","12"),_xlfn.SWITCH(MID(O$1,7,1),"1","31","2","30","3","30","4","31","30")))) -> 0 | P13: =SUMIFS(Transactions!$AD:$AD,Transactions!$A:$A,_xlfn.CONCAT("<=",DATE(MID(P$1,1,4),_xlfn.SWITCH(MID(P$1,7,1),"1","3","2","6","3","9","4","12","12"),_xlfn.SWITCH(MID(P$1,7,1),"1","31","2","30","3","30","4","31","30")))) -> 0 | Q13: =SUMIFS(Transactions!$AD:$AD,Transactions!$A:$A,_xlfn.CONCAT("<=",DATE(MID(Q$1,1,4),_xlfn.SWITCH(MID(Q$1,7,1),"1","3","2","6","3","9","4","12","12"),_xlfn.SWITCH(MID(Q$1,7,1),"1","31","2","30","3","30","4","31","30")))) -> 0
A14: Total Credit Cards | B14: =SUM(B11:B13) -> -3000 | C14: -3000 | D14: -3000 | E14: -3000 | F14: =SUM(F11:F13) -> -3000 | G14: -3000 | H14: -3000 | I14: -3000 | J14: =SUM(J11:J13) -> -2385 | K14: -2385 | L14: -2385 | M14: -2385 | N14: =SUM(N11:N13) -> -2385 | O14: -2385 | P14: -2385 | Q14: -2385
A15: House | B15: -139200 | C15: -136180 | D15: -133130 | E15: -130050 | F15: -139200 | G15: -136180 | H15: -133130 | I15: -130050 | J15: -139200 | K15: -136180 | L15: -133130 | M15: -130050 | N15: -139200 | O15: -136180 | P15: -133130 | Q15: -130050
A16: Total Loans | B16: =SUM(B15) -> -139200 | C16: -136180 | D16: -133130 | E16: -130050 | F16: =SUM(F15) -> -139200 | G16: -136180 | H16: -133130 | I16: -130050 | J16: =SUM(J15) -> -139200 | K16: -136180 | L16: -133130 | M16: -130050 | N16: =SUM(N15) -> -139200 | O16: -136180 | P16: -133130 | Q16: -130050
A19: Total Assets | B19: =B5+B8+B10 -> 480100 | C19: 480100 | D19: 480100 | E19: 480100 | F19: =F5+F8+F10 -> 480100 | G19: 480100 | H19: 480100 | I19: 480100 | J19: =J5+J8+J10 -> 493585 | K19: 494070 | L19: 494070 | M19: 494070 | N19: =N5+N8+N10 -> 494070 | O19: 494070 | P19: 494070 | Q19: 494070
A20: Total Liabilities | B20: =B14+B16 -> -142200 | C20: -139180 | D20: -136130 | E20: -133050 | F20: =F14+F16 -> -142200 | G20: -139180 | H20: -136130 | I20: -133050 | J20: =J14+J16 -> -141585 | K20: -138565 | L20: -135515 | M20: -132435 | N20: =N14+N16 -> -141585 | O20: -138565 | P20: -135515 | Q20: -132435
A21: Grand Total | B21: =SUM(B19:B20) -> 337900 | C21: 340920 | D21: 343970 | E21: 347050 | F21: =SUM(F19:F20) -> 337900 | G21: 340920 | H21: 343970 | I21: 347050 | J21: =SUM(J19:J20) -> 352000 | K21: 355505 | L21: 358555 | M21: 361635 | N21: =SUM(N19:N20) -> 352485 | O21: 355505 | P21: 358555 | Q21: 361635
A23: Percent Growth | C23: =(C21-B21)/B21 -> 0.00893755549 | D23: 0.008946380382 | E23: 0.008954269268 | F23: =(F21-E21)/E21 -> -0.02636507708 | G23: =(G21-F21)/F21 -> 0.00893755549 | H23: =(H21-G21)/G21 -> 0.008946380382 | I23: =(I21-H21)/H21 -> 0.008954269268 | J23: =(J21-I21)/I21 -> 0.01426307448 | K23: =(K21-J21)/J21 -> 0.009957386364 | L23: =(L21-K21)/K21 -> 0.008579344876 | M23: =(M21-L21)/L21 -> 0.008590035002 | N23: =(N21-M21)/M21 -> -0.02530175453 | O23: =(O21-N21)/N21 -> 0.008567740471 | P23: =(P21-O21)/O21 -> 0.008579344876 | Q23: =(Q21-P21)/P21 -> 0.008590035002

Sheet Configuration
A1: Parameter | B1: Value | C1: Default Value | D1: Description
A2: # of descriptive columns on Transactions screen | B2: 5 | C2: 5 | D2: Columns to the left of account columns Descriptive columns on Transactions sheet can be deleted or added. Except the first two. Date and Budget cannot be deleted. Update cell B2 on this sheet accordingly. You can also hide some of these columns. Hiding columns does not require configuration change
A3: # of accounts on Transactions screen | B3: 6 | C3: 6 | D3: # of columns is calculated as # of accounts X 2 as each account needs 2 columns. Update cell B3 on this sheet If you add or delete account columns on Transactions sheet. Note: Hiding columns does not require configuration change
A4: # of Rolling Total columns that follow account columns. Before the first system column called Month. | B4: 4 | C4: 4 | D4: Columns to the right of the Month column (including Month column) on Transactions sheet cannot be changed. But columns between account columns and the Month column can be removed, hidden or new columns can be added Specify the number of columns between the last account column and the column called Month in cell B4 on this sheet
A5: Automatically select Amount column on Transactions sheet when the sheet is called from Budget by Year | B5: No | C5: No | D5: When Amount column is selected - Excel shows the Auto sum at the buttom in the status bar. The Sum on the Transactions screen should match the value in the cell on the Budget by Year. If the view scale is at 100% on Transaction sheet Amount column does not fit on the visible portion on a small screen. So it shifts columns
A6: Generate Forecast from Subscriptions Automatically | B6: Yes | C6: Yes | D6: Future use. Possible values: Yes/No
A7: Sync Mobile Transactions Automatically | B7: Yes | C7: No | D7: Future use. Possible values: Yes/No
A20: Column B on Transactions sheet is validated against this list | D20: Column B on Investments sheet is validated against this list
A21: Budget Name | B21: Type | D21: Investment Name
A22: Transfer | B22: Other | D22: Pension
A23: Reimbursement | B23: Other | D23: Kids Education
A24: Settled | B24: Other | D24: Stocks
A25: Savings | B25: Other
A26: Salary | B26: Income
A27: Bonus | B27: Income
A28: Kids | B28: Income
A29: Side Project | B29: Income
A30: Other Income | B30: Income
A31: Groceries | B31: Expense
A32: Entertainment | B32: Expense
A33: Shopping | B33: Expense
A34: Bills | B34: Expense
A35: Car | B35: Expense
A36: Charity | B36: Expense
A37: Health | B37: Expense
A38: Other | B38: Expense
A60: This list is used by the dropdown boxes that filter by account on Transactions sheet (do not change)
A61: Filter Drop Down
A62: Filter
A63: All
